Body,Body Name,Date Paid,Transaction Number,Amount,Supplier Name,Supplier ID,Supplier post code (first 4 digits),Directorate,Service Area,General Ledger code Description,BVACOP class,Revenue/ Capital Spend
http://statistics.data.gov.uk/id/local-authority/00HY,Wiltshire Council,11.02.2016,1901661748,1243.40,1st Choice Cabs ,101285,SP4 ,Community Services,CTPLD Place CIC U65,Transport Contracts,Third Party Payments,REVENUE
http://statistics.data.gov.uk/id/local-authority/00HY,Wiltshire Council,11.02.2016,1901661758,1881.00,1st Choice Cabs ,101285,SP4 ,Neighbourhood & Planning,SEN Secondary,Transport Contracts,Third Party Payments,REVENUE
http://statistics.data.gov.uk/id/local-authority/00HY,Wiltshire Council,11.02.2016,1901661759,1871.50,1st Choice Cabs ,101285,SP4 ,Neighbourhood & Planning,SEN Secondary,Transport Contracts,Third Party Payments,REVENUE
http://statistics.data.gov.uk/id/local-authority/00HY,Wiltshire Council,25.02.2016,1901674178,2375.00,1st Choice Cabs ,101285,SP4 ,Neighbourhood & Planning,SEN Secondary,Transport Contracts,Third Party Payments,REVENUE
http://statistics.data.gov.uk/id/local-authority/00HY,Wiltshire Council,10/02/2016,5106826763,2328.68,2 Care UK Ltd ,110002,BH7 ,Community Services,MH AOWA South Locali,Adult Residential Placements - Spot Purchase,Third Party Payments,REVENUE
http://statistics.data.gov.uk/id/local-authority/00HY,Wiltshire Council,10/02/2016,5106827373,1416.00,2 Care UK Ltd ,110002,BH7 ,Community Services,MH AOWA South Locali,Adult Residential Placements - Spot Purchase,Third Party Payments,REVENUE
http://statistics.data.gov.uk/id/local-authority/00HY,Wiltshire Council,10/02/2016,5106827374,944.00,2 Care UK Ltd ,110002,BH7 ,Community Services,Section 117-PCT Clnt,Adult Residential Placements - Spot Purchase,Third Party Payments,REVENUE
http://statistics.data.gov.uk/id/local-authority/00HY,Wiltshire Council,26/02/2016,5106835919,505.74,2 Care UK Ltd ,110002,BH7 ,Community Services,MH AOWA South Locali,Adult Residential Placements - Spot Purchase,Third Party Payments,REVENUE
http://statistics.data.gov.uk/id/local-authority/00HY,Wiltshire Council,26/02/2016,5106835920,2360.00,2 Care UK Ltd ,110002,BH7 ,Community Services,MH AOWA South Locali,Adult Residential Placements - Spot Purchase,Third Party Payments,REVENUE
http://statistics.data.gov.uk/id/local-authority/00HY,Wiltshire Council,26/02/2016,5106835921,2360.00,2 Care UK Ltd ,110002,BH7 ,Community Services,MH AOWA South Locali,Adult Residential Placements - Spot Purchase,Third Party Payments,REVENUE
http://statistics.data.gov.uk/id/local-authority/00HY,Wiltshire Council,25.02.2016,1901673444,59585.66,21st Century Building Services ,143369,BS3 ,Wiltshire Council,Wiltshire Council,Buildings Minor Alterations,Premises Related,CAPITAL
http://statistics.data.gov.uk/id/local-authority/00HY,Wiltshire Council,10/02/2016,5106826201,5701.36,22 Wingfield ,129621,BA14,Community Services,CTPLD Place CIC U65,Adult Residential Placements - Spot Purchase,Third Party Payments,REVENUE
http://statistics.data.gov.uk/id/local-authority/00HY,Wiltshire Council,10/02/2016,5106826641,5552.16,22 Wingfield ,129621,BA14,Community Services,MH AOWA North Locali,Adult Residential Placements - Spot Purchase,Third Party Payments,REVENUE
http://statistics.data.gov.uk/id/local-authority/00HY,Wiltshire Council,10/02/2016,5106826739,7324.16,22 Wingfield ,129621,BA14,Community Services,CTPLD Place CIC U65,Adult Residential Placements - Spot Purchase,Third Party Payments,REVENUE
http://statistics.data.gov.uk/id/local-authority/00HY,Wiltshire Council,10/02/2016,5106818432,374.85,24-7 Staffing ,140662,SN15,Community Services,Chippenham Respite,Agency Staff,Employee Related,REVENUE
http://statistics.data.gov.uk/id/local-authority/00HY,Wiltshire Council,11/02/2016,5106829464,486.34,24-7 Staffing ,140662,SN15,Community Services,Bradbury Manor Resp,Agency Staff,Employee Related,REVENUE
http://statistics.data.gov.uk/id/local-authority/00HY,Wiltshire Council,11/02/2016,5106829465,444.55,24-7 Staffing ,140662,SN15,Community Services,Bradbury Manor Resp,Agency Staff,Employee Related,REVENUE
http://statistics.data.gov.uk/id/local-authority/00HY,Wiltshire Council,09.02.2016,1901660807,1200.00,2get2 Taxi Services Ltd ,101102,SP1 ,Neighbourhood & Planning,SEN Primary,Transport Contracts,Third Party Payments,REVENUE
http://statistics.data.gov.uk/id/local-authority/00HY,Wiltshire Council,09.02.2016,1901660807,1200.00,2get2 Taxi Services Ltd ,101102,SP1 ,Neighbourhood & Planning,SEN Secondary,Transport Contracts,Third Party Payments,REVENUE
http://statistics.data.gov.uk/id/local-authority/00HY,Wiltshire Council,18/02/2016,5106822658,1350.00,4 Children ,113122,E14 ,Children & Education,ACLTeamBud,Consultants� Fees,Supplies and Services,REVENUE
http://statistics.data.gov.uk/id/local-authority/00HY,Wiltshire Council,25/02/2016,5106824952,3849.75,4 Children ,113122,E14 ,Neighbourhood & Planning,Maternal Health Impr,Public Health Commissioning,Supplies and Services,REVENUE
http://statistics.data.gov.uk/id/local-authority/00HY,Wiltshire Council,04.02.2016,1901659911,1308.20,A  and  S Private Hire ,101115,SN15,Neighbourhood & Planning,SEN Primary,Transport Contracts,Third Party Payments,REVENUE
http://statistics.data.gov.uk/id/local-authority/00HY,Wiltshire Council,10.02.2016,1901646595,396.84,A C E Supplies ,126284,BA15,Resources,County Hall Complex,Preventative Property Maintenance,Premises Related,REVENUE
http://statistics.data.gov.uk/id/local-authority/00HY,Wiltshire Council,10.02.2016,1901661177,1729.35,A G Minibuses ,100878,BA12,Neighbourhood & Planning,Mainstream Primary,Transport Contracts,Third Party Payments,REVENUE
http://statistics.data.gov.uk/id/local-authority/00HY,Wiltshire Council,10.02.2016,1901661178,797.20,A G Minibuses ,100878,BA12,Community Services,CTPLD Place CIC U65,Transport Contracts,Third Party Payments,REVENUE
http://statistics.data.gov.uk/id/local-authority/00HY,Wiltshire Council,10.02.2016,1901661178,1771.60,A G Minibuses ,100878,BA12,Community Services,OVA East Locality,Transport Contracts,Third Party Payments,REVENUE
http://statistics.data.gov.uk/id/local-authority/00HY,Wiltshire Council,10.02.2016,1901661179,1898.39,A G Minibuses ,100878,BA12,Neighbourhood & Planning,Mainstream Primary,Transport Contracts,Third Party Payments,REVENUE
http://statistics.data.gov.uk/id/local-authority/00HY,Wiltshire Council,10.02.2016,1901661182,1434.31,A G Minibuses ,100878,BA12,Community Services,CTPLD Place CIC U65,Transport Contracts,Third Party Payments,REVENUE
http://statistics.data.gov.uk/id/local-authority/00HY,Wiltshire Council,10.02.2016,1901661184,1567.50,A G Minibuses ,100878,BA12,Neighbourhood & Planning,SEN Secondary,Transport Contracts,Third Party Payments,REVENUE
http://statistics.data.gov.uk/id/local-authority/00HY,Wiltshire Council,10.02.2016,1901661185,1577.00,A G Minibuses ,100878,BA12,Neighbourhood & Planning,SEN Secondary,Transport Contracts,Third Party Payments,REVENUE
http://statistics.data.gov.uk/id/local-authority/00HY,Wiltshire Council,11.02.2016,1901661798,509.38,A G Minibuses ,100878,BA12,Community Services,CTPLD Place CIC U65,Transport Contracts,Third Party Payments,REVENUE
http://statistics.data.gov.uk/id/local-authority/00HY,Wiltshire Council,11.02.2016,1901661798,552.00,A G Minibuses ,100878,BA12,Neighbourhood & Planning,SEN Secondary,Transport Contracts,Third Party Payments,REVENUE
http://statistics.data.gov.uk/id/local-authority/00HY,Wiltshire Council,11.02.2016,1901661799,372.00,A G Minibuses ,100878,BA12,Community Services,OVA West Locality,Transport Contracts,Third Party Payments,REVENUE
http://statistics.data.gov.uk/id/local-authority/00HY,Wiltshire Council,11.02.2016,1901661800,1144.46,A G Minibuses ,100878,BA12,Neighbourhood & Planning,Mainstream Secondary,Transport Contracts,Third Party Payments,REVENUE
http://statistics.data.gov.uk/id/local-authority/00HY,Wiltshire Council,11.02.2016,1901661801,872.73,A G Minibuses ,100878,BA12,Neighbourhood & Planning,SEN Primary,Transport Contracts,Third Party Payments,REVENUE
http://statistics.data.gov.uk/id/local-authority/00HY,Wiltshire Council,11.02.2016,1901661801,1287.27,A G Minibuses ,100878,BA12,Neighbourhood & Planning,SEN Secondary,Transport Contracts,Third Party Payments,REVENUE
http://statistics.data.gov.uk/id/local-authority/00HY,Wiltshire Council,11.02.2016,1901661805,256.50,A G Minibuses ,100878,BA12,Neighbourhood & Planning,RES 16+ Secondary,Transport Contracts,Third Party Payments,REVENUE
http://statistics.data.gov.uk/id/local-authority/00HY,Wiltshire Council,11.02.2016,1901661807,1340.00,A G Minibuses ,100878,BA12,Neighbourhood & Planning,Mainstream 16+ FE,Transport Contracts,Third Party Payments,REVENUE
http://statistics.data.gov.uk/id/local-authority/00HY,Wiltshire Council,11.02.2016,1901661808,1700.00,A G Minibuses ,100878,BA12,Neighbourhood & Planning,SEN Primary,Transport Contracts,Third Party Payments,REVENUE
http://statistics.data.gov.uk/id/local-authority/00HY,Wiltshire Council,11.02.2016,1901661812,552.00,A G Minibuses ,100878,BA12,Neighbourhood & Planning,SEN Secondary,Transport Contracts,Third Party Payments,REVENUE
http://statistics.data.gov.uk/id/local-authority/00HY,Wiltshire Council,11.02.2016,1901661812,552.00,A G Minibuses ,100878,BA12,Neighbourhood & Planning,SEN 16+ Secondary,Transport Contracts,Third Party Payments,REVENUE
http://statistics.data.gov.uk/id/local-authority/00HY,Wiltshire Council,11.02.2016,1901661812,1104.00,A G Minibuses ,100878,BA12,Neighbourhood & Planning,SEN Primary,Transport Contracts,Third Party Payments,REVENUE
http://statistics.data.gov.uk/id/local-authority/00HY,Wiltshire Council,12.02.2016,1901662404,4639.20,A G Minibuses ,100878,BA12,Neighbourhood & Planning,SEN Primary,Transport Contracts,Third Party Payments,REVENUE
http://statistics.data.gov.uk/id/local-authority/00HY,Wiltshire Council,12.02.2016,1901662406,712.50,A G Minibuses ,100878,BA12,Neighbourhood & Planning,SEN Secondary,Transport Contracts,Third Party Payments,REVENUE
http://statistics.data.gov.uk/id/local-authority/00HY,Wiltshire Council,12.02.2016,1901662406,1567.50,A G Minibuses ,100878,BA12,Neighbourhood & Planning,SEN Primary,Transport Contracts,Third Party Payments,REVENUE
http://statistics.data.gov.uk/id/local-authority/00HY,Wiltshire Council,12.02.2016,1901662407,745.00,A G Minibuses ,100878,BA12,Neighbourhood & Planning,SEN Primary,Transport Contracts,Third Party Payments,REVENUE
http://statistics.data.gov.uk/id/local-authority/00HY,Wiltshire Council,12.02.2016,1901662407,745.00,A G Minibuses ,100878,BA12,Neighbourhood & Planning,SEN Secondary,Transport Contracts,Third Party Payments,REVENUE
http://statistics.data.gov.uk/id/local-authority/00HY,Wiltshire Council,15.02.2016,1901662796,539.00,A G Minibuses ,100878,BA12,Neighbourhood & Planning,SEN Primary,Transport Contracts,Third Party Payments,REVENUE
http://statistics.data.gov.uk/id/local-authority/00HY,Wiltshire Council,15.02.2016,1901662796,718.67,A G Minibuses ,100878,BA12,Children & Education,CDT S&W,Transport Contracts,Third Party Payments,REVENUE
http://statistics.data.gov.uk/id/local-authority/00HY,Wiltshire Council,15.02.2016,1901662796,1617.01,A G Minibuses ,100878,BA12,Neighbourhood & Planning,SEN Secondary,Transport Contracts,Third Party Payments,REVENUE
http://statistics.data.gov.uk/id/local-authority/00HY,Wiltshire Council,15.02.2016,1901662797,346.73,A G Minibuses ,100878,BA12,Neighbourhood & Planning,SEN 16+ Secondary,Transport Contracts,Third Party Payments,REVENUE
http://statistics.data.gov.uk/id/local-authority/00HY,Wiltshire Council,15.02.2016,1901662797,693.48,A G Minibuses ,100878,BA12,Neighbourhood & Planning,SEN Primary,Transport Contracts,Third Party Payments,REVENUE
http://statistics.data.gov.uk/id/local-authority/00HY,Wiltshire Council,15.02.2016,1901662797,1040.19,A G Minibuses ,100878,BA12,Neighbourhood & Planning,SEN Secondary,Transport Contracts,Third Party Payments,REVENUE
http://statistics.data.gov.uk/id/local-authority/00HY,Wiltshire Council,16.02.2016,1901663574,12418.18,A G Minibuses ,100878,BA12,Neighbourhood & Planning,Connect 2 Wiltshire,Transport Contracts,Third Party Payments,REVENUE
http://statistics.data.gov.uk/id/local-authority/00HY,Wiltshire Council,16.02.2016,1901663576,875.17,A G Minibuses ,100878,BA12,Neighbourhood & Planning,Connect 2 Wiltshire,Transport Contracts,Third Party Payments,REVENUE
http://statistics.data.gov.uk/id/local-authority/00HY,Wiltshire Council,16.02.2016,1901663576,997.50,A G Minibuses ,100878,BA12,Neighbourhood & Planning,Mainstream Primary,Transport Contracts,Third Party Payments,REVENUE
http://statistics.data.gov.uk/id/local-authority/00HY,Wiltshire Council,16.02.2016,1901663576,1588.52,A G Minibuses ,100878,BA12,Neighbourhood & Planning,Public Transport,Transport Contracts,Third Party Payments,REVENUE
http://statistics.data.gov.uk/id/local-authority/00HY,Wiltshire Council,16.02.2016,1901663577,1583.33,A G Minibuses ,100878,BA12,Neighbourhood & Planning,Mainstream Secondary,Transport Contracts,Third Party Payments,REVENUE
http://statistics.data.gov.uk/id/local-authority/00HY,Wiltshire Council,16.02.2016,1901663577,4073.67,A G Minibuses ,100878,BA12,Neighbourhood & Planning,Connect 2 Wiltshire,Transport Contracts,Third Party Payments,REVENUE
http://statistics.data.gov.uk/id/local-authority/00HY,Wiltshire Council,24.02.2016,1901673451,622.80,A G Minibuses ,100878,BA12,Neighbourhood & Planning,SEN Primary,Transport Contracts,Third Party Payments,REVENUE
http://statistics.data.gov.uk/id/local-authority/00HY,Wiltshire Council,24.02.2016,1901673451,1868.40,A G Minibuses ,100878,BA12,Neighbourhood & Planning,SEN Secondary,Transport Contracts,Third Party Payments,REVENUE
http://statistics.data.gov.uk/id/local-authority/00HY,Wiltshire Council,24.02.2016,1901673461,1269.65,A G Minibuses ,100878,BA12,Community Services,CTPLD Place CIC U65,Transport Contracts,Third Party Payments,REVENUE
http://statistics.data.gov.uk/id/local-authority/00HY,Wiltshire Council,25.02.2016,1901674161,954.66,A G Minibuses ,100878,BA12,Community Services,East Locality OP,Transport Contracts,Third Party Payments,REVENUE
http://statistics.data.gov.uk/id/local-authority/00HY,Wiltshire Council,25.02.2016,1901674161,954.67,A G Minibuses ,100878,BA12,Community Services,MH OP South Locality,Transport Contracts,Third Party Payments,REVENUE
http://statistics.data.gov.uk/id/local-authority/00HY,Wiltshire Council,25.02.2016,1901674170,813.26,A G Minibuses ,100878,BA12,Neighbourhood & Planning,SEN Primary,Transport Contracts,Third Party Payments,REVENUE
http://statistics.data.gov.uk/id/local-authority/00HY,Wiltshire Council,25.02.2016,1901674170,1084.35,A G Minibuses ,100878,BA12,Children & Education,CDT S&W,Transport Contracts,Third Party Payments,REVENUE
http://statistics.data.gov.uk/id/local-authority/00HY,Wiltshire Council,25.02.2016,1901674170,2439.79,A G Minibuses ,100878,BA12,Neighbourhood & Planning,SEN Secondary,Transport Contracts,Third Party Payments,REVENUE
http://statistics.data.gov.uk/id/local-authority/00HY,Wiltshire Council,29.02.2016,1901674477,1748.50,A G Minibuses ,100878,BA12,Neighbourhood & Planning,Mainstream Primary,Transport Contracts,Third Party Payments,REVENUE
http://statistics.data.gov.uk/id/local-authority/00HY,Wiltshire Council,12/02/2016,5106831275,315.00,A M Hill - T/A Idyllic Education ,143069,BS3 ,Children & Education,Aspire House,Educational Fees,Supplies and Services,REVENUE
http://statistics.data.gov.uk/id/local-authority/00HY,Wiltshire Council,12/02/2016,5106831289,332.50,A M Hill - T/A Idyllic Education ,143069,BS3 ,Children & Education,Aspire House,Educational Fees,Supplies and Services,REVENUE
http://statistics.data.gov.uk/id/local-authority/00HY,Wiltshire Council,15.02.2016,1901662783,630.00,A P Taxis- Acct Closed - Use 143342 ,100628,SN12,Neighbourhood & Planning,SEN Secondary,Transport Contracts,Third Party Payments,REVENUE
http://statistics.data.gov.uk/id/local-authority/00HY,Wiltshire Council,09.02.2016,1901660750,680.00,A1 Cab Company ,101233,SP4 ,Community Services,CTPLD Place CIC U65,Transport Contracts,Third Party Payments,REVENUE
http://statistics.data.gov.uk/id/local-authority/00HY,Wiltshire Council,09.02.2016,1901660751,866.67,A1 Cab Company ,101233,SP4 ,Neighbourhood & Planning,SEN Secondary,Transport Contracts,Third Party Payments,REVENUE
http://statistics.data.gov.uk/id/local-authority/00HY,Wiltshire Council,09.02.2016,1901660751,1733.33,A1 Cab Company ,101233,SP4 ,Neighbourhood & Planning,SEN Primary,Transport Contracts,Third Party Payments,REVENUE
http://statistics.data.gov.uk/id/local-authority/00HY,Wiltshire Council,09.02.2016,1901660752,489.34,A1 Cab Company ,101233,SP4 ,Neighbourhood & Planning,Mainstream Secondary,Transport Contracts,Third Party Payments,REVENUE
http://statistics.data.gov.uk/id/local-authority/00HY,Wiltshire Council,09.02.2016,1901660752,489.34,A1 Cab Company ,101233,SP4 ,Neighbourhood & Planning,SEN Secondary,Transport Contracts,Third Party Payments,REVENUE
http://statistics.data.gov.uk/id/local-authority/00HY,Wiltshire Council,09.02.2016,1901660753,1258.94,A1 Cab Company ,101233,SP4 ,Neighbourhood & Planning,SEN Primary,Transport Contracts,Third Party Payments,REVENUE
http://statistics.data.gov.uk/id/local-authority/00HY,Wiltshire Council,09.02.2016,1901660754,456.00,A1 Cab Company ,101233,SP4 ,Neighbourhood & Planning,Mainstream Secondary,Transport Contracts,Third Party Payments,REVENUE
http://statistics.data.gov.uk/id/local-authority/00HY,Wiltshire Council,09.02.2016,1901660754,456.00,A1 Cab Company ,101233,SP4 ,Neighbourhood & Planning,SEN Secondary,Transport Contracts,Third Party Payments,REVENUE
http://statistics.data.gov.uk/id/local-authority/00HY,Wiltshire Council,12.02.2016,1901662078,10916.16,A2 Winchester Ltd ,101167,SO23,Neighbourhood & Planning,Strategy & Enabling,Payments to Contractors - Other,Third Party Payments,REVENUE
http://statistics.data.gov.uk/id/local-authority/00HY,Wiltshire Council,01.02.2016,1901658087,700.00,Abbey Taxis (Swindon) Ltd ,100920,SN2 ,Neighbourhood & Planning,Mainstream Secondary,Transport Contracts,Third Party Payments,REVENUE
http://statistics.data.gov.uk/id/local-authority/00HY,Wiltshire Council,01.02.2016,1901658098,1610.00,Abbey Taxis (Swindon) Ltd ,100920,SN2 ,Neighbourhood & Planning,SEN Secondary,Transport Contracts,Third Party Payments,REVENUE
http://statistics.data.gov.uk/id/local-authority/00HY,Wiltshire Council,04.02.2016,1901659890,1285.74,Abbey Taxis (Swindon) Ltd ,100920,SN2 ,Neighbourhood & Planning,Mainstream Secondary,Transport Contracts,Third Party Payments,REVENUE
http://statistics.data.gov.uk/id/local-authority/00HY,Wiltshire Council,09.02.2016,1901660790,324.02,Abbey Taxis (Swindon) Ltd ,100920,SN2 ,Children & Education,LAC & 16+ North,Transport Contracts,Third Party Payments,REVENUE
http://statistics.data.gov.uk/id/local-authority/00HY,Wiltshire Council,09.02.2016,1901660791,258.00,Abbey Taxis (Swindon) Ltd ,100920,SN2 ,Neighbourhood & Planning,SEN Post 19,Transport Contracts,Third Party Payments,REVENUE
http://statistics.data.gov.uk/id/local-authority/00HY,Wiltshire Council,09.02.2016,1901660792,720.00,Abbey Taxis (Swindon) Ltd ,100920,SN2 ,Community Services,CTPLD Place CIC U65,Transport Contracts,Third Party Payments,REVENUE
http://statistics.data.gov.uk/id/local-authority/00HY,Wiltshire Council,09.02.2016,1901660793,2185.00,Abbey Taxis (Swindon) Ltd ,100920,SN2 ,Neighbourhood & Planning,SEN Secondary,Transport Contracts,Third Party Payments,REVENUE
http://statistics.data.gov.uk/id/local-authority/00HY,Wiltshire Council,09.02.2016,1901660794,1330.00,Abbey Taxis (Swindon) Ltd ,100920,SN2 ,Neighbourhood & Planning,Mainstream Primary,Transport Contracts,Third Party Payments,REVENUE
http://statistics.data.gov.uk/id/local-authority/00HY,Wiltshire Council,09.02.2016,1901660795,1600.00,Abbey Taxis (Swindon) Ltd ,100920,SN2 ,Neighbourhood & Planning,SEN Primary,Transport Contracts,Third Party Payments,REVENUE
http://statistics.data.gov.uk/id/local-authority/00HY,Wiltshire Council,09.02.2016,1901660796,807.50,Abbey Taxis (Swindon) Ltd ,100920,SN2 ,Neighbourhood & Planning,SEN Secondary,Transport Contracts,Third Party Payments,REVENUE
http://statistics.data.gov.uk/id/local-authority/00HY,Wiltshire Council,09.02.2016,1901660796,807.50,Abbey Taxis (Swindon) Ltd ,100920,SN2 ,Neighbourhood & Planning,SEN 16+ Secondary,Transport Contracts,Third Party Payments,REVENUE
http://statistics.data.gov.uk/id/local-authority/00HY,Wiltshire Council,09.02.2016,1901660797,677.10,Abbey Taxis (Swindon) Ltd ,100920,SN2 ,Neighbourhood & Planning,SEN Secondary,Transport Contracts,Third Party Payments,REVENUE
http://statistics.data.gov.uk/id/local-authority/00HY,Wiltshire Council,09.02.2016,1901660797,1086.90,Abbey Taxis (Swindon) Ltd ,100920,SN2 ,Neighbourhood & Planning,SEN Primary,Transport Contracts,Third Party Payments,REVENUE
http://statistics.data.gov.uk/id/local-authority/00HY,Wiltshire Council,09.02.2016,1901660798,980.00,Abbey Taxis (Swindon) Ltd ,100920,SN2 ,Neighbourhood & Planning,SEN Primary,Transport Contracts,Third Party Payments,REVENUE
http://statistics.data.gov.uk/id/local-authority/00HY,Wiltshire Council,09.02.2016,1901660799,2475.00,Abbey Taxis (Swindon) Ltd ,100920,SN2 ,Neighbourhood & Planning,SEN Primary,Transport Contracts,Third Party Payments,REVENUE
http://statistics.data.gov.uk/id/local-authority/00HY,Wiltshire Council,09.02.2016,1901660800,384.00,Abbey Taxis (Swindon) Ltd ,100920,SN2 ,Neighbourhood & Planning,SEN 16+ Secondary,Transport Contracts,Third Party Payments,REVENUE
http://statistics.data.gov.uk/id/local-authority/00HY,Wiltshire Council,09.02.2016,1901660800,384.00,Abbey Taxis (Swindon) Ltd ,100920,SN2 ,Neighbourhood & Planning,SEN 16+ FE Colleges,Transport Contracts,Third Party Payments,REVENUE
http://statistics.data.gov.uk/id/local-authority/00HY,Wiltshire Council,09.02.2016,1901660801,680.00,Abbey Taxis (Swindon) Ltd ,100920,SN2 ,Neighbourhood & Planning,SEN 16+ FE Colleges,Transport Contracts,Third Party Payments,REVENUE
http://statistics.data.gov.uk/id/local-authority/00HY,Wiltshire Council,09.02.2016,1901660802,2200.00,Abbey Taxis (Swindon) Ltd ,100920,SN2 ,Neighbourhood & Planning,SEN Secondary,Transport Contracts,Third Party Payments,REVENUE
http://statistics.data.gov.uk/id/local-authority/00HY,Wiltshire Council,09.02.2016,1901660803,2016.00,Abbey Taxis (Swindon) Ltd ,100920,SN2 ,Neighbourhood & Planning,SEN 16+ Secondary,Transport Contracts,Third Party Payments,REVENUE
http://statistics.data.gov.uk/id/local-authority/00HY,Wiltshire Council,09.02.2016,1901660804,500.00,Abbey Taxis (Swindon) Ltd ,100920,SN2 ,Neighbourhood & Planning,SEN Primary,Transport Contracts,Third Party Payments,REVENUE
http://statistics.data.gov.uk/id/local-authority/00HY,Wiltshire Council,10.02.2016,1901661188,1400.00,Abbey Taxis (Swindon) Ltd ,100920,SN2 ,Neighbourhood & Planning,SEN Primary,Transport Contracts,Third Party Payments,REVENUE
http://statistics.data.gov.uk/id/local-authority/00HY,Wiltshire Council,11.02.2016,1901661740,1884.00,Abbey Taxis (Swindon) Ltd ,100920,SN2 ,Neighbourhood & Planning,SEN Secondary,Transport Contracts,Third Party Payments,REVENUE
http://statistics.data.gov.uk/id/local-authority/00HY,Wiltshire Council,11.02.2016,1901661756,2295.96,Abbey Taxis (Swindon) Ltd ,100920,SN2 ,Neighbourhood & Planning,SEN Secondary,Transport Contracts,Third Party Payments,REVENUE
http://statistics.data.gov.uk/id/local-authority/00HY,Wiltshire Council,11.02.2016,1901661802,485.20,Abbey Taxis (Swindon) Ltd ,100920,SN2 ,Neighbourhood & Planning,Mainstream Primary,Transport Contracts,Third Party Payments,REVENUE
http://statistics.data.gov.uk/id/local-authority/00HY,Wiltshire Council,11.02.2016,1901661802,485.20,Abbey Taxis (Swindon) Ltd ,100920,SN2 ,Neighbourhood & Planning,SEN Secondary,Transport Contracts,Third Party Payments,REVENUE
http://statistics.data.gov.uk/id/local-authority/00HY,Wiltshire Council,11.02.2016,1901661802,1455.60,Abbey Taxis (Swindon) Ltd ,100920,SN2 ,Neighbourhood & Planning,SEN Primary,Transport Contracts,Third Party Payments,REVENUE
http://statistics.data.gov.uk/id/local-authority/00HY,Wiltshire Council,12.02.2016,1901662423,2000.00,Abbey Taxis (Swindon) Ltd ,100920,SN2 ,Neighbourhood & Planning,SEN Primary,Transport Contracts,Third Party Payments,REVENUE
http://statistics.data.gov.uk/id/local-authority/00HY,Wiltshire Council,12.02.2016,1901662424,880.00,Abbey Taxis (Swindon) Ltd ,100920,SN2 ,Neighbourhood & Planning,SEN Secondary,Transport Contracts,Third Party Payments,REVENUE
http://statistics.data.gov.uk/id/local-authority/00HY,Wiltshire Council,12.02.2016,1901662424,1320.00,Abbey Taxis (Swindon) Ltd ,100920,SN2 ,Neighbourhood & Planning,SEN Primary,Transport Contracts,Third Party Payments,REVENUE
http://statistics.data.gov.uk/id/local-authority/00HY,Wiltshire Council,12.02.2016,1901662450,737.60,Abbey Taxis (Swindon) Ltd ,100920,SN2 ,Neighbourhood & Planning,SEN Secondary,Transport Contracts,Third Party Payments,REVENUE
http://statistics.data.gov.uk/id/local-authority/00HY,Wiltshire Council,12.02.2016,1901662454,271.60,Abbey Taxis (Swindon) Ltd ,100920,SN2 ,Neighbourhood & Planning,RES Primary,Transport Contracts,Third Party Payments,REVENUE
http://statistics.data.gov.uk/id/local-authority/00HY,Wiltshire Council,11.02.2016,1901661806,1080.00,Abbey Taxis Ltd ,101080,BA2 ,Neighbourhood & Planning,SEN Secondary,Transport Contracts,Third Party Payments,REVENUE
http://statistics.data.gov.uk/id/local-authority/00HY,Wiltshire Council,16/02/2016,5106831622,1900.00,ABC Food Safety Limited ,126644,NR4 ,Resources,Centralised Training,Staff Training Course Costs,Employee Related,REVENUE
http://statistics.data.gov.uk/id/local-authority/00HY,Wiltshire Council,25/02/2016,5106834101,1615.00,ABC Food Safety Limited ,126644,NR4 ,Resources,Centralised Training,Staff Training Course Costs,Employee Related,REVENUE
http://statistics.data.gov.uk/id/local-authority/00HY,Wiltshire Council,29.02.2016,1901661068,298.72,Abicare Services Ltd Homecare ,110031,SP2 ,Community Services,HTLAH - Neighbourhoo,Interim Support Plan - HTLAH,Third Party Payments,REVENUE
http://statistics.data.gov.uk/id/local-authority/00HY,Wiltshire Council,10.02.2016,1901661069,385.59,Abicare Services Ltd Homecare ,110031,SP2 ,Community Services,HTLAH - Neighbourhoo,Interim Support Plan - HTLAH,Third Party Payments,REVENUE
http://statistics.data.gov.uk/id/local-authority/00HY,Wiltshire Council,10.02.2016,1901661070,771.19,Abicare Services Ltd Homecare ,110031,SP2 ,Community Services,HTLAH - Neighbourhoo,Interim Support Plan - HTLAH,Third Party Payments,REVENUE
http://statistics.data.gov.uk/id/local-authority/00HY,Wiltshire Council,10.02.2016,1901661071,771.19,Abicare Services Ltd Homecare ,110031,SP2 ,Community Services,HTLAH - Neighbourhoo,Interim Support Plan - HTLAH,Third Party Payments,REVENUE
http://statistics.data.gov.uk/id/local-authority/00HY,Wiltshire Council,10.02.2016,1901661072,771.19,Abicare Services Ltd Homecare ,110031,SP2 ,Community Services,HTLAH - Neighbourhoo,Interim Support Plan - HTLAH,Third Party Payments,REVENUE
http://statistics.data.gov.uk/id/local-authority/00HY,Wiltshire Council,08/02/2016,5106818506,402.18,Abicare Services Ltd Homecare ,110031,SP2 ,Community Services,CTPLD Place CIC U65,Adult Domiciliary Care - Spot Contribution,Income,REVENUE
http://statistics.data.gov.uk/id/local-authority/00HY,Wiltshire Council,01/02/2016,5106820224,373.18,Abicare Services Ltd Homecare ,110031,SP2 ,Community Services,CTPLD Place CIC U65,Adult Domiciliary Care - Spot Contribution,Income,REVENUE
http://statistics.data.gov.uk/id/local-authority/00HY,Wiltshire Council,03/02/2016,5106824019,401.21,Abicare Services Ltd Homecare ,110031,SP2 ,Community Services,MH OP North Locality,Adult Domiciliary Care - Spot Contribution,Income,REVENUE
http://statistics.data.gov.uk/id/local-authority/00HY,Wiltshire Council,15/02/2016,5106824046,402.18,Abicare Services Ltd Homecare ,110031,SP2 ,Community Services,CTPLD Place CIC U65,Adult Domiciliary Care - Spot Contribution,Income,REVENUE
http://statistics.data.gov.uk/id/local-authority/00HY,Wiltshire Council,09/02/2016,5106828460,401.21,Abicare Services Ltd Homecare ,110031,SP2 ,Community Services,MH OP North Locality,Adult Domiciliary Care - Spot Contribution,Income,REVENUE
http://statistics.data.gov.uk/id/local-authority/00HY,Wiltshire Council,22/02/2016,5106828472,402.18,Abicare Services Ltd Homecare ,110031,SP2 ,Community Services,CTPLD Place CIC U65,Adult Domiciliary Care - Spot Contribution,Income,REVENUE
http://statistics.data.gov.uk/id/local-authority/00HY,Wiltshire Council,12/02/2016,5106831253,401.21,Abicare Services Ltd Homecare ,110031,SP2 ,Community Services,MH OP North Locality,Adult Domiciliary Care - Mileage,Third Party Payments,REVENUE
http://statistics.data.gov.uk/id/local-authority/00HY,Wiltshire Council,12/02/2016,5106831254,509.88,Abicare Services Ltd Homecare ,110031,SP2 ,Community Services,West Locality OP,Adult Domiciliary Care - Spot Contribution,Income,REVENUE
http://statistics.data.gov.uk/id/local-authority/00HY,Wiltshire Council,16/02/2016,5106831817,324.46,Abicare Services Ltd Homecare ,110031,SP2 ,Community Services,South Locality OP,Adult Domiciliary Care - Spot,Third Party Payments,REVENUE
http://statistics.data.gov.uk/id/local-authority/00HY,Wiltshire Council,16/02/2016,5106831819,333.64,Abicare Services Ltd Homecare ,110031,SP2 ,Community Services,South Locality OP,Adult Domiciliary Care - Spot,Third Party Payments,REVENUE
http://statistics.data.gov.uk/id/local-authority/00HY,Wiltshire Council,16/02/2016,5106831820,312.71,Abicare Services Ltd Homecare ,110031,SP2 ,Community Services,South Locality OP,Adult Domiciliary Care - Spot,Third Party Payments,REVENUE
http://statistics.data.gov.uk/id/local-authority/00HY,Wiltshire Council,16/02/2016,5106831821,324.46,Abicare Services Ltd Homecare ,110031,SP2 ,Community Services,South Locality OP,Adult Domiciliary Care - Spot,Third Party Payments,REVENUE
http://statistics.data.gov.uk/id/local-authority/00HY,Wiltshire Council,16/02/2016,5106831822,325.49,Abicare Services Ltd Homecare ,110031,SP2 ,Community Services,South Locality OP,Adult Domiciliary Care - Spot,Third Party Payments,REVENUE
http://statistics.data.gov.uk/id/local-authority/00HY,Wiltshire Council,16/02/2016,5106831824,326.44,Abicare Services Ltd Homecare ,110031,SP2 ,Community Services,South Locality OP,Adult Domiciliary Care - Spot,Third Party Payments,REVENUE
http://statistics.data.gov.uk/id/local-authority/00HY,Wiltshire Council,16/02/2016,5106831826,324.46,Abicare Services Ltd Homecare ,110031,SP2 ,Community Services,South Locality OP,Adult Domiciliary Care - Spot,Third Party Payments,REVENUE
http://statistics.data.gov.uk/id/local-authority/00HY,Wiltshire Council,16/02/2016,5106831829,330.04,Abicare Services Ltd Homecare ,110031,SP2 ,Community Services,South Locality OP,Adult Domiciliary Care - Spot,Third Party Payments,REVENUE
http://statistics.data.gov.uk/id/local-authority/00HY,Wiltshire Council,16/02/2016,5106831830,333.64,Abicare Services Ltd Homecare ,110031,SP2 ,Community Services,South Locality OP,Adult Domiciliary Care - Spot,Third Party Payments,REVENUE
http://statistics.data.gov.uk/id/local-authority/00HY,Wiltshire Council,16/02/2016,5106831831,333.64,Abicare Services Ltd Homecare ,110031,SP2 ,Community Services,South Locality OP,Adult Domiciliary Care - Spot,Third Party Payments,REVENUE
http://statistics.data.gov.uk/id/local-authority/00HY,Wiltshire Council,16/02/2016,5106831832,298.90,Abicare Services Ltd Homecare ,110031,SP2 ,Community Services,South Locality OP,Adult Domiciliary Care - Spot,Third Party Payments,REVENUE
http://statistics.data.gov.uk/id/local-authority/00HY,Wiltshire Council,16/02/2016,5106831833,337.24,Abicare Services Ltd Homecare ,110031,SP2 ,Community Services,South Locality OP,Adult Domiciliary Care - Spot,Third Party Payments,REVENUE
http://statistics.data.gov.uk/id/local-authority/00HY,Wiltshire Council,17/02/2016,5106832042,394.31,Abicare Services Ltd Homecare ,110031,SP2 ,Community Services,MH OP North Locality,Adult Domiciliary Care - Mileage,Third Party Payments,REVENUE
http://statistics.data.gov.uk/id/local-authority/00HY,Wiltshire Council,24/02/2016,5106833387,525.31,Abicare Services Ltd Homecare ,110031,SP2 ,Community Services,West Locality OP,Adult Domiciliary Care - Spot Contribution,Income,REVENUE
http://statistics.data.gov.uk/id/local-authority/00HY,Wiltshire Council,05/02/2016,5106817567,723.38,Abicare Services Ltd Live in Care. ,113071,SP2 ,Community Services,CTPLD Place CIC U65,Adult Domiciliary Care - Live in Care,Third Party Payments,REVENUE
http://statistics.data.gov.uk/id/local-authority/00HY,Wiltshire Council,12/02/2016,5106818471,723.38,Abicare Services Ltd Live in Care. ,113071,SP2 ,Community Services,CTPLD Place CIC U65,Adult Domiciliary Care - Live in Care,Third Party Payments,REVENUE
http://statistics.data.gov.uk/id/local-authority/00HY,Wiltshire Council,19/02/2016,5106819300,723.38,Abicare Services Ltd Live in Care. ,113071,SP2 ,Community Services,CTPLD Place CIC U65,Adult Domiciliary Care - Live in Care,Third Party Payments,REVENUE
http://statistics.data.gov.uk/id/local-authority/00HY,Wiltshire Council,02/02/2016,5106822702,771.19,Abicare Services Ltd Live in Care. ,113071,SP2 ,Community Services,East Locality OP,Adult Domiciliary Care - Live in Care,Third Party Payments,REVENUE
http://statistics.data.gov.uk/id/local-authority/00HY,Wiltshire Council,02/02/2016,5106822703,771.19,Abicare Services Ltd Live in Care. ,113071,SP2 ,Community Services,East Locality OP,Adult Domiciliary Care - Live in Care,Third Party Payments,REVENUE
http://statistics.data.gov.uk/id/local-authority/00HY,Wiltshire Council,02/02/2016,5106822704,771.19,Abicare Services Ltd Live in Care. ,113071,SP2 ,Community Services,East Locality OP,Adult Domiciliary Care - Live in Care,Third Party Payments,REVENUE
http://statistics.data.gov.uk/id/local-authority/00HY,Wiltshire Council,05/02/2016,5106824512,528.93,Abicare Services Ltd Live in Care. ,113071,SP2 ,Community Services,South Locality OP,Adult Domiciliary Care - Live in Care,Third Party Payments,REVENUE
http://statistics.data.gov.uk/id/local-authority/00HY,Wiltshire Council,05/02/2016,5106824515,768.48,Abicare Services Ltd Live in Care. ,113071,SP2 ,Community Services,OVA North Locality,Adult Domiciliary care - Live in contribution,Income,REVENUE
http://statistics.data.gov.uk/id/local-authority/00HY,Wiltshire Council,09/02/2016,5106828429,756.05,Abicare Services Ltd Live in Care. ,113071,SP2 ,Community Services,MH OP North Locality,Adult Domiciliary care - Live in contribution,Income,REVENUE
http://statistics.data.gov.uk/id/local-authority/00HY,Wiltshire Council,09/02/2016,5106828457,771.19,Abicare Services Ltd Live in Care. ,113071,SP2 ,Community Services,East Locality OP,Adult Domiciliary Care - Live in Care,Third Party Payments,REVENUE
http://statistics.data.gov.uk/id/local-authority/00HY,Wiltshire Council,09/02/2016,5106828458,771.19,Abicare Services Ltd Live in Care. ,113071,SP2 ,Community Services,East Locality OP,Adult Domiciliary Care - Live in Care,Third Party Payments,REVENUE
http://statistics.data.gov.uk/id/local-authority/00HY,Wiltshire Council,09/02/2016,5106828459,771.19,Abicare Services Ltd Live in Care. ,113071,SP2 ,Community Services,East Locality OP,Adult Domiciliary Care - Live in Care,Third Party Payments,REVENUE
http://statistics.data.gov.uk/id/local-authority/00HY,Wiltshire Council,09/02/2016,5106828470,771.19,Abicare Services Ltd Live in Care. ,113071,SP2 ,Community Services,East Locality OP,Adult Domiciliary Care - Live in Care,Third Party Payments,REVENUE
http://statistics.data.gov.uk/id/local-authority/00HY,Wiltshire Council,09/02/2016,5106828471,771.19,Abicare Services Ltd Live in Care. ,113071,SP2 ,Community Services,East Locality OP,Adult Domiciliary Care - Live in Care,Third Party Payments,REVENUE
http://statistics.data.gov.uk/id/local-authority/00HY,Wiltshire Council,15/02/2016,5106831644,708.90,Abicare Services Ltd Live in Care. ,113071,SP2 ,Community Services,East Locality OP,Adult Domiciliary care - Live in contribution,Income,REVENUE
http://statistics.data.gov.uk/id/local-authority/00HY,Wiltshire Council,17/02/2016,5106832046,308.08,Abicare Services Ltd Live in Care. ,113071,SP2 ,Community Services,South Locality OP,Adult Domiciliary care - Live in contribution,Income,REVENUE
http://statistics.data.gov.uk/id/local-authority/00HY,Wiltshire Council,17/02/2016,5106832047,308.08,Abicare Services Ltd Live in Care. ,113071,SP2 ,Community Services,South Locality OP,Adult Domiciliary care - Live in contribution,Income,REVENUE
http://statistics.data.gov.uk/id/local-authority/00HY,Wiltshire Council,17/02/2016,5106832048,308.08,Abicare Services Ltd Live in Care. ,113071,SP2 ,Community Services,South Locality OP,Adult Domiciliary care - Live in contribution,Income,REVENUE
http://statistics.data.gov.uk/id/local-authority/00HY,Wiltshire Council,17/02/2016,5106832049,308.08,Abicare Services Ltd Live in Care. ,113071,SP2 ,Community Services,South Locality OP,Adult Domiciliary care - Live in contribution,Income,REVENUE
http://statistics.data.gov.uk/id/local-authority/00HY,Wiltshire Council,17/02/2016,5106832050,308.08,Abicare Services Ltd Live in Care. ,113071,SP2 ,Community Services,South Locality OP,Adult Domiciliary care - Live in contribution,Income,REVENUE
http://statistics.data.gov.uk/id/local-authority/00HY,Wiltshire Council,17/02/2016,5106832051,308.08,Abicare Services Ltd Live in Care. ,113071,SP2 ,Community Services,South Locality OP,Adult Domiciliary care - Live in contribution,Income,REVENUE
http://statistics.data.gov.uk/id/local-authority/00HY,Wiltshire Council,17/02/2016,5106832053,367.11,Abicare Services Ltd Live in Care. ,113071,SP2 ,Community Services,South Locality OP,Adult Domiciliary Care - Live in Care,Third Party Payments,REVENUE
http://statistics.data.gov.uk/id/local-authority/00HY,Wiltshire Council,17/02/2016,5106832054,778.56,Abicare Services Ltd Live in Care. ,113071,SP2 ,Community Services,South Locality OP,Adult Domiciliary Care - Live in Care,Third Party Payments,REVENUE
http://statistics.data.gov.uk/id/local-authority/00HY,Wiltshire Council,17/02/2016,5106832055,768.48,Abicare Services Ltd Live in Care. ,113071,SP2 ,Community Services,OVA North Locality,Adult Domiciliary care - Live in contribution,Income,REVENUE
http://statistics.data.gov.uk/id/local-authority/00HY,Wiltshire Council,17/02/2016,5106832056,822.78,Abicare Services Ltd Live in Care. ,113071,SP2 ,Community Services,South Locality OP,Adult Domiciliary Care - Live in Care,Third Party Payments,REVENUE
http://statistics.data.gov.uk/id/local-authority/00HY,Wiltshire Council,17/02/2016,5106832086,822.78,Abicare Services Ltd Live in Care. ,113071,SP2 ,Community Services,South Locality OP,Adult Domiciliary Care - Live in Care,Third Party Payments,REVENUE
http://statistics.data.gov.uk/id/local-authority/00HY,Wiltshire Council,19/02/2016,5106832351,768.48,Abicare Services Ltd Live in Care. ,113071,SP2 ,Community Services,OVA North Locality,Adult Domiciliary care - Live in contribution,Income,REVENUE
http://statistics.data.gov.uk/id/local-authority/00HY,Wiltshire Council,25/02/2016,5106834190,756.05,Abicare Services Ltd Live in Care. ,113071,SP2 ,Community Services,MH OP North Locality,Adult Domiciliary care - Live in contribution,Income,REVENUE
http://statistics.data.gov.uk/id/local-authority/00HY,Wiltshire Council,25/02/2016,5106834191,756.05,Abicare Services Ltd Live in Care. ,113071,SP2 ,Community Services,MH OP North Locality,Adult Domiciliary care - Live in contribution,Income,REVENUE
http://statistics.data.gov.uk/id/local-authority/00HY,Wiltshire Council,25/02/2016,5106834192,756.05,Abicare Services Ltd Live in Care. ,113071,SP2 ,Community Services,MH OP North Locality,Adult Domiciliary care - Live in contribution,Income,REVENUE
http://statistics.data.gov.uk/id/local-authority/00HY,Wiltshire Council,10/02/2016,5106807829,4110.00,Ability Associates Ltd ,110033,SP3 ,Community Services,CTPLD Place CIC U65,Supported Living - Without SP payments,Third Party Payments,REVENUE
http://statistics.data.gov.uk/id/local-authority/00HY,Wiltshire Council,10/02/2016,5106818511,2585.00,Ability Associates Ltd ,110033,SP3 ,Community Services,CTPLD Place CIC U65,Supported Living - Without SP payments,Third Party Payments,REVENUE
http://statistics.data.gov.uk/id/local-authority/00HY,Wiltshire Council,05/02/2016,5106824592,6511.59,Ability Associates Ltd ,110033,SP3 ,Community Services,CTPLD Place CIC U65,Adult Residential Placements - Spot Purchase,Third Party Payments,REVENUE
http://statistics.data.gov.uk/id/local-authority/00HY,Wiltshire Council,05/02/2016,5106824594,6752.80,Ability Associates Ltd ,110033,SP3 ,Community Services,CTPLD Place CIC U65,Adult Residential Placements - Spot Purchase,Third Party Payments,REVENUE
http://statistics.data.gov.uk/id/local-authority/00HY,Wiltshire Council,05/02/2016,5106824596,6752.80,Ability Associates Ltd ,110033,SP3 ,Community Services,CTPLD Place CIC U65,Adult Residential Placements - Spot Purchase,Third Party Payments,REVENUE
http://statistics.data.gov.uk/id/local-authority/00HY,Wiltshire Council,10/02/2016,5106827198,4728.92,Ability Associates Ltd ,110033,SP3 ,Community Services,CTPLD Place CIC U65,Adult Residential Placements - Spot Purchase,Third Party Payments,REVENUE
http://statistics.data.gov.uk/id/local-authority/00HY,Wiltshire Council,10/02/2016,5106827688,6446.72,Ability Associates Ltd ,110033,SP3 ,Community Services,CTPLD Place CIC U65,Adult Residential Placements - Spot Purchase,Third Party Payments,REVENUE
http://statistics.data.gov.uk/id/local-authority/00HY,Wiltshire Council,10/02/2016,5106827747,4651.16,Ability Associates Ltd ,110033,SP3 ,Community Services,CTPLD Place CIC U65,Adult Residential Placements - Spot Purchase,Third Party Payments,REVENUE
http://statistics.data.gov.uk/id/local-authority/00HY,Wiltshire Council,10/02/2016,5106827781,6512.04,Ability Associates Ltd ,110033,SP3 ,Community Services,CTPLD Place CIC U65,Adult Residential Placements - Spot Purchase,Third Party Payments,REVENUE
http://statistics.data.gov.uk/id/local-authority/00HY,Wiltshire Council,10/02/2016,5106828315,6752.80,Ability Associates Ltd ,110033,SP3 ,Community Services,CTPLD Place CIC U65,Adult Residential Placements - Spot Purchase,Third Party Payments,REVENUE
http://statistics.data.gov.uk/id/local-authority/00HY,Wiltshire Council,10/02/2016,5106818526,425.32,ABLE ,101029,BA14,Community Services,MH AOWA North Locali,Supported Living - Without SP payments,Third Party Payments,REVENUE
http://statistics.data.gov.uk/id/local-authority/00HY,Wiltshire Council,10/02/2016,5106818549,425.32,ABLE ,101029,BA14,Community Services,MH AOWA North Locali,Supported Living - Without SP payments,Third Party Payments,REVENUE
http://statistics.data.gov.uk/id/local-authority/00HY,Wiltshire Council,10/02/2016,5106818554,425.32,ABLE ,101029,BA14,Community Services,MH AOWA North Locali,Supported Living - Without SP payments,Third Party Payments,REVENUE
http://statistics.data.gov.uk/id/local-authority/00HY,Wiltshire Council,10/02/2016,5106826964,2772.20,ABLE ,110034,BA14,Community Services,MH AOWA North Locali,Adult Residential Placements - Spot Purchase,Third Party Payments,REVENUE
http://statistics.data.gov.uk/id/local-authority/00HY,Wiltshire Council,10/02/2016,5106826982,2527.04,ABLE ,110034,BA14,Community Services,MH OP North Locality,Adult Residential Placements - Spot Purchase,Third Party Payments,REVENUE
http://statistics.data.gov.uk/id/local-authority/00HY,Wiltshire Council,10/02/2016,5106826986,2844.12,ABLE ,110034,BA14,Community Services,MH AOWA North Locali,Adult Residential Placements - Spot Purchase,Third Party Payments,REVENUE
http://statistics.data.gov.uk/id/local-authority/00HY,Wiltshire Council,10/02/2016,5106827853,3400.00,ABLE ,110034,BA14,Community Services,MH AOWA North Locali,Adult Residential Placements - Spot Purchase,Third Party Payments,REVENUE
http://statistics.data.gov.uk/id/local-authority/00HY,Wiltshire Council,10/02/2016,5106828287,3400.00,ABLE ,110034,BA14,Community Services,MH AOWA North Locali,Adult Residential Placements - Spot Purchase,Third Party Payments,REVENUE
http://statistics.data.gov.uk/id/local-authority/00HY,Wiltshire Council,05.02.2016,1901644259,905.00,AC  and  MS Ltd ,101175,SS8 ,Wiltshire Council,Wiltshire Council,Buildings Minor Alterations,Premises Related,CAPITAL
http://statistics.data.gov.uk/id/local-authority/00HY,Wiltshire Council,05.02.2016,1901644260,905.00,AC  and  MS Ltd ,101175,SS8 ,Wiltshire Council,Wiltshire Council,Buildings Minor Alterations,Premises Related,CAPITAL
http://statistics.data.gov.uk/id/local-authority/00HY,Wiltshire Council,11.02.2016,1901657809,3839.26,AC  and  MS Ltd ,101175,SS8 ,Resources,FM � Service Contrac,Preventative Property Maintenance,Premises Related,REVENUE
http://statistics.data.gov.uk/id/local-authority/00HY,Wiltshire Council,11.02.2016,1901657813,521.18,AC  and  MS Ltd ,101175,SS8 ,Resources,Unoccupied Sites,Preventative Property Maintenance,Premises Related,REVENUE
http://statistics.data.gov.uk/id/local-authority/00HY,Wiltshire Council,25.02.2016,1901658394,521.18,AC  and  MS Ltd ,101175,SS8 ,Resources,FM � Service Contrac,Preventative Property Maintenance,Premises Related,REVENUE
http://statistics.data.gov.uk/id/local-authority/00HY,Wiltshire Council,26.02.2016,1901658395,1161.85,AC  and  MS Ltd ,101175,SS8 ,Resources,FM � Service Contrac,Preventative Property Maintenance,Premises Related,REVENUE
http://statistics.data.gov.uk/id/local-authority/00HY,Wiltshire Council,25.02.2016,1901658396,10999.18,AC  and  MS Ltd ,101175,SS8 ,Resources,FM � Service Contrac,Preventative Property Maintenance,Premises Related,REVENUE
http://statistics.data.gov.uk/id/local-authority/00HY,Wiltshire Council,23.02.2016,1901672576,625.00,AC  and  MS Ltd ,101175,SS8 ,Wiltshire Council,Wiltshire Council,Payments to Contractors - Other,Third Party Payments,CAPITAL
http://statistics.data.gov.uk/id/local-authority/00HY,Wiltshire Council,04/02/2016,5106810695,635.00,AC  and  MS Ltd ,101175,SS8 ,Wiltshire Council,Wiltshire Council,Highways - Other Materials,Supplies and Services,CAPITAL
http://statistics.data.gov.uk/id/local-authority/00HY,Wiltshire Council,05/02/2016,5106824466,966.00,AC  and  MS Ltd ,101175,SS8 ,Wiltshire Council,Wiltshire Council,Premises Related Other Maintenance Costs,Premises Related,CAPITAL
http://statistics.data.gov.uk/id/local-authority/00HY,Wiltshire Council,05/02/2016,5106824467,483.00,AC  and  MS Ltd ,101175,SS8 ,Wiltshire Council,Wiltshire Council,Premises Related Other Maintenance Costs,Premises Related,CAPITAL
http://statistics.data.gov.uk/id/local-authority/00HY,Wiltshire Council,05/02/2016,5106824469,735.00,AC  and  MS Ltd ,101175,SS8 ,Wiltshire Council,Wiltshire Council,Premises Related Other Maintenance Costs,Premises Related,CAPITAL
http://statistics.data.gov.uk/id/local-authority/00HY,Wiltshire Council,05/02/2016,5106824486,777.00,AC  and  MS Ltd ,101175,SS8 ,Wiltshire Council,Wiltshire Council,Premises Related Other Maintenance Costs,Premises Related,CAPITAL
http://statistics.data.gov.uk/id/local-authority/00HY,Wiltshire Council,05/02/2016,5106824490,1077.00,AC  and  MS Ltd ,101175,SS8 ,Wiltshire Council,Wiltshire Council,Premises Related Other Maintenance Costs,Premises Related,CAPITAL
http://statistics.data.gov.uk/id/local-authority/00HY,Wiltshire Council,09/02/2016,5106828490,1069.00,AC  and  MS Ltd ,101175,SS8 ,Wiltshire Council,Wiltshire Council,Premises Related Other Maintenance Costs,Premises Related,CAPITAL
http://statistics.data.gov.uk/id/local-authority/00HY,Wiltshire Council,29/02/2016,5106828492,798.00,AC  and  MS Ltd ,101175,SS8 ,Wiltshire Council,Wiltshire Council,Premises Related Other Maintenance Costs,Premises Related,CAPITAL
http://statistics.data.gov.uk/id/local-authority/00HY,Wiltshire Council,29/02/2016,5106828493,1113.00,AC  and  MS Ltd ,101175,SS8 ,Wiltshire Council,Wiltshire Council,Premises Related Other Maintenance Costs,Premises Related,CAPITAL
http://statistics.data.gov.uk/id/local-authority/00HY,Wiltshire Council,26/02/2016,5106828494,870.00,AC  and  MS Ltd ,101175,SS8 ,Wiltshire Council,Wiltshire Council,Premises Related Other Maintenance Costs,Premises Related,CAPITAL
http://statistics.data.gov.uk/id/local-authority/00HY,Wiltshire Council,09/02/2016,5106828513,825.00,AC  and  MS Ltd ,101175,SS8 ,Wiltshire Council,Wiltshire Council,Premises Related Other Maintenance Costs,Premises Related,CAPITAL
http://statistics.data.gov.uk/id/local-authority/00HY,Wiltshire Council,22/02/2016,5106828517,1239.00,AC  and  MS Ltd ,101175,SS8 ,Wiltshire Council,Wiltshire Council,Premises Related Other Maintenance Costs,Premises Related,CAPITAL
http://statistics.data.gov.uk/id/local-authority/00HY,Wiltshire Council,22/02/2016,5106828518,772.00,AC  and  MS Ltd ,101175,SS8 ,Wiltshire Council,Wiltshire Council,Premises Related Other Maintenance Costs,Premises Related,CAPITAL
http://statistics.data.gov.uk/id/local-authority/00HY,Wiltshire Council,10/02/2016,5106828641,525.00,AC  and  MS Ltd ,101175,SS8 ,Wiltshire Council,Wiltshire Council,Premises Related Other Maintenance Costs,Premises Related,CAPITAL
http://statistics.data.gov.uk/id/local-authority/00HY,Wiltshire Council,10/02/2016,5106828642,1069.00,AC  and  MS Ltd ,101175,SS8 ,Wiltshire Council,Wiltshire Council,Premises Related Other Maintenance Costs,Premises Related,CAPITAL
http://statistics.data.gov.uk/id/local-authority/00HY,Wiltshire Council,10/02/2016,5106828644,1260.00,AC  and  MS Ltd ,101175,SS8 ,Wiltshire Council,Wiltshire Council,Premises Related Other Maintenance Costs,Premises Related,CAPITAL
http://statistics.data.gov.uk/id/local-authority/00HY,Wiltshire Council,11/02/2016,5106829367,903.00,AC  and  MS Ltd ,101175,SS8 ,Wiltshire Council,Wiltshire Council,Premises Related Other Maintenance Costs,Premises Related,CAPITAL
http://statistics.data.gov.uk/id/local-authority/00HY,Wiltshire Council,12/02/2016,5106829390,5740.00,AC  and  MS Ltd ,101175,SS8 ,Wiltshire Council,Wiltshire Council,Premises Related Other Maintenance Costs,Premises Related,CAPITAL
http://statistics.data.gov.uk/id/local-authority/00HY,Wiltshire Council,11/02/2016,5106829395,720.00,AC  and  MS Ltd ,101175,SS8 ,Wiltshire Council,Wiltshire Council,Premises Related Other Maintenance Costs,Premises Related,CAPITAL
http://statistics.data.gov.uk/id/local-authority/00HY,Wiltshire Council,11/02/2016,5106829401,1260.00,AC  and  MS Ltd ,101175,SS8 ,Wiltshire Council,Wiltshire Council,Premises Related Other Maintenance Costs,Premises Related,CAPITAL
http://statistics.data.gov.uk/id/local-authority/00HY,Wiltshire Council,11/02/2016,5106829418,1760.00,AC  and  MS Ltd ,101175,SS8 ,Wiltshire Council,Wiltshire Council,Premises Related Other Maintenance Costs,Premises Related,CAPITAL
http://statistics.data.gov.uk/id/local-authority/00HY,Wiltshire Council,17/02/2016,5106832097,625.00,AC  and  MS Ltd ,101175,SS8 ,Wiltshire Council,Wiltshire Council,Premises Related Other Maintenance Costs,Premises Related,CAPITAL
http://statistics.data.gov.uk/id/local-authority/00HY,Wiltshire Council,22/02/2016,5106832903,450.00,AC  and  MS Ltd ,101175,SS8 ,Wiltshire Council,Wiltshire Council,Premises Related Other Maintenance Costs,Premises Related,CAPITAL
http://statistics.data.gov.uk/id/local-authority/00HY,Wiltshire Council,19/02/2016,5106820407,624.00,Academy21 Ltd ,136859,SG1 ,Children & Education,EOTAS Service,Educational Fees,Supplies and Services,REVENUE
http://statistics.data.gov.uk/id/local-authority/00HY,Wiltshire Council,24/02/2016,5106825041,416.00,Academy21 Ltd ,136859,SG1 ,Children & Education,EOTAS Service,Educational Fees,Supplies and Services,REVENUE
http://statistics.data.gov.uk/id/local-authority/00HY,Wiltshire Council,05/02/2016,5106824756,3003.42,Access Care Ltd ,110037,SP10,Community Services,OVA East Locality,Adult Domiciliary Care - Live in Care,Third Party Payments,REVENUE
http://statistics.data.gov.uk/id/local-authority/00HY,Wiltshire Council,18/02/2016,5106832336,2803.19,Access Care Ltd ,110037,SP10,Community Services,OVA East Locality,Adult Domiciliary care - Live in contribution,Income,REVENUE
http://statistics.data.gov.uk/id/local-authority/00HY,Wiltshire Council,22/02/2016,5106829459,490.57,ACS Business Supplies ,141475,BD16,Resources,Infrastructure,Hardware Maintenance,Supplies and Services,REVENUE
http://statistics.data.gov.uk/id/local-authority/00HY,Wiltshire Council,02/02/2016,5106822671,2627.00,Action on Addiction ,110046,SP3 ,Children & Education,YPSM Commissioning,Substance Misuse - Payments to Contractors,Third Party Payments,REVENUE
http://statistics.data.gov.uk/id/local-authority/00HY,Wiltshire Council,02/02/2016,5106822701,1022.00,Action on Addiction ,110046,SP3 ,Community Services,(9)ResPlacementsPCT,Adult Residential Placements - Substance Misuse,Third Party Payments,REVENUE
http://statistics.data.gov.uk/id/local-authority/00HY,Wiltshire Council,02/02/2016,5106822701,1022.00,Action on Addiction ,110046,SP3 ,Community Services,(9)ResPlacementsCIC,Adult Residential Placements - Substance Misuse,Third Party Payments,REVENUE
http://statistics.data.gov.uk/id/local-authority/00HY,Wiltshire Council,05/02/2016,5106824755,1573.78,Action on Hearing Loss ,112215,EC1Y,Community Services,OVA North Locality,Adult Day Care - Spot,Third Party Payments,REVENUE
http://statistics.data.gov.uk/id/local-authority/00HY,Wiltshire Council,10/02/2016,5106825425,6270.44,Action on Hearing Loss ,112215,EC1Y,Community Services,South Locality OP,Adult Residential Placements - Spot Purchase,Third Party Payments,REVENUE
http://statistics.data.gov.uk/id/local-authority/00HY,Wiltshire Council,10/02/2016,5106825955,3800.00,Action on Hearing Loss ,112215,EC1Y,Community Services,OVA North Locality,Adult Residential Placements - Spot Purchase,Third Party Payments,REVENUE
http://statistics.data.gov.uk/id/local-authority/00HY,Wiltshire Council,10/02/2016,5106826861,5421.84,Action on Hearing Loss ,112215,EC1Y,Community Services,North Locality OP,Adult Residential Placements - Spot Purchase,Third Party Payments,REVENUE
http://statistics.data.gov.uk/id/local-authority/00HY,Wiltshire Council,16/02/2016,5106831975,480.00,Action on Hearing Loss ,112215,EC1Y,Community Services,OVA North Locality,Supported Living - Without SP payments,Third Party Payments,REVENUE
http://statistics.data.gov.uk/id/local-authority/00HY,Wiltshire Council,16/02/2016,5106831976,1573.87,Action on Hearing Loss ,112215,EC1Y,Community Services,OVA North Locality,Adult Day Care - Spot,Third Party Payments,REVENUE
http://statistics.data.gov.uk/id/local-authority/00HY,Wiltshire Council,23/02/2016,5106831861,2608.86,Action on Hearing Loss ,120413,PE2 ,Community Services,Hearing & Vision,Client Aids and Adaptations,Third Party Payments,REVENUE
http://statistics.data.gov.uk/id/local-authority/00HY,Wiltshire Council,25/02/2016,5106831869,724.88,Action on Hearing Loss ,120413,PE2 ,Community Services,Hearing & Vision,Client Aids and Adaptations,Third Party Payments,REVENUE
http://statistics.data.gov.uk/id/local-authority/00HY,Wiltshire Council,16/02/2016,5106822170,265.00,Adams Morey Ltd ,110053,SP2 ,Neighbourhood & Planning,Fleet Operations,Vehicle Parts,Transport Related,REVENUE
http://statistics.data.gov.uk/id/local-authority/00HY,Wiltshire Council,02/02/2016,5106822796,291.00,Adams Morey Ltd ,110053,SP2 ,Neighbourhood & Planning,Fleet Operations,Vehicle Parts,Transport Related,REVENUE
http://statistics.data.gov.uk/id/local-authority/00HY,Wiltshire Council,02/02/2016,5106822798,902.13,Adams Morey Ltd ,110053,SP2 ,Neighbourhood & Planning,Fleet Operations,Vehicle Parts,Transport Related,REVENUE
http://statistics.data.gov.uk/id/local-authority/00HY,Wiltshire Council,11/02/2016,5106824122,255.40,Adams Morey Ltd ,110053,SP2 ,Neighbourhood & Planning,Fleet Operations,Vehicle Parts,Transport Related,REVENUE
http://statistics.data.gov.uk/id/local-authority/00HY,Wiltshire Council,11/02/2016,5106824131,1120.35,Adams Morey Ltd ,110053,SP2 ,Neighbourhood & Planning,Fleet Operations,Vehicle Parts,Transport Related,REVENUE
http://statistics.data.gov.uk/id/local-authority/00HY,Wiltshire Council,11/02/2016,5106824159,391.13,Adams Morey Ltd ,110053,SP2 ,Neighbourhood & Planning,Fleet Operations,Vehicle Parts,Transport Related,REVENUE
http://statistics.data.gov.uk/id/local-authority/00HY,Wiltshire Council,16/02/2016,5106824174,356.10,Adams Morey Ltd ,110053,SP2 ,Neighbourhood & Planning,Fleet Operations,Vehicle Parts,Transport Related,REVENUE
http://statistics.data.gov.uk/id/local-authority/00HY,Wiltshire Council,16/02/2016,5106824222,539.46,Adams Morey Ltd ,110053,SP2 ,Neighbourhood & Planning,Fleet Operations,Vehicle Parts,Transport Related,REVENUE
http://statistics.data.gov.uk/id/local-authority/00HY,Wiltshire Council,16/02/2016,5106824312,725.79,Adams Morey Ltd ,110053,SP2 ,Neighbourhood & Planning,Fleet Operations,Vehicle Parts,Transport Related,REVENUE
http://statistics.data.gov.uk/id/local-authority/00HY,Wiltshire Council,26/02/2016,5106833074,257.56,Adams Morey Ltd ,110053,SP2 ,Neighbourhood & Planning,Fleet Operations,Vehicle Parts,Transport Related,REVENUE
http://statistics.data.gov.uk/id/local-authority/00HY,Wiltshire Council,23/02/2016,5106833076,278.57,Adams Morey Ltd ,110053,SP2 ,Neighbourhood & Planning,Fleet Operations,Vehicle Parts,Transport Related,REVENUE
http://statistics.data.gov.uk/id/local-authority/00HY,Wiltshire Council,23/02/2016,5106833077,463.54,Adams Morey Ltd ,110053,SP2 ,Neighbourhood & Planning,Fleet Operations,Vehicle Parts,Transport Related,REVENUE
http://statistics.data.gov.uk/id/local-authority/00HY,Wiltshire Council,26/02/2016,5106835680,830.78,Adams Morey Ltd ,110053,SP2 ,Neighbourhood & Planning,Fleet Operations,Vehicle Parts,Transport Related,REVENUE
http://statistics.data.gov.uk/id/local-authority/00HY,Wiltshire Council,26/02/2016,5106835690,485.56,Adams Morey Ltd ,110053,SP2 ,Neighbourhood & Planning,Fleet Operations,Vehicle Parts,Transport Related,REVENUE
http://statistics.data.gov.uk/id/local-authority/00HY,Wiltshire Council,26/02/2016,5106835702,265.00,Adams Morey Ltd ,110053,SP2 ,Neighbourhood & Planning,Fleet Operations,Vehicle Parts,Transport Related,REVENUE
http://statistics.data.gov.uk/id/local-authority/00HY,Wiltshire Council,26/02/2016,5106835703,309.00,Adams Morey Ltd ,110053,SP2 ,Neighbourhood & Planning,Fleet Operations,Vehicle Parts,Transport Related,REVENUE
http://statistics.data.gov.uk/id/local-authority/00HY,Wiltshire Council,26/02/2016,5106835715,913.87,Adams Morey Ltd ,110053,SP2 ,Neighbourhood & Planning,Fleet Operations,Vehicle Parts,Transport Related,REVENUE
http://statistics.data.gov.uk/id/local-authority/00HY,Wiltshire Council,26/02/2016,5106835722,462.53,Adams Morey Ltd ,110053,SP2 ,Neighbourhood & Planning,Fleet Operations,Vehicle Parts,Transport Related,REVENUE
http://statistics.data.gov.uk/id/local-authority/00HY,Wiltshire Council,26/02/2016,5106835738,305.18,Adams Morey Ltd ,110053,SP2 ,Neighbourhood & Planning,Fleet Operations,Vehicle Parts,Transport Related,REVENUE
http://statistics.data.gov.uk/id/local-authority/00HY,Wiltshire Council,26/02/2016,5106835751,623.79,Adams Morey Ltd ,110053,SP2 ,Neighbourhood & Planning,Fleet Operations,Vehicle Parts,Transport Related,REVENUE
http://statistics.data.gov.uk/id/local-authority/00HY,Wiltshire Council,29/02/2016,5106836008,257.49,Adams Morey Ltd ,110053,SP2 ,Neighbourhood & Planning,Fleet Operations,Vehicle Parts,Transport Related,REVENUE
http://statistics.data.gov.uk/id/local-authority/00HY,Wiltshire Council,29/02/2016,5106836013,255.13,Adams Morey Ltd ,110053,SP2 ,Neighbourhood & Planning,Fleet Operations,Vehicle Parts,Transport Related,REVENUE
http://statistics.data.gov.uk/id/local-authority/00HY,Wiltshire Council,29/02/2016,5106836016,428.97,Adams Morey Ltd ,110053,SP2 ,Neighbourhood & Planning,Fleet Operations,Vehicle Parts,Transport Related,REVENUE
http://statistics.data.gov.uk/id/local-authority/00HY,Wiltshire Council,29/02/2016,5106836060,475.95,Adams Morey Ltd ,110053,SP2 ,Neighbourhood & Planning,Fleet Operations,Vehicle Parts,Transport Related,REVENUE
http://statistics.data.gov.uk/id/local-authority/00HY,Wiltshire Council,29/02/2016,5106836082,625.00,Adams Morey Ltd ,110053,SP2 ,Neighbourhood & Planning,Fleet Operations,Vehicle Parts,Transport Related,REVENUE
http://statistics.data.gov.uk/id/local-authority/00HY,Wiltshire Council,29/02/2016,5106836089,575.31,Adams Morey Ltd ,110053,SP2 ,Neighbourhood & Planning,Fleet Operations,Vehicle Parts,Transport Related,REVENUE
http://statistics.data.gov.uk/id/local-authority/00HY,Wiltshire Council,29/02/2016,5106836093,277.20,Adams Morey Ltd ,110053,SP2 ,Neighbourhood & Planning,Fleet Operations,Vehicle Parts,Transport Related,REVENUE
http://statistics.data.gov.uk/id/local-authority/00HY,Wiltshire Council,29/02/2016,5106836094,388.60,Adams Morey Ltd ,110053,SP2 ,Neighbourhood & Planning,Fleet Operations,Vehicle Parts,Transport Related,REVENUE
http://statistics.data.gov.uk/id/local-authority/00HY,Wiltshire Council,29/02/2016,5106836096,534.26,Adams Morey Ltd ,110053,SP2 ,Neighbourhood & Planning,Fleet Operations,Vehicle Parts,Transport Related,REVENUE
http://statistics.data.gov.uk/id/local-authority/00HY,Wiltshire Council,29/02/2016,5106836097,366.50,Adams Morey Ltd ,110053,SP2 ,Neighbourhood & Planning,Fleet Operations,Vehicle Parts,Transport Related,REVENUE
http://statistics.data.gov.uk/id/local-authority/00HY,Wiltshire Council,16/02/2016,5106831797,450.00,ADASS ,110054,CH7 ,Resources,Corporate Directors,Conference Fees,Supplies and Services,REVENUE
http://statistics.data.gov.uk/id/local-authority/00HY,Wiltshire Council,16/02/2016,5106831798,450.00,ADASS ,110054,CH7 ,Community Services,Strategy & Comm,Conference Fees,Supplies and Services,REVENUE
http://statistics.data.gov.uk/id/local-authority/00HY,Wiltshire Council,10/02/2016,5106825224,2449.24,Adiemus Care Limited - Ravenscroft ,132154,HA1 ,Community Services,West Locality OP,Adult Residential Placements - Spot Purchase,Third Party Payments,REVENUE
http://statistics.data.gov.uk/id/local-authority/00HY,Wiltshire Council,10/02/2016,5106825322,1505.80,Adiemus Care Limited - Ravenscroft ,132154,HA1 ,Community Services,West Locality OP,Adult Care Nursing Placements- Spot Purchase,Third Party Payments,REVENUE
http://statistics.data.gov.uk/id/local-authority/00HY,Wiltshire Council,10/02/2016,5106825323,448.00,Adiemus Care Limited - Ravenscroft ,132154,HA1 ,Community Services,OP West FNC,Adult Care Funded Nursing Care - Loal Auth Clients,Third Party Payments,REVENUE
http://statistics.data.gov.uk/id/local-authority/00HY,Wiltshire Council,10/02/2016,5106825901,2096.72,Adiemus Care Limited - Ravenscroft ,132154,HA1 ,Community Services,West Locality OP,Adult Care Nursing Placements- Spot Purchase,Third Party Payments,REVENUE
http://statistics.data.gov.uk/id/local-authority/00HY,Wiltshire Council,10/02/2016,5106825902,448.00,Adiemus Care Limited - Ravenscroft ,132154,HA1 ,Community Services,OP West FNC,Adult Care Funded Nursing Care - Loal Auth Clients,Third Party Payments,REVENUE
http://statistics.data.gov.uk/id/local-authority/00HY,Wiltshire Council,10/02/2016,5106826537,2086.40,Adiemus Care Limited - Ravenscroft ,132154,HA1 ,Community Services,West Locality OP,Adult Care Nursing Placements- Spot Purchase,Third Party Payments,REVENUE
http://statistics.data.gov.uk/id/local-authority/00HY,Wiltshire Council,10/02/2016,5106826538,448.00,Adiemus Care Limited - Ravenscroft ,132154,HA1 ,Community Services,OP West FNC,Adult Care Funded Nursing Care - Loal Auth Clients,Third Party Payments,REVENUE
http://statistics.data.gov.uk/id/local-authority/00HY,Wiltshire Council,10/02/2016,5106827244,2452.00,Adiemus Care Limited - Ravenscroft ,132154,HA1 ,Community Services,West Locality OP,Adult Care Nursing Placements- Spot Purchase,Third Party Payments,REVENUE
http://statistics.data.gov.uk/id/local-authority/00HY,Wiltshire Council,10/02/2016,5106827245,448.00,Adiemus Care Limited - Ravenscroft ,132154,HA1 ,Community Services,OP West FNC,Adult Care Funded Nursing Care - Loal Auth Clients,Third Party Payments,REVENUE
http://statistics.data.gov.uk/id/local-authority/00HY,Wiltshire Council,10/02/2016,5106827422,2096.72,Adiemus Care Limited - Ravenscroft ,132154,HA1 ,Community Services,West Locality OP,Adult Care Nursing Placements- Spot Purchase,Third Party Payments,REVENUE
http://statistics.data.gov.uk/id/local-authority/00HY,Wiltshire Council,10/02/2016,5106827423,448.00,Adiemus Care Limited - Ravenscroft ,132154,HA1 ,Community Services,OP West FNC,Adult Care Funded Nursing Care - Loal Auth Clients,Third Party Payments,REVENUE
http://statistics.data.gov.uk/id/local-authority/00HY,Wiltshire Council,10/02/2016,5106827444,2096.72,Adiemus Care Limited - Ravenscroft ,132154,HA1 ,Community Services,West Locality OP,Adult Care Nursing Placements- Spot Purchase,Third Party Payments,REVENUE
http://statistics.data.gov.uk/id/local-authority/00HY,Wiltshire Council,10/02/2016,5106827445,448.00,Adiemus Care Limited - Ravenscroft ,132154,HA1 ,Community Services,OP West FNC,Adult Care Funded Nursing Care - Loal Auth Clients,Third Party Payments,REVENUE
http://statistics.data.gov.uk/id/local-authority/00HY,Wiltshire Council,10/02/2016,5106827497,2096.72,Adiemus Care Limited - Ravenscroft ,132154,HA1 ,Community Services,West Locality OP,Adult Care Nursing Placements- Spot Purchase,Third Party Payments,REVENUE
http://statistics.data.gov.uk/id/local-authority/00HY,Wiltshire Council,10/02/2016,5106827498,448.00,Adiemus Care Limited - Ravenscroft ,132154,HA1 ,Community Services,OP West FNC,Adult Care Funded Nursing Care - Loal Auth Clients,Third Party Payments,REVENUE
http://statistics.data.gov.uk/id/local-authority/00HY,Wiltshire Council,10/02/2016,5106825535,1887.20,Admirals Reach BUPA,137917,CM1 ,Community Services,South Locality OP,Adult Care Nursing Placements- Spot Purchase,Third Party Payments,REVENUE
http://statistics.data.gov.uk/id/local-authority/00HY,Wiltshire Council,12/02/2016,5106823873,9700.00,Adoption UK ,110057,OX16,Children & Education,Adoption Support Fun,Adoption Support,Third Party Payments,REVENUE
http://statistics.data.gov.uk/id/local-authority/00HY,Wiltshire Council,12/02/2016,5106823874,10500.00,Adoption UK ,110057,OX16,Children & Education,Adoption Support Fun,Adoption Support,Third Party Payments,REVENUE
http://statistics.data.gov.uk/id/local-authority/00HY,Wiltshire Council,18.02.2016,1901672162,1219.21,Adrains Engineering Psv ,100848,SN15,Neighbourhood & Planning,Mainstream Secondary,Transport Contracts,Third Party Payments,REVENUE
http://statistics.data.gov.uk/id/local-authority/00HY,Wiltshire Council,18.02.2016,1901672163,3006.11,Adrains Engineering Psv ,100848,SN15,Neighbourhood & Planning,Mainstream Secondary,Transport Contracts,Third Party Payments,REVENUE
http://statistics.data.gov.uk/id/local-authority/00HY,Wiltshire Council,18.02.2016,1901672179,643.70,Adrains Engineering Psv ,100848,SN15,Neighbourhood & Planning,Mainstream 16+ Sec,Transport Contracts,Third Party Payments,REVENUE
http://statistics.data.gov.uk/id/local-authority/00HY,Wiltshire Council,18.02.2016,1901672179,2507.13,Adrains Engineering Psv ,100848,SN15,Neighbourhood & Planning,Mainstream Secondary,Transport Contracts,Third Party Payments,REVENUE
http://statistics.data.gov.uk/id/local-authority/00HY,Wiltshire Council,18.02.2016,1901672180,2755.90,Adrains Engineering Psv ,100848,SN15,Neighbourhood & Planning,Mainstream Secondary,Transport Contracts,Third Party Payments,REVENUE
http://statistics.data.gov.uk/id/local-authority/00HY,Wiltshire Council,18.02.2016,1901672181,3968.30,Adrains Engineering Psv ,100848,SN15,Neighbourhood & Planning,Mainstream Secondary,Transport Contracts,Third Party Payments,REVENUE
http://statistics.data.gov.uk/id/local-authority/00HY,Wiltshire Council,18.02.2016,1901672182,3035.09,Adrains Engineering Psv ,100848,SN15,Neighbourhood & Planning,Mainstream Primary,Transport Contracts,Third Party Payments,REVENUE
http://statistics.data.gov.uk/id/local-authority/00HY,Wiltshire Council,18.02.2016,1901672183,2919.35,Adrains Engineering Psv ,100848,SN15,Neighbourhood & Planning,Mainstream Secondary,Transport Contracts,Third Party Payments,REVENUE
http://statistics.data.gov.uk/id/local-authority/00HY,Wiltshire Council,18.02.2016,1901672184,3333.33,Adrains Engineering Psv ,100848,SN15,Neighbourhood & Planning,Mainstream Primary,Transport Contracts,Third Party Payments,REVENUE
http://statistics.data.gov.uk/id/local-authority/00HY,Wiltshire Council,18.02.2016,1901672184,4596.67,Adrains Engineering Psv ,100848,SN15,Neighbourhood & Planning,Public Transport,Transport Contracts,Third Party Payments,REVENUE
http://statistics.data.gov.uk/id/local-authority/00HY,Wiltshire Council,19.02.2016,1901672388,3333.33,Adrains Engineering Psv ,100848,SN15,Neighbourhood & Planning,Mainstream Secondary,Transport Contracts,Third Party Payments,REVENUE
http://statistics.data.gov.uk/id/local-authority/00HY,Wiltshire Council,19.02.2016,1901672388,3421.22,Adrains Engineering Psv ,100848,SN15,Neighbourhood & Planning,Public Transport,Transport Contracts,Third Party Payments,REVENUE
http://statistics.data.gov.uk/id/local-authority/00HY,Wiltshire Council,25.02.2016,1901674215,524.08,Adrains Engineering Psv ,100848,SN15,Neighbourhood & Planning,Concessionary Fares,Compensation for Concessionary fares,Third Party Payments,REVENUE
http://statistics.data.gov.uk/id/local-authority/00HY,Wiltshire Council,12.02.2016,1901662073,6136.99,Advance Housing  and  Support Ltd ,110060,OX28,Neighbourhood & Planning,Strategy & Enabling,Payments to Contractors - Other,Third Party Payments,REVENUE
http://statistics.data.gov.uk/id/local-authority/00HY,Wiltshire Council,23/02/2016,5106833093,262.29,AG Family Support Limited ,143133,BN6 ,Children & Education,HQ Social Care,Witness / Jurors' / Justice's Expenses,Supplies and Services,REVENUE
http://statistics.data.gov.uk/id/local-authority/00HY,Wiltshire Council,05/02/2016,5106824368,1200.08,AginCare Live In Care Services Ltd ,110071,DT5 ,Community Services,CTPLD Place CIC U65,Adult Domiciliary Care - Live in Care,Third Party Payments,REVENUE
http://statistics.data.gov.uk/id/local-authority/00HY,Wiltshire Council,05/02/2016,5106824369,1200.08,AginCare Live In Care Services Ltd ,110071,DT5 ,Community Services,CTPLD Place CIC U65,Adult Domiciliary Care - Live in Care,Third Party Payments,REVENUE
http://statistics.data.gov.uk/id/local-authority/00HY,Wiltshire Council,09/02/2016,5106828480,815.01,AginCare Live In Care Services Ltd ,110071,DT5 ,Community Services,West Locality OP,Adult Domiciliary Care - Live in Care,Third Party Payments,REVENUE
http://statistics.data.gov.uk/id/local-authority/00HY,Wiltshire Council,23/02/2016,5106833305,1499.96,AginCare Live In Care Services Ltd ,110071,DT5 ,Community Services,OVA West Locality,Adult Domiciliary Care - Live in Care,Third Party Payments,REVENUE
http://statistics.data.gov.uk/id/local-authority/00HY,Wiltshire Council,26/02/2016,5106835962,789.98,AginCare Live In Care Services Ltd ,110071,DT5 ,Community Services,South Locality OP,Adult Domiciliary care - Live in contribution,Income,REVENUE
http://statistics.data.gov.uk/id/local-authority/00HY,Wiltshire Council,23/02/2016,5106833306,916.04,Agincare Ltd ,110069,DT5 ,Community Services,North Locality OP,Adult Domiciliary Care - Spot Contribution,Income,REVENUE
http://statistics.data.gov.uk/id/local-authority/00HY,Wiltshire Council,17/02/2016,5106824430,349.00,Airquee Ltd ,110080,BS5 ,Neighbourhood & Planning,Durrington SwimmingP,Equipment Purchase,Supplies and Services,REVENUE
http://statistics.data.gov.uk/id/local-authority/00HY,Wiltshire Council,09/02/2016,5106825011,500.00,AIRSPACE SOLUTIONS COM LTD ,110081,NP22,Neighbourhood & Planning,Springfield Leisr Cn,Equipment Purchase,Supplies and Services,REVENUE
http://statistics.data.gov.uk/id/local-authority/00HY,Wiltshire Council,09/02/2016,5106825012,2585.00,AIRSPACE SOLUTIONS COM LTD ,110081,NP22,Neighbourhood & Planning,Springfield Leisr Cn,Equipment Purchase,Supplies and Services,REVENUE
http://statistics.data.gov.uk/id/local-authority/00HY,Wiltshire Council,09/02/2016,5106825013,7070.00,AIRSPACE SOLUTIONS COM LTD ,110081,NP22,Neighbourhood & Planning,Springfield Leisr Cn,Equipment Purchase,Supplies and Services,REVENUE
http://statistics.data.gov.uk/id/local-authority/00HY,Wiltshire Council,11.02.2016,1901661781,456.00,Akcess Ltd ,101402,SN2 ,Neighbourhood & Planning,Mainstream 16+ FE,Transport Contracts,Third Party Payments,REVENUE
http://statistics.data.gov.uk/id/local-authority/00HY,Wiltshire Council,16.02.2016,1901663578,1849.97,Akcess Ltd ,101402,SN2 ,Neighbourhood & Planning,Mainstream Primary,Transport Contracts,Third Party Payments,REVENUE
http://statistics.data.gov.uk/id/local-authority/00HY,Wiltshire Council,16.02.2016,1901663579,1564.33,Akcess Ltd ,101402,SN2 ,Neighbourhood & Planning,Mainstream Secondary,Transport Contracts,Third Party Payments,REVENUE
http://statistics.data.gov.uk/id/local-authority/00HY,Wiltshire Council,16.02.2016,1901663581,1916.15,Akcess Ltd ,101402,SN2 ,Neighbourhood & Planning,Mainstream Primary,Transport Contracts,Third Party Payments,REVENUE
http://statistics.data.gov.uk/id/local-authority/00HY,Wiltshire Council,16.02.2016,1901663582,1022.25,Akcess Ltd ,101402,SN2 ,Neighbourhood & Planning,Mainstream Primary,Transport Contracts,Third Party Payments,REVENUE
http://statistics.data.gov.uk/id/local-authority/00HY,Wiltshire Council,16.02.2016,1901663583,1022.25,Akcess Ltd ,101402,SN2 ,Neighbourhood & Planning,Mainstream Primary,Transport Contracts,Third Party Payments,REVENUE
http://statistics.data.gov.uk/id/local-authority/00HY,Wiltshire Council,16.02.2016,1901663584,1635.45,Akcess Ltd ,101402,SN2 ,Neighbourhood & Planning,Mainstream Secondary,Transport Contracts,Third Party Payments,REVENUE
http://statistics.data.gov.uk/id/local-authority/00HY,Wiltshire Council,16.02.2016,1901663585,1863.88,Akcess Ltd ,101402,SN2 ,Neighbourhood & Planning,Mainstream Secondary,Transport Contracts,Third Party Payments,REVENUE
http://statistics.data.gov.uk/id/local-authority/00HY,Wiltshire Council,16.02.2016,1901663586,1007.00,Akcess Ltd ,101402,SN2 ,Neighbourhood & Planning,Mainstream Secondary,Transport Contracts,Third Party Payments,REVENUE
http://statistics.data.gov.uk/id/local-authority/00HY,Wiltshire Council,16.02.2016,1901663587,1007.00,Akcess Ltd ,101402,SN2 ,Neighbourhood & Planning,Mainstream Secondary,Transport Contracts,Third Party Payments,REVENUE
http://statistics.data.gov.uk/id/local-authority/00HY,Wiltshire Council,16.02.2016,1901663588,1421.83,Akcess Ltd ,101402,SN2 ,Neighbourhood & Planning,Mainstream Secondary,Transport Contracts,Third Party Payments,REVENUE
http://statistics.data.gov.uk/id/local-authority/00HY,Wiltshire Council,16.02.2016,1901663589,1833.17,Akcess Ltd ,101402,SN2 ,Neighbourhood & Planning,Mainstream Primary,Transport Contracts,Third Party Payments,REVENUE
http://statistics.data.gov.uk/id/local-authority/00HY,Wiltshire Council,16.02.2016,1901663590,933.33,Akcess Ltd ,101402,SN2 ,Neighbourhood & Planning,Mainstream Primary,Transport Contracts,Third Party Payments,REVENUE
http://statistics.data.gov.uk/id/local-authority/00HY,Wiltshire Council,16.02.2016,1901663590,1733.34,Akcess Ltd ,101402,SN2 ,Neighbourhood & Planning,Mainstream Secondary,Transport Contracts,Third Party Payments,REVENUE
http://statistics.data.gov.uk/id/local-authority/00HY,Wiltshire Council,16.02.2016,1901663591,2166.67,Akcess Ltd ,101402,SN2 ,Neighbourhood & Planning,Mainstream Primary,Transport Contracts,Third Party Payments,REVENUE
http://statistics.data.gov.uk/id/local-authority/00HY,Wiltshire Council,16.02.2016,1901663592,288.00,Akcess Ltd ,101402,SN2 ,Community Services,OVA East Locality,Transport Contracts,Third Party Payments,REVENUE
http://statistics.data.gov.uk/id/local-authority/00HY,Wiltshire Council,16.02.2016,1901663592,576.00,Akcess Ltd ,101402,SN2 ,Community Services,OVA North Locality,Transport Contracts,Third Party Payments,REVENUE
http://statistics.data.gov.uk/id/local-authority/00HY,Wiltshire Council,16.02.2016,1901663593,1786.63,Akcess Ltd ,101402,SN2 ,Neighbourhood & Planning,Mainstream Primary,Transport Contracts,Third Party Payments,REVENUE
http://statistics.data.gov.uk/id/local-authority/00HY,Wiltshire Council,16.02.2016,1901663594,1472.50,Akcess Ltd ,101402,SN2 ,Neighbourhood & Planning,Mainstream Secondary,Transport Contracts,Third Party Payments,REVENUE
http://statistics.data.gov.uk/id/local-authority/00HY,Wiltshire Council,16.02.2016,1901663595,448.96,Akcess Ltd ,101402,SN2 ,Neighbourhood & Planning,Mainstream Secondary,Transport Contracts,Third Party Payments,REVENUE
http://statistics.data.gov.uk/id/local-authority/00HY,Wiltshire Council,16.02.2016,1901663595,1459.04,Akcess Ltd ,101402,SN2 ,Neighbourhood & Planning,Mainstream Primary,Transport Contracts,Third Party Payments,REVENUE
http://statistics.data.gov.uk/id/local-authority/00HY,Wiltshire Council,16.02.2016,1901663598,1352.47,Akcess Ltd ,101402,SN2 ,Neighbourhood & Planning,SEN 16+ FE Colleges,Transport Contracts,Third Party Payments,REVENUE
http://statistics.data.gov.uk/id/local-authority/00HY,Wiltshire Council,16.02.2016,1901663598,2704.93,Akcess Ltd ,101402,SN2 ,Neighbourhood & Planning,SEN Secondary,Transport Contracts,Third Party Payments,REVENUE
http://statistics.data.gov.uk/id/local-authority/00HY,Wiltshire Council,16.02.2016,1901663599,476.17,Akcess Ltd ,101402,SN2 ,Neighbourhood & Planning,Mainstream Secondary,Transport Contracts,Third Party Payments,REVENUE
http://statistics.data.gov.uk/id/local-authority/00HY,Wiltshire Council,16.02.2016,1901663599,2095.14,Akcess Ltd ,101402,SN2 ,Neighbourhood & Planning,SEN Secondary,Transport Contracts,Third Party Payments,REVENUE
http://statistics.data.gov.uk/id/local-authority/00HY,Wiltshire Council,16.02.2016,1901663600,1165.32,Akcess Ltd ,101402,SN2 ,Neighbourhood & Planning,SEN Primary,Transport Contracts,Third Party Payments,REVENUE
http://statistics.data.gov.uk/id/local-authority/00HY,Wiltshire Council,16.02.2016,1901663600,1456.68,Akcess Ltd ,101402,SN2 ,Neighbourhood & Planning,SEN Secondary,Transport Contracts,Third Party Payments,REVENUE
http://statistics.data.gov.uk/id/local-authority/00HY,Wiltshire Council,16.02.2016,1901663601,631.75,Akcess Ltd ,101402,SN2 ,Neighbourhood & Planning,SEN Primary,Transport Contracts,Third Party Payments,REVENUE
http://statistics.data.gov.uk/id/local-authority/00HY,Wiltshire Council,16.02.2016,1901663601,631.75,Akcess Ltd ,101402,SN2 ,Neighbourhood & Planning,SEN 16+ Secondary,Transport Contracts,Third Party Payments,REVENUE
http://statistics.data.gov.uk/id/local-authority/00HY,Wiltshire Council,16.02.2016,1901663601,1263.50,Akcess Ltd ,101402,SN2 ,Neighbourhood & Planning,SEN Secondary,Transport Contracts,Third Party Payments,REVENUE
http://statistics.data.gov.uk/id/local-authority/00HY,Wiltshire Council,16.02.2016,1901663602,2464.30,Akcess Ltd ,101402,SN2 ,Neighbourhood & Planning,SEN Primary,Transport Contracts,Third Party Payments,REVENUE
http://statistics.data.gov.uk/id/local-authority/00HY,Wiltshire Council,16.02.2016,1901663603,762.24,Akcess Ltd ,101402,SN2 ,Neighbourhood & Planning,SEN 16+ FE Colleges,Transport Contracts,Third Party Payments,REVENUE
http://statistics.data.gov.uk/id/local-authority/00HY,Wiltshire Council,16.02.2016,1901663603,1829.36,Akcess Ltd ,101402,SN2 ,Neighbourhood & Planning,SEN 16+ Secondary,Transport Contracts,Third Party Payments,REVENUE
http://statistics.data.gov.uk/id/local-authority/00HY,Wiltshire Council,16.02.2016,1901663604,1415.50,Akcess Ltd ,101402,SN2 ,Neighbourhood & Planning,SEN Secondary,Transport Contracts,Third Party Payments,REVENUE
http://statistics.data.gov.uk/id/local-authority/00HY,Wiltshire Council,16.02.2016,1901663605,347.16,Akcess Ltd ,101402,SN2 ,Neighbourhood & Planning,SEN Primary,Transport Contracts,Third Party Payments,REVENUE
http://statistics.data.gov.uk/id/local-authority/00HY,Wiltshire Council,16.02.2016,1901663605,694.28,Akcess Ltd ,101402,SN2 ,Neighbourhood & Planning,SEN Secondary,Transport Contracts,Third Party Payments,REVENUE
http://statistics.data.gov.uk/id/local-authority/00HY,Wiltshire Council,16.02.2016,1901663605,1388.56,Akcess Ltd ,101402,SN2 ,Neighbourhood & Planning,Mainstream Secondary,Transport Contracts,Third Party Payments,REVENUE
http://statistics.data.gov.uk/id/local-authority/00HY,Wiltshire Council,16.02.2016,1901663606,1790.00,Akcess Ltd ,101402,SN2 ,Neighbourhood & Planning,Mainstream Primary,Transport Contracts,Third Party Payments,REVENUE
http://statistics.data.gov.uk/id/local-authority/00HY,Wiltshire Council,16.02.2016,1901663607,681.12,Akcess Ltd ,101402,SN2 ,Neighbourhood & Planning,Mainstream Secondary,Transport Contracts,Third Party Payments,REVENUE
http://statistics.data.gov.uk/id/local-authority/00HY,Wiltshire Council,16.02.2016,1901663608,831.25,Akcess Ltd ,101402,SN2 ,Neighbourhood & Planning,Mainstream Secondary,Transport Contracts,Third Party Payments,REVENUE
http://statistics.data.gov.uk/id/local-authority/00HY,Wiltshire Council,16.02.2016,1901663608,831.25,Akcess Ltd ,101402,SN2 ,Neighbourhood & Planning,SEN Primary,Transport Contracts,Third Party Payments,REVENUE
http://statistics.data.gov.uk/id/local-authority/00HY,Wiltshire Council,16.02.2016,1901663609,2905.10,Akcess Ltd ,101402,SN2 ,Neighbourhood & Planning,SEN Primary,Transport Contracts,Third Party Payments,REVENUE
http://statistics.data.gov.uk/id/local-authority/00HY,Wiltshire Council,16.02.2016,1901663610,1682.45,Akcess Ltd ,101402,SN2 ,Neighbourhood & Planning,Mainstream Secondary,Transport Contracts,Third Party Payments,REVENUE
http://statistics.data.gov.uk/id/local-authority/00HY,Wiltshire Council,19.02.2016,1901672381,877.43,Akcess Ltd ,101402,SN2 ,Neighbourhood & Planning,SEN Primary,Transport Contracts,Third Party Payments,REVENUE
http://statistics.data.gov.uk/id/local-authority/00HY,Wiltshire Council,19.02.2016,1901672381,2193.57,Akcess Ltd ,101402,SN2 ,Neighbourhood & Planning,SEN Secondary,Transport Contracts,Third Party Payments,REVENUE
http://statistics.data.gov.uk/id/local-authority/00HY,Wiltshire Council,24.02.2016,1901673460,1542.15,Akcess Ltd ,101402,SN2 ,Neighbourhood & Planning,SEN Post 19,Transport Contracts,Third Party Payments,REVENUE
http://statistics.data.gov.uk/id/local-authority/00HY,Wiltshire Council,25.02.2016,1901674163,1560.00,Akcess Ltd ,101402,SN2 ,Neighbourhood & Planning,Mainstream Primary,Transport Contracts,Third Party Payments,REVENUE
http://statistics.data.gov.uk/id/local-authority/00HY,Wiltshire Council,25.02.2016,1901674164,254.02,Akcess Ltd ,101402,SN2 ,Neighbourhood & Planning,SEN Secondary,Transport Contracts,Third Party Payments,REVENUE
http://statistics.data.gov.uk/id/local-authority/00HY,Wiltshire Council,25.02.2016,1901674164,634.95,Akcess Ltd ,101402,SN2 ,Neighbourhood & Planning,Mainstream 16+ Sec,Transport Contracts,Third Party Payments,REVENUE
http://statistics.data.gov.uk/id/local-authority/00HY,Wiltshire Council,25.02.2016,1901674164,2540.20,Akcess Ltd ,101402,SN2 ,Neighbourhood & Planning,Mainstream Secondary,Transport Contracts,Third Party Payments,REVENUE
http://statistics.data.gov.uk/id/local-authority/00HY,Wiltshire Council,12.02.2016,1901662059,1475.95,Alabare Christian Care Centre ,100837,SP2 ,Neighbourhood & Planning,Strategy & Enabling,Payments to Contractors - Other,Third Party Payments,REVENUE
http://statistics.data.gov.uk/id/local-authority/00HY,Wiltshire Council,12.02.2016,1901662061,2462.47,Alabare Christian Care Centre ,100837,SP2 ,Neighbourhood & Planning,Strategy & Enabling,Payments to Contractors - Other,Third Party Payments,REVENUE
http://statistics.data.gov.uk/id/local-authority/00HY,Wiltshire Council,12.02.2016,1901662066,2807.67,Alabare Christian Care Centre ,100837,SP2 ,Neighbourhood & Planning,Strategy & Enabling,Payments to Contractors - Other,Third Party Payments,REVENUE
http://statistics.data.gov.uk/id/local-authority/00HY,Wiltshire Council,12.02.2016,1901662069,3589.22,Alabare Christian Care Centre ,100837,SP2 ,Neighbourhood & Planning,Strategy & Enabling,Payments to Contractors - Other,Third Party Payments,REVENUE
http://statistics.data.gov.uk/id/local-authority/00HY,Wiltshire Council,12.02.2016,1901662070,3904.66,Alabare Christian Care Centre ,100837,SP2 ,Neighbourhood & Planning,Strategy & Enabling,Payments to Contractors - Other,Third Party Payments,REVENUE
http://statistics.data.gov.uk/id/local-authority/00HY,Wiltshire Council,12.02.2016,1901662077,9501.05,Alabare Christian Care Centre ,100837,SP2 ,Neighbourhood & Planning,Strategy & Enabling,Payments to Contractors - Other,Third Party Payments,REVENUE
http://statistics.data.gov.uk/id/local-authority/00HY,Wiltshire Council,12.02.2016,1901662081,25122.52,Alabare Christian Care Centre ,100837,SP2 ,Neighbourhood & Planning,Strategy & Enabling,Payments to Contractors - Other,Third Party Payments,REVENUE
http://statistics.data.gov.uk/id/local-authority/00HY,Wiltshire Council,10/02/2016,5106819771,3201.00,Alabare Christian Care Centre ,100837,SP2 ,Community Services,CTPLD Place CIC U65,Supported Living - Without SP payments,Third Party Payments,REVENUE
http://statistics.data.gov.uk/id/local-authority/00HY,Wiltshire Council,10/02/2016,5106819782,3399.00,Alabare Christian Care Centre ,100837,SP2 ,Community Services,CTPLD Place CIC U65,Supported Living - Without SP payments,Third Party Payments,REVENUE
http://statistics.data.gov.uk/id/local-authority/00HY,Wiltshire Council,10/02/2016,5106819789,924.00,Alabare Christian Care Centre ,100837,SP2 ,Community Services,CTPLD Place CIC U65,Supported Living - Without SP payments,Third Party Payments,REVENUE
http://statistics.data.gov.uk/id/local-authority/00HY,Wiltshire Council,10/02/2016,5106819790,781.00,Alabare Christian Care Centre ,100837,SP2 ,Community Services,CTPLD Place CIC U65,Supported Living - Without SP payments,Third Party Payments,REVENUE
http://statistics.data.gov.uk/id/local-authority/00HY,Wiltshire Council,10/02/2016,5106819792,1914.00,Alabare Christian Care Centre ,100837,SP2 ,Community Services,CTPLD Place CIC U65,Supported Living - Without SP payments,Third Party Payments,REVENUE
http://statistics.data.gov.uk/id/local-authority/00HY,Wiltshire Council,10/02/2016,5106819794,462.00,Alabare Christian Care Centre ,100837,SP2 ,Community Services,CTPLD Place CIC U65,Supported Living - Without SP payments,Third Party Payments,REVENUE
http://statistics.data.gov.uk/id/local-authority/00HY,Wiltshire Council,10/02/2016,5106819799,2674.12,Alabare Christian Care Centre ,100837,SP2 ,Community Services,CTPLD Place CIC U65,Supported Living - Without SP payments,Third Party Payments,REVENUE
http://statistics.data.gov.uk/id/local-authority/00HY,Wiltshire Council,10/02/2016,5106819801,2727.40,Alabare Christian Care Centre ,100837,SP2 ,Community Services,CTPLD Place CIC U65,Supported Living - Without SP payments,Third Party Payments,REVENUE
http://statistics.data.gov.uk/id/local-authority/00HY,Wiltshire Council,10/02/2016,5106819802,1658.24,Alabare Christian Care Centre ,100837,SP2 ,Community Services,CTPLD Place CIC U65,Supported Living - Without SP payments,Third Party Payments,REVENUE
http://statistics.data.gov.uk/id/local-authority/00HY,Wiltshire Council,10/02/2016,5106819803,1751.44,Alabare Christian Care Centre ,100837,SP2 ,Community Services,CTPLD Place CIC U65,Supported Living - Without SP payments,Third Party Payments,REVENUE
http://statistics.data.gov.uk/id/local-authority/00HY,Wiltshire Council,10/02/2016,5106819805,1586.76,Alabare Christian Care Centre ,100837,SP2 ,Community Services,OVA South Locality,Supported Living - Without SP payments,Third Party Payments,REVENUE
http://statistics.data.gov.uk/id/local-authority/00HY,Wiltshire Council,10/02/2016,5106819809,583.00,Alabare Christian Care Centre ,100837,SP2 ,Community Services,CTPLD Place CIC U65,Supported Living - Without SP payments,Third Party Payments,REVENUE
http://statistics.data.gov.uk/id/local-authority/00HY,Wiltshire Council,10/02/2016,5106819811,715.00,Alabare Christian Care Centre ,100837,SP2 ,Community Services,CTPLD Place CIC U65,Supported Living - Without SP payments,Third Party Payments,REVENUE
http://statistics.data.gov.uk/id/local-authority/00HY,Wiltshire Council,10/02/2016,5106819813,352.00,Alabare Christian Care Centre ,100837,SP2 ,Community Services,CTPLD Place CIC U65,Supported Living - Without SP payments,Third Party Payments,REVENUE
http://statistics.data.gov.uk/id/local-authority/00HY,Wiltshire Council,10/02/2016,5106819818,1556.96,Alabare Christian Care Centre ,100837,SP2 ,Community Services,CTPLD Place CIC U65,Supported Living - Without SP payments,Third Party Payments,REVENUE
http://statistics.data.gov.uk/id/local-authority/00HY,Wiltshire Council,10/02/2016,5106819833,975.88,Alabare Christian Care Centre ,100837,SP2 ,Community Services,CTPLD Place CIC U65,Supported Living - Without SP payments,Third Party Payments,REVENUE
http://statistics.data.gov.uk/id/local-authority/00HY,Wiltshire Council,10/02/2016,5106819854,473.20,Alabare Christian Care Centre ,100837,SP2 ,Community Services,CTPLD Place CIC U65,Supported Living - Without SP payments,Third Party Payments,REVENUE
http://statistics.data.gov.uk/id/local-authority/00HY,Wiltshire Council,10/02/2016,5106819861,2841.88,Alabare Christian Care Centre ,100837,SP2 ,Community Services,CTPLD Place CIC U65,Supported Living - Without SP payments,Third Party Payments,REVENUE
http://statistics.data.gov.uk/id/local-authority/00HY,Wiltshire Council,10/02/2016,5106819907,3151.52,Alabare Christian Care Centre ,100837,SP2 ,Community Services,CTPLD Place CIC U65,Supported Living - Without SP payments,Third Party Payments,REVENUE
http://statistics.data.gov.uk/id/local-authority/00HY,Wiltshire Council,10/02/2016,5106819925,2959.00,Alabare Christian Care Centre ,100837,SP2 ,Community Services,CTPLD Place CIC U65,Supported Living - Without SP payments,Third Party Payments,REVENUE
http://statistics.data.gov.uk/id/local-authority/00HY,Wiltshire Council,10/02/2016,5106819994,270.40,Alabare Christian Care Centre ,100837,SP2 ,Community Services,OVA South Locality,Supported Living - Without SP payments,Third Party Payments,REVENUE
http://statistics.data.gov.uk/id/local-authority/00HY,Wiltshire Council,10/02/2016,5106820023,2496.00,Alabare Christian Care Centre ,100837,SP2 ,Community Services,OVA South Locality,Supported Living - Without SP payments,Third Party Payments,REVENUE
http://statistics.data.gov.uk/id/local-authority/00HY,Wiltshire Council,10/02/2016,5106820043,1886.60,Alabare Christian Care Centre ,100837,SP2 ,Community Services,CTPLD Place CIC U65,Supported Living - Without SP payments,Third Party Payments,REVENUE
http://statistics.data.gov.uk/id/local-authority/00HY,Wiltshire Council,10/02/2016,5106820052,2038.84,Alabare Christian Care Centre ,100837,SP2 ,Community Services,CTPLD Place CIC U65,Supported Living - Without SP payments,Third Party Payments,REVENUE
http://statistics.data.gov.uk/id/local-authority/00HY,Wiltshire Council,10/02/2016,5106820056,632.52,Alabare Christian Care Centre ,100837,SP2 ,Community Services,CTPLD Place CIC U65,Supported Living - Without SP payments,Third Party Payments,REVENUE
http://statistics.data.gov.uk/id/local-authority/00HY,Wiltshire Council,10/02/2016,5106820082,3163.64,Alabare Christian Care Centre ,100837,SP2 ,Community Services,CTPLD Place CIC U65,Supported Living - Without SP payments,Third Party Payments,REVENUE
http://statistics.data.gov.uk/id/local-authority/00HY,Wiltshire Council,10/02/2016,5106820084,1667.16,Alabare Christian Care Centre ,100837,SP2 ,Community Services,CTPLD Place CIC U65,Supported Living - Without SP payments,Third Party Payments,REVENUE
http://statistics.data.gov.uk/id/local-authority/00HY,Wiltshire Council,10/02/2016,5106820101,2690.64,Alabare Christian Care Centre ,100837,SP2 ,Community Services,CTPLD Place CIC U65,Supported Living - Without SP payments,Third Party Payments,REVENUE
http://statistics.data.gov.uk/id/local-authority/00HY,Wiltshire Council,10/02/2016,5106820112,2772.00,Alabare Christian Care Centre ,100837,SP2 ,Community Services,CTPLD Place CIC U65,Supported Living - Without SP payments,Third Party Payments,REVENUE
http://statistics.data.gov.uk/id/local-authority/00HY,Wiltshire Council,03/02/2016,5106824044,646.00,Alabare Christian Care Centre ,100837,SP2 ,Community Services,CTPLD Place CIC U65,Adult Day Care - Spot,Third Party Payments,REVENUE
http://statistics.data.gov.uk/id/local-authority/00HY,Wiltshire Council,03/02/2016,5106824047,418.00,Alabare Christian Care Centre ,100837,SP2 ,Community Services,CTPLD Place CIC U65,Adult Day Care - Spot,Third Party Payments,REVENUE
http://statistics.data.gov.uk/id/local-authority/00HY,Wiltshire Council,03/02/2016,5106824048,722.00,Alabare Christian Care Centre ,100837,SP2 ,Community Services,CTPLD Place CIC U65,Adult Day Care - Spot,Third Party Payments,REVENUE
http://statistics.data.gov.uk/id/local-authority/00HY,Wiltshire Council,03/02/2016,5106824049,988.00,Alabare Christian Care Centre ,100837,SP2 ,Community Services,CTPLD Place CIC U65,Adult Day Care - Spot,Third Party Payments,REVENUE
http://statistics.data.gov.uk/id/local-authority/00HY,Wiltshire Council,03/02/2016,5106824050,494.00,Alabare Christian Care Centre ,100837,SP2 ,Community Services,CTPLD Place CIC U65,Adult Day Care - Spot,Third Party Payments,REVENUE
http://statistics.data.gov.uk/id/local-authority/00HY,Wiltshire Council,03/02/2016,5106824051,418.00,Alabare Christian Care Centre ,100837,SP2 ,Community Services,CTPLD Place CIC U65,Adult Day Care - Spot,Third Party Payments,REVENUE
http://statistics.data.gov.uk/id/local-authority/00HY,Wiltshire Council,04/02/2016,5106824202,342.00,Alabare Christian Care Centre ,100837,SP2 ,Community Services,CTPLD Place CIC U65,Adult Day Care - Spot,Third Party Payments,REVENUE
http://statistics.data.gov.uk/id/local-authority/00HY,Wiltshire Council,04/02/2016,5106824203,342.00,Alabare Christian Care Centre ,100837,SP2 ,Community Services,OVA South Locality,Adult Day Care - Spot,Third Party Payments,REVENUE
http://statistics.data.gov.uk/id/local-authority/00HY,Wiltshire Council,04/02/2016,5106824204,304.00,Alabare Christian Care Centre ,100837,SP2 ,Community Services,CTPLD Place CIC U65,Adult Day Care - Spot,Third Party Payments,REVENUE
http://statistics.data.gov.uk/id/local-authority/00HY,Wiltshire Council,04/02/2016,5106824205,342.00,Alabare Christian Care Centre ,100837,SP2 ,Community Services,CTPLD Place CIC U65,Adult Day Care - Spot,Third Party Payments,REVENUE
http://statistics.data.gov.uk/id/local-authority/00HY,Wiltshire Council,16/02/2016,5106831981,456.00,Alabare Christian Care Centre ,100837,SP2 ,Community Services,CTPLD Place CIC U65,Adult Day Care - Spot,Third Party Payments,REVENUE
http://statistics.data.gov.uk/id/local-authority/00HY,Wiltshire Council,16/02/2016,5106831982,304.00,Alabare Christian Care Centre ,100837,SP2 ,Community Services,OVA South Locality,Adult Day Care - Spot,Third Party Payments,REVENUE
http://statistics.data.gov.uk/id/local-authority/00HY,Wiltshire Council,16/02/2016,5106831983,304.00,Alabare Christian Care Centre ,100837,SP2 ,Community Services,MH OP South Locality,Adult Day Care - Spot,Third Party Payments,REVENUE
http://statistics.data.gov.uk/id/local-authority/00HY,Wiltshire Council,16/02/2016,5106831984,304.00,Alabare Christian Care Centre ,100837,SP2 ,Community Services,MH AOWA South Locali,Adult Day Care - Spot,Third Party Payments,REVENUE
http://statistics.data.gov.uk/id/local-authority/00HY,Wiltshire Council,16/02/2016,5106831985,480.00,Alabare Christian Care Centre ,100837,SP2 ,Community Services,MH AOWA South Locali,Adult Day Care - Spot,Third Party Payments,REVENUE
http://statistics.data.gov.uk/id/local-authority/00HY,Wiltshire Council,22/02/2016,5106833003,1880.82,Alabare Christian Care Centre ,100837,SP2 ,Children & Education,Albare Contract,Adult / Child Care Agency Placement,Third Party Payments,REVENUE
http://statistics.data.gov.uk/id/local-authority/00HY,Wiltshire Council,26/02/2016,5106835847,462.00,Alabare Christian Care Centre ,100837,SP2 ,Community Services,CTPLD Place CIC U65,Supported Living - Without SP payments,Third Party Payments,REVENUE
http://statistics.data.gov.uk/id/local-authority/00HY,Wiltshire Council,26/02/2016,5106835856,346.50,Alabare Christian Care Centre ,100837,SP2 ,Community Services,OVA South Locality,Supported Living - Without SP payments,Third Party Payments,REVENUE
http://statistics.data.gov.uk/id/local-authority/00HY,Wiltshire Council,26/02/2016,5106835857,462.00,Alabare Christian Care Centre ,100837,SP2 ,Community Services,OVA South Locality,Supported Living - Without SP payments,Third Party Payments,REVENUE
http://statistics.data.gov.uk/id/local-authority/00HY,Wiltshire Council,05/02/2016,5106824577,2289.00,Aldbourne Nursing Home ,110090,SN8 ,Community Services,OVA East Locality,Adult Care Nursing Placements- Spot Purchase,Third Party Payments,REVENUE
http://statistics.data.gov.uk/id/local-authority/00HY,Wiltshire Council,05/02/2016,5106824578,336.00,Aldbourne Nursing Home ,110090,SN8 ,Community Services,PI East FNC,Adult Care Funded Nursing Care - Loal Auth Clients,Third Party Payments,REVENUE
http://statistics.data.gov.uk/id/local-authority/00HY,Wiltshire Council,05/02/2016,5106824579,3052.00,Aldbourne Nursing Home ,110090,SN8 ,Community Services,OVA East Locality,Adult Care Nursing Placements- Spot Purchase,Third Party Payments,REVENUE
http://statistics.data.gov.uk/id/local-authority/00HY,Wiltshire Council,05/02/2016,5106824580,448.00,Aldbourne Nursing Home ,110090,SN8 ,Community Services,PI East FNC,Adult Care Funded Nursing Care - Loal Auth Clients,Third Party Payments,REVENUE
http://statistics.data.gov.uk/id/local-authority/00HY,Wiltshire Council,10/02/2016,5106826556,2040.84,Aldbourne Nursing Home ,110090,SN8 ,Community Services,East Locality OP,Adult Care Nursing Placements- Spot Purchase,Third Party Payments,REVENUE
http://statistics.data.gov.uk/id/local-authority/00HY,Wiltshire Council,10/02/2016,5106826557,448.00,Aldbourne Nursing Home ,110090,SN8 ,Community Services,OP East FNC,Adult Care Funded Nursing Care - Loal Auth Clients,Third Party Payments,REVENUE
http://statistics.data.gov.uk/id/local-authority/00HY,Wiltshire Council,10/02/2016,5106827093,2076.36,Aldbourne Nursing Home ,110090,SN8 ,Community Services,North Locality OP,Adult Care Nursing Placements- Spot Purchase,Third Party Payments,REVENUE
http://statistics.data.gov.uk/id/local-authority/00HY,Wiltshire Council,10/02/2016,5106827094,448.00,Aldbourne Nursing Home ,110090,SN8 ,Community Services,OP North FNC,Adult Care Funded Nursing Care - Loal Auth Clients,Third Party Payments,REVENUE
http://statistics.data.gov.uk/id/local-authority/00HY,Wiltshire Council,10/02/2016,5106827193,2524.36,Aldbourne Nursing Home ,110090,SN8 ,Community Services,MH OP North Locality,Adult Care Nursing Placements- Spot Purchase,Third Party Payments,REVENUE
http://statistics.data.gov.uk/id/local-authority/00HY,Wiltshire Council,10/02/2016,5106827409,3400.00,Aldbourne Nursing Home ,110090,SN8 ,Community Services,Home Loans,Adult Care Loans,Capital charges and Expenditure,REVENUE
http://statistics.data.gov.uk/id/local-authority/00HY,Wiltshire Council,10/02/2016,5106827611,3052.00,Aldbourne Nursing Home ,110090,SN8 ,Community Services,Home Loans,Adult Care Loans,Capital charges and Expenditure,REVENUE
http://statistics.data.gov.uk/id/local-authority/00HY,Wiltshire Council,10/02/2016,5106827615,4440.73,Aldbourne Nursing Home ,110090,SN8 ,Community Services,Home Loans,Adult Care Loans,Capital charges and Expenditure,REVENUE
http://statistics.data.gov.uk/id/local-authority/00HY,Wiltshire Council,10/02/2016,5106827650,2952.00,Aldbourne Nursing Home ,110090,SN8 ,Community Services,Home Loans,Adult Care Loans,Capital charges and Expenditure,REVENUE
http://statistics.data.gov.uk/id/local-authority/00HY,Wiltshire Council,10/02/2016,5106827907,2280.36,Aldbourne Nursing Home ,110090,SN8 ,Community Services,East Locality OP,Adult Care Nursing Placements- Spot Purchase,Third Party Payments,REVENUE
http://statistics.data.gov.uk/id/local-authority/00HY,Wiltshire Council,10/02/2016,5106827908,448.00,Aldbourne Nursing Home ,110090,SN8 ,Community Services,OP East FNC,Adult Care Funded Nursing Care - Loal Auth Clients,Third Party Payments,REVENUE
http://statistics.data.gov.uk/id/local-authority/00HY,Wiltshire Council,10/02/2016,5106828308,3052.00,Aldbourne Nursing Home ,110090,SN8 ,Community Services,OVA East Locality,Adult Care Nursing Placements- Spot Purchase,Third Party Payments,REVENUE
http://statistics.data.gov.uk/id/local-authority/00HY,Wiltshire Council,10/02/2016,5106828309,448.00,Aldbourne Nursing Home ,110090,SN8 ,Community Services,PI East FNC,Adult Care Funded Nursing Care - Loal Auth Clients,Third Party Payments,REVENUE
http://statistics.data.gov.uk/id/local-authority/00HY,Wiltshire Council,17.02.2016,1901663785,3225.00,Alder King ,100899,BS8 ,Wiltshire Council,Wiltshire Council,Cost of Asset Disposal,Balance Sheet Accounts,REVENUE
http://statistics.data.gov.uk/id/local-authority/00HY,Wiltshire Council,24/02/2016,5106824725,900.00,Alder King ,100899,BS8 ,Resources,CastledownBusinessPa,Premises Rental / Hire Charges,Premises Related,REVENUE
http://statistics.data.gov.uk/id/local-authority/00HY,Wiltshire Council,18/02/2016,5106832213,350.00,Aldercross Ltd ,126099,CH3 ,Neighbourhood & Planning,Sust Transport SD,Highways - Other Materials,Supplies and Services,REVENUE
http://statistics.data.gov.uk/id/local-authority/00HY,Wiltshire Council,10/02/2016,5106827590,5764.60,Alexandra Homes (Bristol) Ltd ,131787,BS15,Community Services,MH AOWA North Locali,Adult Residential Placements - Spot Purchase,Third Party Payments,REVENUE
http://statistics.data.gov.uk/id/local-authority/00HY,Wiltshire Council,10/02/2016,5106827740,3310.65,Alexandra Homes (Bristol) Ltd ,131787,BS15,Community Services,OVA West Locality,Adult Residential Placements - Spot Purchase,Third Party Payments,REVENUE
http://statistics.data.gov.uk/id/local-authority/00HY,Wiltshire Council,10/02/2016,5106826445,3991.80,Alliance Home Care ,110986,SN15,Community Services,MH AOWA North Locali,Adult Residential Placements - Spot Purchase,Third Party Payments,REVENUE
http://statistics.data.gov.uk/id/local-authority/00HY,Wiltshire Council,10/02/2016,5106826643,3749.52,Alliance Home Care ,110986,SN15,Community Services,MH OP North Locality,Adult Residential Placements - Spot Purchase,Third Party Payments,REVENUE
http://statistics.data.gov.uk/id/local-authority/00HY,Wiltshire Council,10/02/2016,5106827616,2108.92,Alliance Home Care ,110986,SN15,Community Services,MH OP North Locality,Adult Residential Placements - Spot Purchase,Third Party Payments,REVENUE
http://statistics.data.gov.uk/id/local-authority/00HY,Wiltshire Council,10/02/2016,5106827827,3200.00,Alliance Home Care ,110986,SN15,Community Services,MH AOWA North Locali,Adult Residential Placements - Spot Purchase,Third Party Payments,REVENUE
http://statistics.data.gov.uk/id/local-authority/00HY,Wiltshire Council,10/02/2016,5106828104,3651.12,Alliance Home Care ,110986,SN15,Community Services,MH AOWA North Locali,Adult Residential Placements - Spot Purchase,Third Party Payments,REVENUE
http://statistics.data.gov.uk/id/local-authority/00HY,Wiltshire Council,16/02/2016,5106831971,273.52,Allied Healthcare  UK  Ltd Allied Healthcare  UK  Ltd,110113,ST18,Community Services,MH AOWA South Locali,Supported Living Contribution,Income,REVENUE
http://statistics.data.gov.uk/id/local-authority/00HY,Wiltshire Council,16/02/2016,5106831972,1203.72,Allied Healthcare  UK  Ltd Allied Healthcare  UK  Ltd,110113,ST18,Community Services,OVA South Locality,Adult Domiciliary Care - Spot Contribution,Income,REVENUE
http://statistics.data.gov.uk/id/local-authority/00HY,Wiltshire Council,22/02/2016,5106832516,338.74,Allied Healthcare  UK  Ltd Allied Healthcare  UK  Ltd,110113,ST18,Community Services,CTPLD Place CIC U65,Adult Domiciliary Care - Spot,Third Party Payments,REVENUE
http://statistics.data.gov.uk/id/local-authority/00HY,Wiltshire Council,05/02/2016,5106824754,925.01,Allied Healthcare Group Allied Healthcare Group,113066,SP2 ,Community Services,East Locality OP,Adult Domiciliary Care - Spot,Third Party Payments,REVENUE
http://statistics.data.gov.uk/id/local-authority/00HY,Wiltshire Council,26/02/2016,5106828533,3049.90,Allied Healthcare Group Allied Healthcare Group,113066,SP2 ,Community Services,CTPLD Place CIC U65,Supported Living - Without SP payments,Third Party Payments,REVENUE
http://statistics.data.gov.uk/id/local-authority/00HY,Wiltshire Council,10/02/2016,5106828534,1054.64,Allied Healthcare Group Allied Healthcare Group,113066,SP2 ,Community Services,CTPLD Place CIC U65,Adult Domiciliary Care - Spot,Third Party Payments,REVENUE
http://statistics.data.gov.uk/id/local-authority/00HY,Wiltshire Council,15/02/2016,5106831640,302.29,Allied Healthcare Group Allied Healthcare Group,113066,SP2 ,Community Services,OVA South Locality,Supported Living - Without SP payments,Third Party Payments,REVENUE
http://statistics.data.gov.uk/id/local-authority/00HY,Wiltshire Council,15/02/2016,5106831641,300.00,Allied Healthcare Group Allied Healthcare Group,113066,SP2 ,Community Services,OVA South Locality,Supported Living - Without SP payments,Third Party Payments,REVENUE
http://statistics.data.gov.uk/id/local-authority/00HY,Wiltshire Council,15/02/2016,5106831642,301.23,Allied Healthcare Group Allied Healthcare Group,113066,SP2 ,Community Services,OVA South Locality,Supported Living - Without SP payments,Third Party Payments,REVENUE
http://statistics.data.gov.uk/id/local-authority/00HY,Wiltshire Council,26/02/2016,5106831973,258.64,Allied Healthcare Group Allied Healthcare Group,113066,SP2 ,Community Services,OVA South Locality,Supported Living - Without SP payments,Third Party Payments,REVENUE
http://statistics.data.gov.uk/id/local-authority/00HY,Wiltshire Council,19/02/2016,5106832822,863.95,ALLSPARES  AUTO  LTD ,110116,CF33,Neighbourhood & Planning,Fleet Operations,Vehicle Parts,Transport Related,REVENUE
http://statistics.data.gov.uk/id/local-authority/00HY,Wiltshire Council,19/02/2016,5106832824,330.00,ALLSPARES  AUTO  LTD ,110116,CF33,Neighbourhood & Planning,Fleet Operations,Vehicle Parts,Transport Related,REVENUE
http://statistics.data.gov.uk/id/local-authority/00HY,Wiltshire Council,19/02/2016,5106832825,292.00,ALLSPARES  AUTO  LTD ,110116,CF33,Neighbourhood & Planning,Fleet Operations,Vehicle Parts,Transport Related,REVENUE
http://statistics.data.gov.uk/id/local-authority/00HY,Wiltshire Council,19/02/2016,5106832826,281.08,ALLSPARES  AUTO  LTD ,110116,CF33,Neighbourhood & Planning,Fleet Operations,Vehicle Parts,Transport Related,REVENUE
http://statistics.data.gov.uk/id/local-authority/00HY,Wiltshire Council,19/02/2016,5106832828,1105.41,ALLSPARES  AUTO  LTD ,110116,CF33,Neighbourhood & Planning,Fleet Operations,Vehicle Parts,Transport Related,REVENUE
http://statistics.data.gov.uk/id/local-authority/00HY,Wiltshire Council,19/02/2016,5106832830,330.16,ALLSPARES  AUTO  LTD ,110116,CF33,Neighbourhood & Planning,Fleet Operations,Vehicle Parts,Transport Related,REVENUE
http://statistics.data.gov.uk/id/local-authority/00HY,Wiltshire Council,19/02/2016,5106832834,480.00,ALLSPARES  AUTO  LTD ,110116,CF33,Neighbourhood & Planning,Fleet Operations,Vehicle Parts,Transport Related,REVENUE
http://statistics.data.gov.uk/id/local-authority/00HY,Wiltshire Council,19/02/2016,5106832835,480.00,ALLSPARES  AUTO  LTD ,110116,CF33,Neighbourhood & Planning,Fleet Operations,Vehicle Parts,Transport Related,REVENUE
http://statistics.data.gov.uk/id/local-authority/00HY,Wiltshire Council,19/02/2016,5106832837,1029.96,ALLSPARES  AUTO  LTD ,110116,CF33,Neighbourhood & Planning,Fleet Operations,Vehicle Parts,Transport Related,REVENUE
http://statistics.data.gov.uk/id/local-authority/00HY,Wiltshire Council,19/02/2016,5106832838,920.43,ALLSPARES  AUTO  LTD ,110116,CF33,Neighbourhood & Planning,Fleet Operations,Vehicle Parts,Transport Related,REVENUE
http://statistics.data.gov.uk/id/local-authority/00HY,Wiltshire Council,03/02/2016,5106823986,416.80,Alpha Chemicals ,138904,SO31,Neighbourhood & Planning,Devizes,Cleaning Materials - Buildings,Premises Related,REVENUE
http://statistics.data.gov.uk/id/local-authority/00HY,Wiltshire Council,03/02/2016,5106823998,311.16,Alpha Chemicals ,138904,SO31,Neighbourhood & Planning,Devizes,Cleaning Materials - Buildings,Premises Related,REVENUE
http://statistics.data.gov.uk/id/local-authority/00HY,Wiltshire Council,11/02/2016,5106829380,411.60,Alpha Chemicals ,138904,SO31,Neighbourhood & Planning,Devizes,Cleaning Materials - Buildings,Premises Related,REVENUE
http://statistics.data.gov.uk/id/local-authority/00HY,Wiltshire Council,08/02/2016,5106824901,827.42,Alpha Plus Training  and  Translati Ltd,110120,TA4 ,Children & Education,HQ Social Care,Other Professional Fees,Supplies and Services,REVENUE
http://statistics.data.gov.uk/id/local-authority/00HY,Wiltshire Council,04.02.2016,1901659953,262.50,Alpha Taxis ,100124,BA14,Community Services,CTPLD Place CIC U65,Transport Contracts,Third Party Payments,REVENUE
http://statistics.data.gov.uk/id/local-authority/00HY,Wiltshire Council,04.02.2016,1901659953,457.40,Alpha Taxis ,100124,BA14,Children & Education,Safeguarding Ass Wst,Transport Contracts,Third Party Payments,REVENUE
http://statistics.data.gov.uk/id/local-authority/00HY,Wiltshire Council,04.02.2016,1901659953,1724.20,Alpha Taxis ,100124,BA14,Children & Education,Safeguarding Ass Sth,Transport Contracts,Third Party Payments,REVENUE
http://statistics.data.gov.uk/id/local-authority/00HY,Wiltshire Council,04.02.2016,1901659953,2616.80,Alpha Taxis ,100124,BA14,Neighbourhood & Planning,SEN Secondary,Transport Contracts,Third Party Payments,REVENUE
http://statistics.data.gov.uk/id/local-authority/00HY,Wiltshire Council,04.02.2016,1901659955,264.38,Alpha Taxis ,100124,BA14,Community Services,CTPLD Place CIC U65,Transport Contracts,Third Party Payments,REVENUE
http://statistics.data.gov.uk/id/local-authority/00HY,Wiltshire Council,04.02.2016,1901659956,528.00,Alpha Taxis ,100124,BA14,Neighbourhood & Planning,Mainstream Primary,Transport Contracts,Third Party Payments,REVENUE
http://statistics.data.gov.uk/id/local-authority/00HY,Wiltshire Council,04.02.2016,1901659957,331.60,Alpha Taxis ,100124,BA14,Neighbourhood & Planning,Mainstream Secondary,Transport Contracts,Third Party Payments,REVENUE
http://statistics.data.gov.uk/id/local-authority/00HY,Wiltshire Council,04.02.2016,1901659958,1000.20,Alpha Taxis ,100124,BA14,Neighbourhood & Planning,SEN Primary,Transport Contracts,Third Party Payments,REVENUE
http://statistics.data.gov.uk/id/local-authority/00HY,Wiltshire Council,04.02.2016,1901659960,1080.00,Alpha Taxis ,100124,BA14,Neighbourhood & Planning,SEN Secondary,Transport Contracts,Third Party Payments,REVENUE
http://statistics.data.gov.uk/id/local-authority/00HY,Wiltshire Council,04.02.2016,1901659961,858.00,Alpha Taxis ,100124,BA14,Neighbourhood & Planning,SEN Primary,Transport Contracts,Third Party Payments,REVENUE
http://statistics.data.gov.uk/id/local-authority/00HY,Wiltshire Council,04.02.2016,1901659963,265.00,Alpha Taxis ,100124,BA14,Neighbourhood & Planning,SEN Primary,Transport Contracts,Third Party Payments,REVENUE
http://statistics.data.gov.uk/id/local-authority/00HY,Wiltshire Council,04.02.2016,1901659964,331.60,Alpha Taxis ,100124,BA14,Neighbourhood & Planning,SEN 16+ Secondary,Transport Contracts,Third Party Payments,REVENUE
http://statistics.data.gov.uk/id/local-authority/00HY,Wiltshire Council,04.02.2016,1901659966,782.00,Alpha Taxis ,100124,BA14,Neighbourhood & Planning,Mainstream Secondary,Transport Contracts,Third Party Payments,REVENUE
http://statistics.data.gov.uk/id/local-authority/00HY,Wiltshire Council,04.02.2016,1901659969,354.09,Alpha Taxis ,100124,BA14,Neighbourhood & Planning,Mainstream Primary,Transport Contracts,Third Party Payments,REVENUE
http://statistics.data.gov.uk/id/local-authority/00HY,Wiltshire Council,04.02.2016,1901659971,317.00,Alpha Taxis ,100124,BA14,Neighbourhood & Planning,Mainstream Secondary,Transport Contracts,Third Party Payments,REVENUE
http://statistics.data.gov.uk/id/local-authority/00HY,Wiltshire Council,04.02.2016,1901659972,429.94,Alpha Taxis ,100124,BA14,Neighbourhood & Planning,Mainstream Primary,Transport Contracts,Third Party Payments,REVENUE
http://statistics.data.gov.uk/id/local-authority/00HY,Wiltshire Council,04.02.2016,1901659976,1091.00,Alpha Taxis ,100124,BA14,Neighbourhood & Planning,Mainstream Secondary,Transport Contracts,Third Party Payments,REVENUE
http://statistics.data.gov.uk/id/local-authority/00HY,Wiltshire Council,04.02.2016,1901659977,324.00,Alpha Taxis ,100124,BA14,Neighbourhood & Planning,Mainstream Secondary,Transport Contracts,Third Party Payments,REVENUE
http://statistics.data.gov.uk/id/local-authority/00HY,Wiltshire Council,04.02.2016,1901659978,589.20,Alpha Taxis ,100124,BA14,Neighbourhood & Planning,Mainstream 16+ FE,Transport Contracts,Third Party Payments,REVENUE
http://statistics.data.gov.uk/id/local-authority/00HY,Wiltshire Council,19/02/2016,5106832418,264.00,Alzheimer's Society ,110125,SP1 ,Community Services,South Locality OP,Adult Domiciliary Care - Spot,Third Party Payments,REVENUE
http://statistics.data.gov.uk/id/local-authority/00HY,Wiltshire Council,12.02.2016,1901662282,268.22,Alzheimers Support ,113451,BA14,Community Services,MH OP North Locality,Adult Domiciliary Care - Spot,Third Party Payments,REVENUE
http://statistics.data.gov.uk/id/local-authority/00HY,Wiltshire Council,08/02/2016,5106824781,264.21,Alzheimers Support ,113451,BA14,Community Services,West Locality OP,Adult Domiciliary Care - Mileage,Third Party Payments,REVENUE
http://statistics.data.gov.uk/id/local-authority/00HY,Wiltshire Council,09/02/2016,5106828475,270.49,Alzheimers Support ,113451,BA14,Community Services,West Locality OP,Adult Domiciliary Care - Mileage,Third Party Payments,REVENUE
http://statistics.data.gov.uk/id/local-authority/00HY,Wiltshire Council,09/02/2016,5106828482,588.60,Alzheimers Support ,113451,BA14,Community Services,OVA West Locality,Adult Domiciliary Care - Mileage,Third Party Payments,REVENUE
http://statistics.data.gov.uk/id/local-authority/00HY,Wiltshire Council,29/02/2016,5106836025,272.16,Alzheimers Support ,113451,BA14,Community Services,MH OP North Locality,Adult Domiciliary Care - Spot,Third Party Payments,REVENUE
http://statistics.data.gov.uk/id/local-authority/00HY,Wiltshire Council,29/02/2016,5106836047,285.12,Alzheimers Support ,113451,BA14,Community Services,West Locality OP,Adult Domiciliary Care - Mileage,Third Party Payments,REVENUE
http://statistics.data.gov.uk/id/local-authority/00HY,Wiltshire Council,29/02/2016,5106836056,302.40,Alzheimers Support ,113451,BA14,Community Services,West Locality OP,Adult Domiciliary Care - Spot,Third Party Payments,REVENUE
http://statistics.data.gov.uk/id/local-authority/00HY,Wiltshire Council,29/02/2016,5106836073,542.70,Alzheimers Support ,113451,BA14,Community Services,OVA West Locality,Adult Domiciliary Care - Mileage,Third Party Payments,REVENUE
http://statistics.data.gov.uk/id/local-authority/00HY,Wiltshire Council,10/02/2016,5106820008,3600.00,Amber Residential Care Homes Ltd ,141558,OX4 ,Community Services,MH AOWA North Locali,Supported Living - Without SP payments,Third Party Payments,REVENUE
http://statistics.data.gov.uk/id/local-authority/00HY,Wiltshire Council,10/02/2016,5106825604,11153.84,Amberwood Cambian Group ,138521,BH14,Community Services,CTPLD Place CIC U65,Adult Residential Placements - Spot Purchase,Third Party Payments,REVENUE
http://statistics.data.gov.uk/id/local-authority/00HY,Wiltshire Council,10/02/2016,5106828224,17057.08,Amberwood Cambian Group ,138521,BH14,Community Services,CTPLD Place CIC U65,Adult Residential Placements - Spot Purchase,Third Party Payments,REVENUE
http://statistics.data.gov.uk/id/local-authority/00HY,Wiltshire Council,02/02/2016,5106822673,3990.00,Ameo Professional Services LLP ,137429,WD3 ,Resources,InternalCommunicats,Consultants� Fees,Supplies and Services,REVENUE
http://statistics.data.gov.uk/id/local-authority/00HY,Wiltshire Council,02/02/2016,5106822674,3040.00,Ameo Professional Services LLP ,137429,WD3 ,Resources,InternalCommunicats,Consultants� Fees,Supplies and Services,REVENUE
http://statistics.data.gov.uk/id/local-authority/00HY,Wiltshire Council,15/02/2016,5106831696,5320.00,Ameo Professional Services LLP ,137429,WD3 ,Resources,InternalCommunicats,Consultants� Fees,Supplies and Services,REVENUE
http://statistics.data.gov.uk/id/local-authority/00HY,Wiltshire Council,26/02/2016,5106835648,1140.00,Ameo Professional Services LLP ,137429,WD3 ,Resources,InternalCommunicats,Consultants� Fees,Supplies and Services,REVENUE
http://statistics.data.gov.uk/id/local-authority/00HY,Wiltshire Council,19/02/2016,5106832532,3424.90,Amicus Foster Care Limited ,126050,BS2 ,Children & Education,Ext Placement & IFA,Adult / Child Care Agency Placement,Third Party Payments,REVENUE
http://statistics.data.gov.uk/id/local-authority/00HY,Wiltshire Council,19/02/2016,5106832533,3187.10,Amicus Foster Care Limited ,126050,BS2 ,Children & Education,Ext Placement & IFA,Adult / Child Care Agency Placement,Third Party Payments,REVENUE
http://statistics.data.gov.uk/id/local-authority/00HY,Wiltshire Council,19/02/2016,5106832535,2943.50,Amicus Foster Care Limited ,126050,BS2 ,Children & Education,Ext Placement & IFA,Adult / Child Care Agency Placement,Third Party Payments,REVENUE
http://statistics.data.gov.uk/id/local-authority/00HY,Wiltshire Council,19/02/2016,5106832537,2943.50,Amicus Foster Care Limited ,126050,BS2 ,Children & Education,Ext Placement & IFA,Adult / Child Care Agency Placement,Third Party Payments,REVENUE
http://statistics.data.gov.uk/id/local-authority/00HY,Wiltshire Council,19/02/2016,5106832543,3424.61,Amicus Foster Care Limited ,126050,BS2 ,Children & Education,Ext Placement & IFA,Adult / Child Care Agency Placement,Third Party Payments,REVENUE
http://statistics.data.gov.uk/id/local-authority/00HY,Wiltshire Council,19/02/2016,5106832546,3158.10,Amicus Foster Care Limited ,126050,BS2 ,Children & Education,Ext Placement & IFA,Adult / Child Care Agency Placement,Third Party Payments,REVENUE
http://statistics.data.gov.uk/id/local-authority/00HY,Wiltshire Council,22/02/2016,5106833000,1540.00,Amicus Foster Care Limited ,126050,BS2 ,Children & Education,Ext Placement & IFA,Adult / Child Care Agency Placement,Third Party Payments,REVENUE
http://statistics.data.gov.uk/id/local-authority/00HY,Wiltshire Council,22/02/2016,5106833001,550.06,Amicus Foster Care Limited ,126050,BS2 ,Children & Education,Ext Placement & IFA,Adult / Child Care Agency Placement,Third Party Payments,REVENUE
http://statistics.data.gov.uk/id/local-authority/00HY,Wiltshire Council,10/02/2016,5106825477,2344.08,AMS Care Wiltshire ,130764,SN4 ,Community Services,North Locality OP,Adult Care Nursing Placements- Block Contract,Third Party Payments,REVENUE
http://statistics.data.gov.uk/id/local-authority/00HY,Wiltshire Council,10/02/2016,5106825478,448.00,AMS Care Wiltshire ,130764,SN4 ,Community Services,OP North FNC,Adult Care Funded Nursing Care - Loal Auth Clients,Third Party Payments,REVENUE
http://statistics.data.gov.uk/id/local-authority/00HY,Wiltshire Council,10/02/2016,5106825567,2344.08,AMS Care Wiltshire ,130764,SN4 ,Community Services,North Locality OP,Adult Care Nursing Placements- Block Contract,Third Party Payments,REVENUE
http://statistics.data.gov.uk/id/local-authority/00HY,Wiltshire Council,10/02/2016,5106825568,448.00,AMS Care Wiltshire ,130764,SN4 ,Community Services,OP North FNC,Adult Care Funded Nursing Care - Loal Auth Clients,Third Party Payments,REVENUE
http://statistics.data.gov.uk/id/local-authority/00HY,Wiltshire Council,10/02/2016,5106825616,2344.08,AMS Care Wiltshire ,130764,SN4 ,Community Services,North Locality OP,Adult Care Nursing Placements- Block Contract,Third Party Payments,REVENUE
http://statistics.data.gov.uk/id/local-authority/00HY,Wiltshire Council,10/02/2016,5106825617,448.00,AMS Care Wiltshire ,130764,SN4 ,Community Services,OP North FNC,Adult Care Funded Nursing Care - Loal Auth Clients,Third Party Payments,REVENUE
http://statistics.data.gov.uk/id/local-authority/00HY,Wiltshire Council,10/02/2016,5106825632,2549.60,AMS Care Wiltshire ,130764,SN4 ,Community Services,North Locality OP,Adult Care Nursing Placements- Block Contract,Third Party Payments,REVENUE
http://statistics.data.gov.uk/id/local-authority/00HY,Wiltshire Council,10/02/2016,5106825633,448.00,AMS Care Wiltshire ,130764,SN4 ,Community Services,OP North FNC,Adult Care Funded Nursing Care - Loal Auth Clients,Third Party Payments,REVENUE
http://statistics.data.gov.uk/id/local-authority/00HY,Wiltshire Council,10/02/2016,5106825715,2344.08,AMS Care Wiltshire ,130764,SN4 ,Community Services,East Locality OP,Adult Care Nursing Placements- Block Contract,Third Party Payments,REVENUE
http://statistics.data.gov.uk/id/local-authority/00HY,Wiltshire Council,10/02/2016,5106825716,448.00,AMS Care Wiltshire ,130764,SN4 ,Community Services,OP East FNC,Adult Care Funded Nursing Care - Loal Auth Clients,Third Party Payments,REVENUE
http://statistics.data.gov.uk/id/local-authority/00HY,Wiltshire Council,10/02/2016,5106825723,2344.08,AMS Care Wiltshire ,130764,SN4 ,Community Services,North Locality OP,Adult Care Nursing Placements- Block Contract,Third Party Payments,REVENUE
http://statistics.data.gov.uk/id/local-authority/00HY,Wiltshire Council,10/02/2016,5106825724,448.00,AMS Care Wiltshire ,130764,SN4 ,Community Services,OP North FNC,Adult Care Funded Nursing Care - Loal Auth Clients,Third Party Payments,REVENUE
http://statistics.data.gov.uk/id/local-authority/00HY,Wiltshire Council,10/02/2016,5106825726,2344.08,AMS Care Wiltshire ,130764,SN4 ,Community Services,MH OP North Locality,Adult Care Nursing Placements- Block Contract,Third Party Payments,REVENUE
http://statistics.data.gov.uk/id/local-authority/00HY,Wiltshire Council,10/02/2016,5106825727,448.00,AMS Care Wiltshire ,130764,SN4 ,Community Services,MH OA North FNC,Adult Care Funded Nursing Care - Loal Auth Clients,Third Party Payments,REVENUE
http://statistics.data.gov.uk/id/local-authority/00HY,Wiltshire Council,10/02/2016,5106825747,2344.08,AMS Care Wiltshire ,130764,SN4 ,Community Services,North Locality OP,Adult Care Nursing Placements- Block Contract,Third Party Payments,REVENUE
http://statistics.data.gov.uk/id/local-authority/00HY,Wiltshire Council,10/02/2016,5106825748,448.00,AMS Care Wiltshire ,130764,SN4 ,Community Services,OP North FNC,Adult Care Funded Nursing Care - Loal Auth Clients,Third Party Payments,REVENUE
http://statistics.data.gov.uk/id/local-authority/00HY,Wiltshire Council,10/02/2016,5106825774,2344.08,AMS Care Wiltshire ,130764,SN4 ,Community Services,North Locality OP,Adult Care Nursing Placements- Block Contract,Third Party Payments,REVENUE
http://statistics.data.gov.uk/id/local-authority/00HY,Wiltshire Council,10/02/2016,5106825775,448.00,AMS Care Wiltshire ,130764,SN4 ,Community Services,OP North FNC,Adult Care Funded Nursing Care - Loal Auth Clients,Third Party Payments,REVENUE
http://statistics.data.gov.uk/id/local-authority/00HY,Wiltshire Council,10/02/2016,5106825793,2344.08,AMS Care Wiltshire ,130764,SN4 ,Community Services,North Locality OP,Adult Care Nursing Placements- Block Contract,Third Party Payments,REVENUE
http://statistics.data.gov.uk/id/local-authority/00HY,Wiltshire Council,10/02/2016,5106825794,448.00,AMS Care Wiltshire ,130764,SN4 ,Community Services,OP North FNC,Adult Care Funded Nursing Care - Loal Auth Clients,Third Party Payments,REVENUE
http://statistics.data.gov.uk/id/local-authority/00HY,Wiltshire Council,10/02/2016,5106825837,2344.08,AMS Care Wiltshire ,130764,SN4 ,Community Services,North Locality OP,Adult Care Nursing Placements- Block Contract,Third Party Payments,REVENUE
http://statistics.data.gov.uk/id/local-authority/00HY,Wiltshire Council,10/02/2016,5106825838,448.00,AMS Care Wiltshire ,130764,SN4 ,Community Services,OP North FNC,Adult Care Funded Nursing Care - Loal Auth Clients,Third Party Payments,REVENUE
http://statistics.data.gov.uk/id/local-authority/00HY,Wiltshire Council,10/02/2016,5106825930,2549.60,AMS Care Wiltshire ,130764,SN4 ,Community Services,North Locality OP,Adult Care Nursing Placements- Block Contract,Third Party Payments,REVENUE
http://statistics.data.gov.uk/id/local-authority/00HY,Wiltshire Council,10/02/2016,5106825931,448.00,AMS Care Wiltshire ,130764,SN4 ,Community Services,OP North FNC,Adult Care Funded Nursing Care - Loal Auth Clients,Third Party Payments,REVENUE
http://statistics.data.gov.uk/id/local-authority/00HY,Wiltshire Council,10/02/2016,5106826358,2344.08,AMS Care Wiltshire ,130764,SN4 ,Community Services,North Locality OP,Adult Care Nursing Placements- Block Contract,Third Party Payments,REVENUE
http://statistics.data.gov.uk/id/local-authority/00HY,Wiltshire Council,10/02/2016,5106826359,448.00,AMS Care Wiltshire ,130764,SN4 ,Community Services,OP North FNC,Adult Care Funded Nursing Care - Loal Auth Clients,Third Party Payments,REVENUE
http://statistics.data.gov.uk/id/local-authority/00HY,Wiltshire Council,10/02/2016,5106826867,2549.60,AMS Care Wiltshire ,130764,SN4 ,Community Services,North Locality OP,Adult Care Nursing Placements- Block Contract,Third Party Payments,REVENUE
http://statistics.data.gov.uk/id/local-authority/00HY,Wiltshire Council,10/02/2016,5106826868,448.00,AMS Care Wiltshire ,130764,SN4 ,Community Services,OP North FNC,Adult Care Funded Nursing Care - Loal Auth Clients,Third Party Payments,REVENUE
http://statistics.data.gov.uk/id/local-authority/00HY,Wiltshire Council,10/02/2016,5106827086,2549.60,AMS Care Wiltshire ,130764,SN4 ,Community Services,North Locality OP,Adult Care Nursing Placements- Block Contract,Third Party Payments,REVENUE
http://statistics.data.gov.uk/id/local-authority/00HY,Wiltshire Council,10/02/2016,5106827087,448.00,AMS Care Wiltshire ,130764,SN4 ,Community Services,OP North FNC,Adult Care Funded Nursing Care - Loal Auth Clients,Third Party Payments,REVENUE
http://statistics.data.gov.uk/id/local-authority/00HY,Wiltshire Council,10/02/2016,5106827141,2549.60,AMS Care Wiltshire ,130764,SN4 ,Community Services,North Locality OP,Adult Care Nursing Placements- Block Contract,Third Party Payments,REVENUE
http://statistics.data.gov.uk/id/local-authority/00HY,Wiltshire Council,10/02/2016,5106827142,448.00,AMS Care Wiltshire ,130764,SN4 ,Community Services,OP North FNC,Adult Care Funded Nursing Care - Loal Auth Clients,Third Party Payments,REVENUE
http://statistics.data.gov.uk/id/local-authority/00HY,Wiltshire Council,10/02/2016,5106827288,2549.60,AMS Care Wiltshire ,130764,SN4 ,Community Services,North Locality OP,Adult Care Nursing Placements- Block Contract,Third Party Payments,REVENUE
http://statistics.data.gov.uk/id/local-authority/00HY,Wiltshire Council,10/02/2016,5106827289,448.00,AMS Care Wiltshire ,130764,SN4 ,Community Services,OP North FNC,Adult Care Funded Nursing Care - Loal Auth Clients,Third Party Payments,REVENUE
http://statistics.data.gov.uk/id/local-authority/00HY,Wiltshire Council,10/02/2016,5106827291,2549.60,AMS Care Wiltshire ,130764,SN4 ,Community Services,North Locality OP,Adult Care Nursing Placements- Block Contract,Third Party Payments,REVENUE
http://statistics.data.gov.uk/id/local-authority/00HY,Wiltshire Council,10/02/2016,5106827292,448.00,AMS Care Wiltshire ,130764,SN4 ,Community Services,OP North FNC,Adult Care Funded Nursing Care - Loal Auth Clients,Third Party Payments,REVENUE
http://statistics.data.gov.uk/id/local-authority/00HY,Wiltshire Council,10/02/2016,5106827315,2344.08,AMS Care Wiltshire ,130764,SN4 ,Community Services,North Locality OP,Adult Care Nursing Placements- Block Contract,Third Party Payments,REVENUE
http://statistics.data.gov.uk/id/local-authority/00HY,Wiltshire Council,10/02/2016,5106827316,448.00,AMS Care Wiltshire ,130764,SN4 ,Community Services,OP North FNC,Adult Care Funded Nursing Care - Loal Auth Clients,Third Party Payments,REVENUE
http://statistics.data.gov.uk/id/local-authority/00HY,Wiltshire Council,10/02/2016,5106827367,2549.60,AMS Care Wiltshire ,130764,SN4 ,Community Services,East Locality OP,Adult Care Nursing Placements- Block Contract,Third Party Payments,REVENUE
http://statistics.data.gov.uk/id/local-authority/00HY,Wiltshire Council,10/02/2016,5106827368,448.00,AMS Care Wiltshire ,130764,SN4 ,Community Services,OP East FNC,Adult Care Funded Nursing Care - Loal Auth Clients,Third Party Payments,REVENUE
http://statistics.data.gov.uk/id/local-authority/00HY,Wiltshire Council,10/02/2016,5106827385,2344.08,AMS Care Wiltshire ,130764,SN4 ,Community Services,West Locality OP,Adult Care Nursing Placements- Block Contract,Third Party Payments,REVENUE
http://statistics.data.gov.uk/id/local-authority/00HY,Wiltshire Council,10/02/2016,5106827386,448.00,AMS Care Wiltshire ,130764,SN4 ,Community Services,OP West FNC,Adult Care Funded Nursing Care - Loal Auth Clients,Third Party Payments,REVENUE
http://statistics.data.gov.uk/id/local-authority/00HY,Wiltshire Council,10/02/2016,5106827673,2344.08,AMS Care Wiltshire ,130764,SN4 ,Community Services,North Locality OP,Adult Care Nursing Placements- Block Contract,Third Party Payments,REVENUE
http://statistics.data.gov.uk/id/local-authority/00HY,Wiltshire Council,10/02/2016,5106827674,448.00,AMS Care Wiltshire ,130764,SN4 ,Community Services,OP North FNC,Adult Care Funded Nursing Care - Loal Auth Clients,Third Party Payments,REVENUE
http://statistics.data.gov.uk/id/local-authority/00HY,Wiltshire Council,10/02/2016,5106827716,418.60,AMS Care Wiltshire ,130764,SN4 ,Community Services,West Locality OP,Adult Care Nursing Placements- Block Contract,Third Party Payments,REVENUE
http://statistics.data.gov.uk/id/local-authority/00HY,Wiltshire Council,10/02/2016,5106827721,2549.60,AMS Care Wiltshire ,130764,SN4 ,Community Services,MH OP North Locality,Adult Care Nursing Placements- Block Contract,Third Party Payments,REVENUE
http://statistics.data.gov.uk/id/local-authority/00HY,Wiltshire Council,10/02/2016,5106827722,448.00,AMS Care Wiltshire ,130764,SN4 ,Community Services,MH OA North FNC,Adult Care Funded Nursing Care - Loal Auth Clients,Third Party Payments,REVENUE
http://statistics.data.gov.uk/id/local-authority/00HY,Wiltshire Council,10/02/2016,5106827776,2549.60,AMS Care Wiltshire ,130764,SN4 ,Community Services,MH OP North Locality,Adult Care Nursing Placements- Spot Purchase,Third Party Payments,REVENUE
http://statistics.data.gov.uk/id/local-authority/00HY,Wiltshire Council,10/02/2016,5106827777,448.00,AMS Care Wiltshire ,130764,SN4 ,Community Services,MH OA North FNC,Adult Care Funded Nursing Care - Loal Auth Clients,Third Party Payments,REVENUE
http://statistics.data.gov.uk/id/local-authority/00HY,Wiltshire Council,10/02/2016,5106827855,2549.60,AMS Care Wiltshire ,130764,SN4 ,Community Services,North Locality OP,Adult Care Nursing Placements- Spot Purchase,Third Party Payments,REVENUE
http://statistics.data.gov.uk/id/local-authority/00HY,Wiltshire Council,10/02/2016,5106827856,448.00,AMS Care Wiltshire ,130764,SN4 ,Community Services,OP North FNC,Adult Care Funded Nursing Care - Loal Auth Clients,Third Party Payments,REVENUE
http://statistics.data.gov.uk/id/local-authority/00HY,Wiltshire Council,10/02/2016,5106827858,2549.60,AMS Care Wiltshire ,130764,SN4 ,Community Services,North Locality OP,Adult Care Nursing Placements- Block Contract,Third Party Payments,REVENUE
http://statistics.data.gov.uk/id/local-authority/00HY,Wiltshire Council,10/02/2016,5106827859,448.00,AMS Care Wiltshire ,130764,SN4 ,Community Services,OP North FNC,Adult Care Funded Nursing Care - Loal Auth Clients,Third Party Payments,REVENUE
http://statistics.data.gov.uk/id/local-authority/00HY,Wiltshire Council,10/02/2016,5106827912,2549.60,AMS Care Wiltshire ,130764,SN4 ,Community Services,North Locality OP,Adult Care Nursing Placements- Spot Purchase,Third Party Payments,REVENUE
http://statistics.data.gov.uk/id/local-authority/00HY,Wiltshire Council,10/02/2016,5106827913,448.00,AMS Care Wiltshire ,130764,SN4 ,Community Services,OP North FNC,Adult Care Funded Nursing Care - Loal Auth Clients,Third Party Payments,REVENUE
http://statistics.data.gov.uk/id/local-authority/00HY,Wiltshire Council,10/02/2016,5106828010,2344.12,AMS Care Wiltshire ,130764,SN4 ,Community Services,Adult Care Gross Loa,Adult Care Loans,Capital charges and Expenditure,REVENUE
http://statistics.data.gov.uk/id/local-authority/00HY,Wiltshire Council,10/02/2016,5106828071,963.54,AMS Care Wiltshire ,130764,SN4 ,Community Services,BCF-Intermediate Cr,Adult Nursing Respite - Spot,Third Party Payments,REVENUE
http://statistics.data.gov.uk/id/local-authority/00HY,Wiltshire Council,10/02/2016,5106828192,2344.08,AMS Care Wiltshire ,130764,SN4 ,Community Services,North Locality OP,Adult Care Nursing Placements- Spot Purchase,Third Party Payments,REVENUE
http://statistics.data.gov.uk/id/local-authority/00HY,Wiltshire Council,10/02/2016,5106828193,448.00,AMS Care Wiltshire ,130764,SN4 ,Community Services,OP North FNC,Adult Care Funded Nursing Care - Loal Auth Clients,Third Party Payments,REVENUE
http://statistics.data.gov.uk/id/local-authority/00HY,Wiltshire Council,10/02/2016,5106828235,2367.56,AMS Care Wiltshire ,130764,SN4 ,Community Services,MH OP North Locality,Adult Care Nursing Placements- Spot Purchase,Third Party Payments,REVENUE
http://statistics.data.gov.uk/id/local-authority/00HY,Wiltshire Council,10/02/2016,5106828236,416.00,AMS Care Wiltshire ,130764,SN4 ,Community Services,MH OA North FNC,Adult Care Funded Nursing Care - Loal Auth Clients,Third Party Payments,REVENUE
http://statistics.data.gov.uk/id/local-authority/00HY,Wiltshire Council,10/02/2016,5106828280,2549.60,AMS Care Wiltshire ,130764,SN4 ,Community Services,North Locality OP,Adult Care Nursing Placements- Spot Purchase,Third Party Payments,REVENUE
http://statistics.data.gov.uk/id/local-authority/00HY,Wiltshire Council,10/02/2016,5106828281,448.00,AMS Care Wiltshire ,130764,SN4 ,Community Services,OP North FNC,Adult Care Funded Nursing Care - Loal Auth Clients,Third Party Payments,REVENUE
http://statistics.data.gov.uk/id/local-authority/00HY,Wiltshire Council,10/02/2016,5106828333,1548.02,AMS Care Wiltshire ,130764,SN4 ,Community Services,North Locality OP,Adult Care Nursing Placements- Spot Purchase,Third Party Payments,REVENUE
http://statistics.data.gov.uk/id/local-authority/00HY,Wiltshire Council,10/02/2016,5106828334,272.00,AMS Care Wiltshire ,130764,SN4 ,Community Services,OP North FNC,Adult Care Funded Nursing Care - Loal Auth Clients,Third Party Payments,REVENUE
http://statistics.data.gov.uk/id/local-authority/00HY,Wiltshire Council,10/02/2016,5106828390,1274.84,AMS Care Wiltshire ,130764,SN4 ,Community Services,West Locality OP,Adult Care Nursing Placements- Spot Purchase,Third Party Payments,REVENUE
http://statistics.data.gov.uk/id/local-authority/00HY,Wiltshire Council,19/02/2016,5106832585,1070.60,AMS Care Wiltshire ,130764,SN4 ,Community Services,BCF-Intermediate Cr,Adult Nursing Respite - Spot,Third Party Payments,REVENUE
http://statistics.data.gov.uk/id/local-authority/00HY,Wiltshire Council,19/02/2016,5106832586,2997.60,AMS Care Wiltshire ,130764,SN4 ,Community Services,BCF-Intermediate Cr,Adult Nursing Respite - Spot,Third Party Payments,REVENUE
http://statistics.data.gov.uk/id/local-authority/00HY,Wiltshire Council,19/02/2016,5106832587,2997.60,AMS Care Wiltshire ,130764,SN4 ,Community Services,BCF-Intermediate Cr,Adult Nursing Respite - Spot,Third Party Payments,REVENUE
http://statistics.data.gov.uk/id/local-authority/00HY,Wiltshire Council,19/02/2016,5106832588,2355.32,AMS Care Wiltshire ,130764,SN4 ,Community Services,BCF-Intermediate Cr,Adult Nursing Respite - Spot,Third Party Payments,REVENUE
http://statistics.data.gov.uk/id/local-authority/00HY,Wiltshire Council,19/02/2016,5106832599,1335.73,AMS Care Wiltshire ,130764,SN4 ,Community Services,BCF-Intermediate Cr,Adult Nursing Respite - Spot,Third Party Payments,REVENUE
http://statistics.data.gov.uk/id/local-authority/00HY,Wiltshire Council,19/02/2016,5106832600,1214.30,AMS Care Wiltshire ,130764,SN4 ,Community Services,BCF-Intermediate Cr,Adult Nursing Respite - Spot,Third Party Payments,REVENUE
http://statistics.data.gov.uk/id/local-authority/00HY,Wiltshire Council,19/02/2016,5106832601,3400.00,AMS Care Wiltshire ,130764,SN4 ,Community Services,BCF-Intermediate Cr,Adult Nursing Respite - Spot,Third Party Payments,REVENUE
http://statistics.data.gov.uk/id/local-authority/00HY,Wiltshire Council,19/02/2016,5106832602,1214.30,AMS Care Wiltshire ,130764,SN4 ,Community Services,BCF-Intermediate Cr,Adult Nursing Respite - Spot,Third Party Payments,REVENUE
http://statistics.data.gov.uk/id/local-authority/00HY,Wiltshire Council,19/02/2016,5106832603,3400.00,AMS Care Wiltshire ,130764,SN4 ,Community Services,BCF-Intermediate Cr,Adult Nursing Respite - Spot,Third Party Payments,REVENUE
http://statistics.data.gov.uk/id/local-authority/00HY,Wiltshire Council,19/02/2016,5106832634,1578.59,AMS Care Wiltshire ,130764,SN4 ,Community Services,BCF-Intermediate Cr,Adult Nursing Respite - Spot,Third Party Payments,REVENUE
http://statistics.data.gov.uk/id/local-authority/00HY,Wiltshire Council,19/02/2016,5106832640,2003.32,AMS Care Wiltshire ,130764,SN4 ,Community Services,North Locality OP,Adult Care Nursing Placements- Block Contract,Third Party Payments,REVENUE
http://statistics.data.gov.uk/id/local-authority/00HY,Wiltshire Council,19/02/2016,5106832641,352.00,AMS Care Wiltshire ,130764,SN4 ,Community Services,OP North FNC,Adult Care Funded Nursing Care - Loal Auth Clients,Third Party Payments,REVENUE
http://statistics.data.gov.uk/id/local-authority/00HY,Wiltshire Council,19/02/2016,5106832643,2549.60,AMS Care Wiltshire ,130764,SN4 ,Community Services,North Locality OP,Adult Care Nursing Placements- Block Contract,Third Party Payments,REVENUE
http://statistics.data.gov.uk/id/local-authority/00HY,Wiltshire Council,19/02/2016,5106832644,448.00,AMS Care Wiltshire ,130764,SN4 ,Community Services,OP North FNC,Adult Care Funded Nursing Care - Loal Auth Clients,Third Party Payments,REVENUE
http://statistics.data.gov.uk/id/local-authority/00HY,Wiltshire Council,19/02/2016,5106832646,2549.60,AMS Care Wiltshire ,130764,SN4 ,Community Services,North Locality OP,Adult Care Nursing Placements- Block Contract,Third Party Payments,REVENUE
http://statistics.data.gov.uk/id/local-authority/00HY,Wiltshire Council,19/02/2016,5106832647,448.00,AMS Care Wiltshire ,130764,SN4 ,Community Services,OP North FNC,Adult Care Funded Nursing Care - Loal Auth Clients,Third Party Payments,REVENUE
http://statistics.data.gov.uk/id/local-authority/00HY,Wiltshire Council,19/02/2016,5106832649,2260.44,AMS Care Wiltshire ,130764,SN4 ,Community Services,North Locality OP,Adult Care Nursing Placements- Block Contract,Third Party Payments,REVENUE
http://statistics.data.gov.uk/id/local-authority/00HY,Wiltshire Council,19/02/2016,5106832650,432.00,AMS Care Wiltshire ,130764,SN4 ,Community Services,OP North FNC,Adult Care Funded Nursing Care - Loal Auth Clients,Third Party Payments,REVENUE
http://statistics.data.gov.uk/id/local-authority/00HY,Wiltshire Council,19/02/2016,5106832652,2344.08,AMS Care Wiltshire ,130764,SN4 ,Community Services,North Locality OP,Adult Care Nursing Placements- Block Contract,Third Party Payments,REVENUE
http://statistics.data.gov.uk/id/local-authority/00HY,Wiltshire Council,19/02/2016,5106832653,448.00,AMS Care Wiltshire ,130764,SN4 ,Community Services,OP North FNC,Adult Care Funded Nursing Care - Loal Auth Clients,Third Party Payments,REVENUE
http://statistics.data.gov.uk/id/local-authority/00HY,Wiltshire Council,19/02/2016,5106832660,1821.20,AMS Care Wiltshire ,130764,SN4 ,Community Services,North Locality OP,Adult Care Nursing Placements- Block Contract,Third Party Payments,REVENUE
http://statistics.data.gov.uk/id/local-authority/00HY,Wiltshire Council,19/02/2016,5106832661,320.00,AMS Care Wiltshire ,130764,SN4 ,Community Services,OP North FNC,Adult Care Funded Nursing Care - Loal Auth Clients,Third Party Payments,REVENUE
http://statistics.data.gov.uk/id/local-authority/00HY,Wiltshire Council,19/02/2016,5106832663,2549.60,AMS Care Wiltshire ,130764,SN4 ,Community Services,North Locality OP,Adult Care Nursing Placements- Block Contract,Third Party Payments,REVENUE
http://statistics.data.gov.uk/id/local-authority/00HY,Wiltshire Council,19/02/2016,5106832664,448.00,AMS Care Wiltshire ,130764,SN4 ,Community Services,OP North FNC,Adult Care Funded Nursing Care - Loal Auth Clients,Third Party Payments,REVENUE
http://statistics.data.gov.uk/id/local-authority/00HY,Wiltshire Council,19/02/2016,5106832666,2549.60,AMS Care Wiltshire ,130764,SN4 ,Community Services,North Locality OP,Adult Care Nursing Placements- Block Contract,Third Party Payments,REVENUE
http://statistics.data.gov.uk/id/local-authority/00HY,Wiltshire Council,19/02/2016,5106832667,448.00,AMS Care Wiltshire ,130764,SN4 ,Community Services,OP North FNC,Adult Care Funded Nursing Care - Loal Auth Clients,Third Party Payments,REVENUE
http://statistics.data.gov.uk/id/local-authority/00HY,Wiltshire Council,19/02/2016,5106832669,2549.60,AMS Care Wiltshire ,130764,SN4 ,Community Services,North Locality OP,Adult Care Nursing Placements- Block Contract,Third Party Payments,REVENUE
http://statistics.data.gov.uk/id/local-authority/00HY,Wiltshire Council,19/02/2016,5106832670,448.00,AMS Care Wiltshire ,130764,SN4 ,Community Services,OP North FNC,Adult Care Funded Nursing Care - Loal Auth Clients,Third Party Payments,REVENUE
http://statistics.data.gov.uk/id/local-authority/00HY,Wiltshire Council,19/02/2016,5106832672,2549.60,AMS Care Wiltshire ,130764,SN4 ,Community Services,North Locality OP,Adult Care Nursing Placements- Block Contract,Third Party Payments,REVENUE
http://statistics.data.gov.uk/id/local-authority/00HY,Wiltshire Council,19/02/2016,5106832673,448.00,AMS Care Wiltshire ,130764,SN4 ,Community Services,OP North FNC,Adult Care Funded Nursing Care - Loal Auth Clients,Third Party Payments,REVENUE
http://statistics.data.gov.uk/id/local-authority/00HY,Wiltshire Council,19/02/2016,5106832681,364.24,AMS Care Wiltshire ,130764,SN4 ,Community Services,West Locality OP,Adult Care Nursing Placements- Block Contract,Third Party Payments,REVENUE
http://statistics.data.gov.uk/id/local-authority/00HY,Wiltshire Council,19/02/2016,5106832804,1730.14,AMS Care Wiltshire ,130764,SN4 ,Community Services,MH OP North Locality,Adult Care Nursing Placements- Block Contract,Third Party Payments,REVENUE
http://statistics.data.gov.uk/id/local-authority/00HY,Wiltshire Council,19/02/2016,5106832805,304.00,AMS Care Wiltshire ,130764,SN4 ,Community Services,MH OA North FNC,Adult Care Funded Nursing Care - Loal Auth Clients,Third Party Payments,REVENUE
http://statistics.data.gov.uk/id/local-authority/00HY,Wiltshire Council,24/02/2016,5106834063,1927.08,AMS Care Wiltshire ,130764,SN4 ,Community Services,MH OP North Locality,Adult Care Nursing Placements- Spot Purchase,Third Party Payments,REVENUE
http://statistics.data.gov.uk/id/local-authority/00HY,Wiltshire Council,24/02/2016,5106834064,288.00,AMS Care Wiltshire ,130764,SN4 ,Community Services,MH OA North FNC,Adult Care Funded Nursing Care - Loal Auth Clients,Third Party Payments,REVENUE
http://statistics.data.gov.uk/id/local-authority/00HY,Wiltshire Council,24/02/2016,5106834065,2997.60,AMS Care Wiltshire ,130764,SN4 ,Community Services,MH OP North Locality,Adult Care Nursing Placements- Spot Purchase,Third Party Payments,REVENUE
http://statistics.data.gov.uk/id/local-authority/00HY,Wiltshire Council,24/02/2016,5106834066,448.00,AMS Care Wiltshire ,130764,SN4 ,Community Services,MH OA North FNC,Adult Care Funded Nursing Care - Loal Auth Clients,Third Party Payments,REVENUE
http://statistics.data.gov.uk/id/local-authority/00HY,Wiltshire Council,24/02/2016,5106834067,2997.60,AMS Care Wiltshire ,130764,SN4 ,Community Services,MH OP North Locality,Adult Care Nursing Placements- Spot Purchase,Third Party Payments,REVENUE
http://statistics.data.gov.uk/id/local-authority/00HY,Wiltshire Council,24/02/2016,5106834068,448.00,AMS Care Wiltshire ,130764,SN4 ,Community Services,MH OA North FNC,Adult Care Funded Nursing Care - Loal Auth Clients,Third Party Payments,REVENUE
http://statistics.data.gov.uk/id/local-authority/00HY,Wiltshire Council,24/02/2016,5106834069,2997.60,AMS Care Wiltshire ,130764,SN4 ,Community Services,MH OP North Locality,Adult Care Nursing Placements- Spot Purchase,Third Party Payments,REVENUE
http://statistics.data.gov.uk/id/local-authority/00HY,Wiltshire Council,24/02/2016,5106834070,448.00,AMS Care Wiltshire ,130764,SN4 ,Community Services,MH OA North FNC,Adult Care Funded Nursing Care - Loal Auth Clients,Third Party Payments,REVENUE
http://statistics.data.gov.uk/id/local-authority/00HY,Wiltshire Council,26/02/2016,5106835883,2458.62,AMS Care Wiltshire ,130764,SN4 ,Community Services,Adult Care Gross Loa,Adult Care Loans,Capital charges and Expenditure,REVENUE
http://statistics.data.gov.uk/id/local-authority/00HY,Wiltshire Council,10/02/2016,5106825395,3269.32,Andover Nursing Home ,110142,SP10,Community Services,East Locality OP,Adult Care Nursing Placements- Spot Purchase,Third Party Payments,REVENUE
http://statistics.data.gov.uk/id/local-authority/00HY,Wiltshire Council,12/02/2016,5106831612,2600.00,Andrew Townsend Architects ,133345,SN7 ,Wiltshire Council,Wiltshire Council,Highways - Other Materials,Supplies and Services,CAPITAL
http://statistics.data.gov.uk/id/local-authority/00HY,Wiltshire Council,04.02.2016,1901659879,752.15,Andy Taxis Limited ,100874,SP4 ,Neighbourhood & Planning,Mainstream Primary,Transport Contracts,Third Party Payments,REVENUE
http://statistics.data.gov.uk/id/local-authority/00HY,Wiltshire Council,04.02.2016,1901659879,1253.65,Andy Taxis Limited ,100874,SP4 ,Neighbourhood & Planning,Mainstream Secondary,Transport Contracts,Third Party Payments,REVENUE
http://statistics.data.gov.uk/id/local-authority/00HY,Wiltshire Council,08.02.2016,1901660402,1111.11,Andybus  and  Coach Ltd ,100132,SN16,Neighbourhood & Planning,Mainstream Primary,Transport Contracts,Third Party Payments,REVENUE
http://statistics.data.gov.uk/id/local-authority/00HY,Wiltshire Council,08.02.2016,1901660402,17253.34,Andybus  and  Coach Ltd ,100132,SN16,Neighbourhood & Planning,Mainstream Secondary,Transport Contracts,Third Party Payments,REVENUE
http://statistics.data.gov.uk/id/local-authority/00HY,Wiltshire Council,08.02.2016,1901660403,3082.68,Andybus  and  Coach Ltd ,100132,SN16,Neighbourhood & Planning,Mainstream Secondary,Transport Contracts,Third Party Payments,REVENUE
http://statistics.data.gov.uk/id/local-authority/00HY,Wiltshire Council,08.02.2016,1901660404,2983.26,Andybus  and  Coach Ltd ,100132,SN16,Neighbourhood & Planning,Mainstream Secondary,Transport Contracts,Third Party Payments,REVENUE
http://statistics.data.gov.uk/id/local-authority/00HY,Wiltshire Council,08.02.2016,1901660405,446.09,Andybus  and  Coach Ltd ,100132,SN16,Neighbourhood & Planning,Mainstream 16+ Sec,Transport Contracts,Third Party Payments,REVENUE
http://statistics.data.gov.uk/id/local-authority/00HY,Wiltshire Council,08.02.2016,1901660405,2800.16,Andybus  and  Coach Ltd ,100132,SN16,Neighbourhood & Planning,Mainstream Secondary,Transport Contracts,Third Party Payments,REVENUE
http://statistics.data.gov.uk/id/local-authority/00HY,Wiltshire Council,08.02.2016,1901660406,258.52,Andybus  and  Coach Ltd ,100132,SN16,Neighbourhood & Planning,Mainstream 16+ Sec,Transport Contracts,Third Party Payments,REVENUE
http://statistics.data.gov.uk/id/local-authority/00HY,Wiltshire Council,08.02.2016,1901660406,3028.16,Andybus  and  Coach Ltd ,100132,SN16,Neighbourhood & Planning,Mainstream Secondary,Transport Contracts,Third Party Payments,REVENUE
http://statistics.data.gov.uk/id/local-authority/00HY,Wiltshire Council,24/02/2016,5106833344,324.58,ANGEL HOTEL CHIPPENHAM ,110150,SN15,Children & Education,School Effectvnss Tm,Premises Rental / Hire Charges,Premises Related,REVENUE
http://statistics.data.gov.uk/id/local-authority/00HY,Wiltshire Council,10/02/2016,5106826518,1978.40,Angus Council ,135802,DD8 ,Community Services,CTPLD Place CIC U65,Adult Residential Placements - Spot Purchase,Third Party Payments,REVENUE
http://statistics.data.gov.uk/id/local-authority/00HY,Wiltshire Council,08/02/2016,5106817745,575.00,Annie's Catering ,125517,SN10,Children & Education,In house fostering t,Carer Recruitment & Training,Third Party Payments,REVENUE
http://statistics.data.gov.uk/id/local-authority/00HY,Wiltshire Council,29/02/2016,5106836075,4300.08,Any Body can Cook ,125066,BA12,Health & Wellbeing,FoodSafetyN&W,Consultants� Fees,Supplies and Services,REVENUE
http://statistics.data.gov.uk/id/local-authority/00HY,Wiltshire Council,09.02.2016,1901660551,1984.18,Aon Limited ,113554,LE1 ,Neighbourhood & Planning,Admin Hsg Management,Tenants� Contents Insurance,Premises Related,REVENUE
http://statistics.data.gov.uk/id/local-authority/00HY,Wiltshire Council,09.02.2016,1901660553,3316.84,Aon Limited ,113554,LE1 ,Neighbourhood & Planning,Admin Hsg Management,Tenants� Contents Insurance,Premises Related,REVENUE
http://statistics.data.gov.uk/id/local-authority/00HY,Wiltshire Council,01/02/2016,5106822512,390.00,APA Consultants Ltd ,113361,SN10,Neighbourhood & Planning,DevConCent,Consultants� Fees,Supplies and Services,REVENUE
http://statistics.data.gov.uk/id/local-authority/00HY,Wiltshire Council,04/02/2016,5106824199,390.00,APA Consultants Ltd ,113361,SN10,Neighbourhood & Planning,DevControlSouth,Consultants� Fees,Supplies and Services,REVENUE
http://statistics.data.gov.uk/id/local-authority/00HY,Wiltshire Council,10/02/2016,5106828665,3120.00,APA Consultants Ltd ,113361,SN10,Neighbourhood & Planning,DevControlNorth,Consultants� Fees,Supplies and Services,REVENUE
http://statistics.data.gov.uk/id/local-authority/00HY,Wiltshire Council,23.02.2016,1901672584,1926.64,APL Travel Limited ,100596,SN4 ,Neighbourhood & Planning,Mainstream 16+ FE,Transport Contract -  Bus Season Tickets,Third Party Payments,REVENUE
http://statistics.data.gov.uk/id/local-authority/00HY,Wiltshire Council,23.02.2016,1901672584,2096.96,APL Travel Limited ,100596,SN4 ,Neighbourhood & Planning,Mainstream Secondary,Transport Contract -  Bus Season Tickets,Third Party Payments,REVENUE
http://statistics.data.gov.uk/id/local-authority/00HY,Wiltshire Council,23.02.2016,1901672585,384.57,APL Travel Limited ,100596,SN4 ,Neighbourhood & Planning,Public Transport,Transport Contracts,Third Party Payments,REVENUE
http://statistics.data.gov.uk/id/local-authority/00HY,Wiltshire Council,23.02.2016,1901672586,478.56,APL Travel Limited ,100596,SN4 ,Neighbourhood & Planning,Public Transport,Transport Contracts,Third Party Payments,REVENUE
http://statistics.data.gov.uk/id/local-authority/00HY,Wiltshire Council,23.02.2016,1901672587,3736.67,APL Travel Limited ,100596,SN4 ,Neighbourhood & Planning,Mainstream Secondary,Transport Contracts,Third Party Payments,REVENUE
http://statistics.data.gov.uk/id/local-authority/00HY,Wiltshire Council,23.02.2016,1901672588,3900.00,APL Travel Limited ,100596,SN4 ,Neighbourhood & Planning,Public Transport,Transport Contracts,Third Party Payments,REVENUE
http://statistics.data.gov.uk/id/local-authority/00HY,Wiltshire Council,23.02.2016,1901672589,1837.16,APL Travel Limited ,100596,SN4 ,Neighbourhood & Planning,Mainstream Secondary,Transport Contracts,Third Party Payments,REVENUE
http://statistics.data.gov.uk/id/local-authority/00HY,Wiltshire Council,23.02.2016,1901672589,20412.84,APL Travel Limited ,100596,SN4 ,Neighbourhood & Planning,Public Transport,Transport Contracts,Third Party Payments,REVENUE
http://statistics.data.gov.uk/id/local-authority/00HY,Wiltshire Council,23.02.2016,1901672590,1100.00,APL Travel Limited ,100596,SN4 ,Neighbourhood & Planning,Mainstream Primary,Transport Contracts,Third Party Payments,REVENUE
http://statistics.data.gov.uk/id/local-authority/00HY,Wiltshire Council,23.02.2016,1901672594,830.03,APL Travel Limited ,100596,SN4 ,Neighbourhood & Planning,Mainstream Primary,Transport Contracts,Third Party Payments,REVENUE
http://statistics.data.gov.uk/id/local-authority/00HY,Wiltshire Council,23.02.2016,1901672594,943.61,APL Travel Limited ,100596,SN4 ,Neighbourhood & Planning,Mainstream 16+ FE,Transport Contracts,Third Party Payments,REVENUE
http://statistics.data.gov.uk/id/local-authority/00HY,Wiltshire Council,23.02.2016,1901672594,5312.17,APL Travel Limited ,100596,SN4 ,Neighbourhood & Planning,Mainstream Secondary,Transport Contracts,Third Party Payments,REVENUE
http://statistics.data.gov.uk/id/local-authority/00HY,Wiltshire Council,23.02.2016,1901672594,10093.11,APL Travel Limited ,100596,SN4 ,Neighbourhood & Planning,Connect 2 Wiltshire,Transport Contracts,Third Party Payments,REVENUE
http://statistics.data.gov.uk/id/local-authority/00HY,Wiltshire Council,25.02.2016,1901674185,4820.18,APL Travel Limited ,100596,SN4 ,Neighbourhood & Planning,Concessionary Fares,Compensation for Concessionary fares,Third Party Payments,REVENUE
http://statistics.data.gov.uk/id/local-authority/00HY,Wiltshire Council,10/02/2016,5106826077,3400.00,Arbory Residential Home ,113587,SP11,Community Services,MH AOWA South Locali,Adult Residential Placements - Spot Purchase,Third Party Payments,REVENUE
http://statistics.data.gov.uk/id/local-authority/00HY,Wiltshire Council,10/02/2016,5106826692,2626.00,Arbory Residential Home ,113587,SP11,Community Services,MH OP North Locality,Adult Residential Placements - Spot Purchase,Third Party Payments,REVENUE
http://statistics.data.gov.uk/id/local-authority/00HY,Wiltshire Council,10/02/2016,5106827654,3600.00,Arbory Residential Home ,113587,SP11,Community Services,MH OP South Locality,Adult Residential Placements - Spot Purchase,Third Party Payments,REVENUE
http://statistics.data.gov.uk/id/local-authority/00HY,Wiltshire Council,10/02/2016,5106826767,2094.92,Arch Care Services Ltd ,110169,BS21,Community Services,MH AOWA North Locali,Adult Residential Placements - Spot Purchase,Third Party Payments,REVENUE
http://statistics.data.gov.uk/id/local-authority/00HY,Wiltshire Council,12.02.2016,1901662416,700.00,Arrow Private Hire ,100574,SN8 ,Neighbourhood & Planning,Mainstream Secondary,Transport Contracts,Third Party Payments,REVENUE
http://statistics.data.gov.uk/id/local-authority/00HY,Wiltshire Council,19/02/2016,5106832431,14800.00,Artlift ,140282,GL11,Neighbourhood & Planning,Mental Health and We,Public Health Commissioning,Supplies and Services,REVENUE
http://statistics.data.gov.uk/id/local-authority/00HY,Wiltshire Council,15/02/2016,5106822711,415.00,ASCEL ,113625,DE3 ,Community Services,Lib General,Conference Fees,Supplies and Services,REVENUE
http://statistics.data.gov.uk/id/local-authority/00HY,Wiltshire Council,15/02/2016,5106822712,415.00,ASCEL ,113625,DE3 ,Children & Education,WiltsLearnResources,Staff Training Course Costs,Employee Related,REVENUE
http://statistics.data.gov.uk/id/local-authority/00HY,Wiltshire Council,10/02/2016,5106826146,2252.04,Ashbourne Court Care Home ,133906,SP10,Community Services,East Locality OP,Adult Care Nursing Placements- Spot Purchase,Third Party Payments,REVENUE
http://statistics.data.gov.uk/id/local-authority/00HY,Wiltshire Council,10/02/2016,5106826503,2065.64,Ashbourne Court Care Home ,133906,SP10,Community Services,East Locality OP,Adult Care Nursing Placements- Spot Purchase,Third Party Payments,REVENUE
http://statistics.data.gov.uk/id/local-authority/00HY,Wiltshire Council,12/02/2016,5106831336,818.45,Ashbourne Court Care Home ,133906,SP10,Community Services,East Locality OP,Adult Care Nursing Placements- Spot Purchase,Third Party Payments,REVENUE
http://statistics.data.gov.uk/id/local-authority/00HY,Wiltshire Council,10/02/2016,5106827300,2170.64,Ashbury Lodge ,113635,SN3 ,Community Services,MH OP North Locality,Adult Residential Placements - Spot Purchase,Third Party Payments,REVENUE
http://statistics.data.gov.uk/id/local-authority/00HY,Wiltshire Council,17/02/2016,5106832156,2972.50,Ashfords Solicitors ,113641,EX1 ,Neighbourhood & Planning,Director Econ&Entprs,Legal Fees,Supplies and Services,REVENUE
http://statistics.data.gov.uk/id/local-authority/00HY,Wiltshire Council,17/02/2016,5106832157,4991.00,Ashfords Solicitors ,113641,EX1 ,Neighbourhood & Planning,Director Econ&Entprs,Legal Fees,Supplies and Services,REVENUE
http://statistics.data.gov.uk/id/local-authority/00HY,Wiltshire Council,10/02/2016,5106827683,1520.00,Ashton Lodge Care Home ,142543,ME16,Community Services,North Locality OP,Adult Residential Placements - Spot Purchase,Third Party Payments,REVENUE
http://statistics.data.gov.uk/id/local-authority/00HY,Wiltshire Council,10/02/2016,5106825713,1841.76,Ashton Manor Nursing Home ,139060,GU10,Community Services,West Locality OP,Adult Care Nursing Placements- Spot Purchase,Third Party Payments,REVENUE
http://statistics.data.gov.uk/id/local-authority/00HY,Wiltshire Council,02/02/2016,5106822639,13972.00,Aspirations Care Ltd ,137205,L20 ,Community Services,OVA North Locality,Supported Living - Without SP payments,Third Party Payments,REVENUE
http://statistics.data.gov.uk/id/local-authority/00HY,Wiltshire Council,19/02/2016,5106832492,13263.57,Aspirations Care Ltd ,137205,L20 ,Children & Education,Ext Placement & IFA,Adult / Child Care Agency Placement,Third Party Payments,REVENUE
http://statistics.data.gov.uk/id/local-authority/00HY,Wiltshire Council,24/02/2016,5106833348,2510.29,Aspirations Care Ltd ,137205,L20 ,Children & Education,Ext Placement & IFA,Adult / Child Care Agency Placement,Third Party Payments,REVENUE
http://statistics.data.gov.uk/id/local-authority/00HY,Wiltshire Council,24/02/2016,5106833349,1299.29,Aspirations Care Ltd ,137205,L20 ,Children & Education,Ext Placement & IFA,Adult / Child Care Agency Placement,Third Party Payments,REVENUE
http://statistics.data.gov.uk/id/local-authority/00HY,Wiltshire Council,24/02/2016,5106833350,573.75,Aspirations Care Ltd ,137205,L20 ,Children & Education,Ext Placement & IFA,Adult / Child Care Agency Placement,Third Party Payments,REVENUE
http://statistics.data.gov.uk/id/local-authority/00HY,Wiltshire Council,04.02.2016,1901659923,1720.45,Aspire Taxis ,101274,SP2 ,Neighbourhood & Planning,SEN Secondary,Transport Contracts,Third Party Payments,REVENUE
http://statistics.data.gov.uk/id/local-authority/00HY,Wiltshire Council,04.02.2016,1901659925,990.00,Aspire Taxis ,101274,SP2 ,Community Services,CTPLD Place CIC U65,Transport Contracts,Third Party Payments,REVENUE
http://statistics.data.gov.uk/id/local-authority/00HY,Wiltshire Council,04.02.2016,1901659926,295.00,Aspire Taxis ,101274,SP2 ,Neighbourhood & Planning,SEN 16+ FE Colleges,Transport Contracts,Third Party Payments,REVENUE
http://statistics.data.gov.uk/id/local-authority/00HY,Wiltshire Council,04.02.2016,1901659927,1600.00,Aspire Taxis ,101274,SP2 ,Neighbourhood & Planning,SEN 16+ FE Colleges,Transport Contracts,Third Party Payments,REVENUE
http://statistics.data.gov.uk/id/local-authority/00HY,Wiltshire Council,04.02.2016,1901659932,392.67,Aspire Taxis ,101274,SP2 ,Neighbourhood & Planning,SEN Primary,Transport Contracts,Third Party Payments,REVENUE
http://statistics.data.gov.uk/id/local-authority/00HY,Wiltshire Council,04.02.2016,1901659932,785.33,Aspire Taxis ,101274,SP2 ,Neighbourhood & Planning,Mainstream Primary,Transport Contracts,Third Party Payments,REVENUE
http://statistics.data.gov.uk/id/local-authority/00HY,Wiltshire Council,04.02.2016,1901659935,427.50,Aspire Taxis ,101274,SP2 ,Neighbourhood & Planning,Mainstream Primary,Transport Contracts,Third Party Payments,REVENUE
http://statistics.data.gov.uk/id/local-authority/00HY,Wiltshire Council,04.02.2016,1901659935,427.50,Aspire Taxis ,101274,SP2 ,Neighbourhood & Planning,SEN Primary,Transport Contracts,Third Party Payments,REVENUE
http://statistics.data.gov.uk/id/local-authority/00HY,Wiltshire Council,04.02.2016,1901659936,551.00,Aspire Taxis ,101274,SP2 ,Neighbourhood & Planning,Mainstream Primary,Transport Contracts,Third Party Payments,REVENUE
http://statistics.data.gov.uk/id/local-authority/00HY,Wiltshire Council,16.02.2016,1901663596,560.00,Aspire Taxis ,101274,SP2 ,Community Services,CTPLD Place CIC U65,Transport Contracts,Third Party Payments,REVENUE
http://statistics.data.gov.uk/id/local-authority/00HY,Wiltshire Council,16.02.2016,1901663596,560.00,Aspire Taxis ,101274,SP2 ,Neighbourhood & Planning,Mainstream Secondary,Transport Contracts,Third Party Payments,REVENUE
http://statistics.data.gov.uk/id/local-authority/00HY,Wiltshire Council,16.02.2016,1901663596,960.00,Aspire Taxis ,101274,SP2 ,Neighbourhood & Planning,Mainstream Primary,Transport Contracts,Third Party Payments,REVENUE
http://statistics.data.gov.uk/id/local-authority/00HY,Wiltshire Council,16.02.2016,1901663596,2040.00,Aspire Taxis ,101274,SP2 ,Neighbourhood & Planning,SEN Primary,Transport Contracts,Third Party Payments,REVENUE
http://statistics.data.gov.uk/id/local-authority/00HY,Wiltshire Council,18.02.2016,1901672176,1406.00,Aspire Taxis ,101274,SP2 ,Neighbourhood & Planning,SEN Secondary,Transport Contracts,Third Party Payments,REVENUE
http://statistics.data.gov.uk/id/local-authority/00HY,Wiltshire Council,18.02.2016,1901672177,408.00,Aspire Taxis ,101274,SP2 ,Community Services,CTPLD Place CIC U65,Transport Contracts,Third Party Payments,REVENUE
http://statistics.data.gov.uk/id/local-authority/00HY,Wiltshire Council,18.02.2016,1901672185,378.10,Aspire Taxis ,101274,SP2 ,Neighbourhood & Planning,Mainstream Primary,Transport Contracts,Third Party Payments,REVENUE
http://statistics.data.gov.uk/id/local-authority/00HY,Wiltshire Council,18.02.2016,1901672188,700.00,Aspire Taxis ,101274,SP2 ,Neighbourhood & Planning,Mainstream Primary,Transport Contracts,Third Party Payments,REVENUE
http://statistics.data.gov.uk/id/local-authority/00HY,Wiltshire Council,18.02.2016,1901672190,900.00,Aspire Taxis ,101274,SP2 ,Neighbourhood & Planning,SEN Primary,Transport Contracts,Third Party Payments,REVENUE
http://statistics.data.gov.uk/id/local-authority/00HY,Wiltshire Council,18.02.2016,1901672196,762.28,Aspire Taxis ,101274,SP2 ,Neighbourhood & Planning,Mainstream Primary,Transport Contracts,Third Party Payments,REVENUE
http://statistics.data.gov.uk/id/local-authority/00HY,Wiltshire Council,18.02.2016,1901672200,764.04,Aspire Taxis ,101274,SP2 ,Neighbourhood & Planning,SEN Primary,Transport Contracts,Third Party Payments,REVENUE
http://statistics.data.gov.uk/id/local-authority/00HY,Wiltshire Council,18.02.2016,1901672200,3015.96,Aspire Taxis ,101274,SP2 ,Neighbourhood & Planning,SEN Secondary,Transport Contracts,Third Party Payments,REVENUE
http://statistics.data.gov.uk/id/local-authority/00HY,Wiltshire Council,18.02.2016,1901672203,2641.00,Aspire Taxis ,101274,SP2 ,Neighbourhood & Planning,Mainstream Secondary,Transport Contracts,Third Party Payments,REVENUE
http://statistics.data.gov.uk/id/local-authority/00HY,Wiltshire Council,18.02.2016,1901672204,517.50,Aspire Taxis ,101274,SP2 ,Children & Education,EOTAS Service,Transport Contracts,Third Party Payments,REVENUE
http://statistics.data.gov.uk/id/local-authority/00HY,Wiltshire Council,18.02.2016,1901672204,517.50,Aspire Taxis ,101274,SP2 ,Neighbourhood & Planning,SEN 16+ Secondary,Transport Contracts,Third Party Payments,REVENUE
http://statistics.data.gov.uk/id/local-authority/00HY,Wiltshire Council,22.02.2016,1901672433,700.00,Aspire Taxis ,101274,SP2 ,Community Services,CTPLD Place CIC U65,Transport Contracts,Third Party Payments,REVENUE
http://statistics.data.gov.uk/id/local-authority/00HY,Wiltshire Council,22.02.2016,1901672445,1070.00,Aspire Taxis ,101274,SP2 ,Neighbourhood & Planning,Mainstream Primary,Transport Contracts,Third Party Payments,REVENUE
http://statistics.data.gov.uk/id/local-authority/00HY,Wiltshire Council,29.02.2016,1901674478,737.00,Aspire Taxis ,101274,SP2 ,Neighbourhood & Planning,SEN 16+ Secondary,Transport Contracts,Third Party Payments,REVENUE
http://statistics.data.gov.uk/id/local-authority/00HY,Wiltshire Council,01.02.2016,1901644277,500.00,Aster Living ,112275,SN10,Wiltshire Council,Wiltshire Council,Other Professional Fees,Supplies and Services,CAPITAL
http://statistics.data.gov.uk/id/local-authority/00HY,Wiltshire Council,01.02.2016,1901644285,500.00,Aster Living ,112275,SN10,Wiltshire Council,Wiltshire Council,Other Professional Fees,Supplies and Services,CAPITAL
http://statistics.data.gov.uk/id/local-authority/00HY,Wiltshire Council,01.02.2016,1901644289,1773.60,Aster Living ,112275,SN10,Wiltshire Council,Wiltshire Council,Other Professional Fees,Supplies and Services,CAPITAL
http://statistics.data.gov.uk/id/local-authority/00HY,Wiltshire Council,01.02.2016,1901654627,500.00,Aster Living ,112275,SN10,Wiltshire Council,Wiltshire Council,Other Professional Fees,Supplies and Services,CAPITAL
http://statistics.data.gov.uk/id/local-authority/00HY,Wiltshire Council,01.02.2016,1901654653,500.00,Aster Living ,112275,SN10,Wiltshire Council,Wiltshire Council,Other Professional Fees,Supplies and Services,CAPITAL
http://statistics.data.gov.uk/id/local-authority/00HY,Wiltshire Council,05.02.2016,1901656473,500.00,Aster Living ,112275,SN10,Wiltshire Council,Wiltshire Council,Other Professional Fees,Supplies and Services,CAPITAL
http://statistics.data.gov.uk/id/local-authority/00HY,Wiltshire Council,05.02.2016,1901656611,1348.77,Aster Living ,112275,SN10,Wiltshire Council,Wiltshire Council,Other Professional Fees,Supplies and Services,CAPITAL
http://statistics.data.gov.uk/id/local-authority/00HY,Wiltshire Council,05.02.2016,1901657511,375.00,Aster Living ,112275,SN10,Wiltshire Council,Wiltshire Council,Other Professional Fees,Supplies and Services,CAPITAL
http://statistics.data.gov.uk/id/local-authority/00HY,Wiltshire Council,10.02.2016,1901657794,650.00,Aster Living ,112275,SN10,Wiltshire Council,Wiltshire Council,Other Professional Fees,Supplies and Services,CAPITAL
http://statistics.data.gov.uk/id/local-authority/00HY,Wiltshire Council,10.02.2016,1901657800,500.00,Aster Living ,112275,SN10,Wiltshire Council,Wiltshire Council,Other Professional Fees,Supplies and Services,CAPITAL
http://statistics.data.gov.uk/id/local-authority/00HY,Wiltshire Council,10.02.2016,1901658115,500.00,Aster Living ,112275,SN10,Wiltshire Council,Wiltshire Council,Other Professional Fees,Supplies and Services,CAPITAL
http://statistics.data.gov.uk/id/local-authority/00HY,Wiltshire Council,02.02.2016,1901658133,999.00,Aster Living ,112275,SN10,Wiltshire Council,Wiltshire Council,Other Professional Fees,Supplies and Services,CAPITAL
http://statistics.data.gov.uk/id/local-authority/00HY,Wiltshire Council,10.02.2016,1901658266,650.00,Aster Living ,112275,SN10,Wiltshire Council,Wiltshire Council,Other Professional Fees,Supplies and Services,CAPITAL
http://statistics.data.gov.uk/id/local-authority/00HY,Wiltshire Council,10.02.2016,1901658270,714.00,Aster Living ,112275,SN10,Wiltshire Council,Wiltshire Council,Other Professional Fees,Supplies and Services,CAPITAL
http://statistics.data.gov.uk/id/local-authority/00HY,Wiltshire Council,10.02.2016,1901658272,500.00,Aster Living ,112275,SN10,Wiltshire Council,Wiltshire Council,Other Professional Fees,Supplies and Services,CAPITAL
http://statistics.data.gov.uk/id/local-authority/00HY,Wiltshire Council,02.02.2016,1901658393,1801.00,Aster Living ,112275,SN10,Wiltshire Council,Wiltshire Council,Other Professional Fees,Supplies and Services,CAPITAL
http://statistics.data.gov.uk/id/local-authority/00HY,Wiltshire Council,11.02.2016,1901661663,650.00,Aster Living ,112275,SN10,Wiltshire Council,Wiltshire Council,Other Professional Fees,Supplies and Services,CAPITAL
http://statistics.data.gov.uk/id/local-authority/00HY,Wiltshire Council,29.02.2016,1901663573,650.00,Aster Living ,112275,SN10,Wiltshire Council,Wiltshire Council,Other Professional Fees,Supplies and Services,CAPITAL
http://statistics.data.gov.uk/id/local-authority/00HY,Wiltshire Council,16.02.2016,1901663613,1580.50,Aster Living ,112275,SN10,Wiltshire Council,Wiltshire Council,Other Professional Fees,Supplies and Services,CAPITAL
http://statistics.data.gov.uk/id/local-authority/00HY,Wiltshire Council,29.02.2016,1901671402,500.00,Aster Living ,112275,SN10,Wiltshire Council,Wiltshire Council,Other Professional Fees,Supplies and Services,CAPITAL
http://statistics.data.gov.uk/id/local-authority/00HY,Wiltshire Council,29.02.2016,1901671405,1699.50,Aster Living ,112275,SN10,Wiltshire Council,Wiltshire Council,Other Professional Fees,Supplies and Services,CAPITAL
http://statistics.data.gov.uk/id/local-authority/00HY,Wiltshire Council,23.02.2016,1901672523,3000.00,Aster Living ,112275,SN10,Wiltshire Council,Wiltshire Council,Other Professional Fees,Supplies and Services,CAPITAL
http://statistics.data.gov.uk/id/local-authority/00HY,Wiltshire Council,26/02/2016,5106828598,3680.00,ATECH COACHBUILDERS LTD ,110196,BA13,Health & Wellbeing,PestControl,Vehicle Purchases,Transport Related,REVENUE
http://statistics.data.gov.uk/id/local-authority/00HY,Wiltshire Council,23/02/2016,5106833071,1750.00,Atkins Limited (P.S. Framework) ,137102,KT18,Wiltshire Council,Wiltshire Council,Buildings Minor Alterations,Premises Related,CAPITAL
http://statistics.data.gov.uk/id/local-authority/00HY,Wiltshire Council,08.02.2016,1901660243,487643.00,Atkins Ltd ,110197,KT18,Neighbourhood & Planning,Mouchel Contract,Highways Term - Consultant,Third Party Payments,REVENUE
http://statistics.data.gov.uk/id/local-authority/00HY,Wiltshire Council,26/02/2016,5106832497,15360.02,ATS Euromaster Limited ,110201,DN4 ,Neighbourhood & Planning,Fleet Operations,Vehicle 3rd Party Repairs,Transport Related,REVENUE
http://statistics.data.gov.uk/id/local-authority/00HY,Wiltshire Council,03.02.2016,1901658525,648.00,Audley Care White Horse ,121958,SN8 ,Community Services,HTLAH - Neighbourhoo,Interim Support Plan - HTLAH,Third Party Payments,REVENUE
http://statistics.data.gov.uk/id/local-authority/00HY,Wiltshire Council,03.02.2016,1901658526,428.05,Audley Care White Horse ,121958,SN8 ,Community Services,HTLAH - Neighbourhoo,Interim Support Plan - HTLAH,Third Party Payments,REVENUE
http://statistics.data.gov.uk/id/local-authority/00HY,Wiltshire Council,10.02.2016,1901661090,769.80,Audley Care White Horse ,121958,SN8 ,Community Services,HTLAH - Neighbourhoo,Interim Support Plan - HTLAH,Third Party Payments,REVENUE
http://statistics.data.gov.uk/id/local-authority/00HY,Wiltshire Council,12.02.2016,1901661091,1026.00,Audley Care White Horse ,121958,SN8 ,Community Services,HTLAH - Neighbourhoo,Interim Support Plan - HTLAH,Third Party Payments,REVENUE
http://statistics.data.gov.uk/id/local-authority/00HY,Wiltshire Council,12.02.2016,1901661092,372.60,Audley Care White Horse ,121958,SN8 ,Community Services,HTLAH - Neighbourhoo,Interim Support Plan - HTLAH,Third Party Payments,REVENUE
http://statistics.data.gov.uk/id/local-authority/00HY,Wiltshire Council,12.02.2016,1901661095,1150.35,Audley Care White Horse ,121958,SN8 ,Community Services,HTLAH - Neighbourhoo,Interim Support Plan - HTLAH,Third Party Payments,REVENUE
http://statistics.data.gov.uk/id/local-authority/00HY,Wiltshire Council,12.02.2016,1901661096,848.90,Audley Care White Horse ,121958,SN8 ,Community Services,HTLAH - Neighbourhoo,Interim Support Plan - HTLAH,Third Party Payments,REVENUE
http://statistics.data.gov.uk/id/local-authority/00HY,Wiltshire Council,10.02.2016,1901661099,268.50,Audley Care White Horse ,121958,SN8 ,Community Services,HTLAH - Neighbourhoo,Interim Support Plan - HTLAH,Third Party Payments,REVENUE
http://statistics.data.gov.uk/id/local-authority/00HY,Wiltshire Council,10.02.2016,1901661100,261.70,Audley Care White Horse ,121958,SN8 ,Community Services,HTLAH - Neighbourhoo,Interim Support Plan - HTLAH,Third Party Payments,REVENUE
http://statistics.data.gov.uk/id/local-authority/00HY,Wiltshire Council,23/02/2016,5106833302,6919.00,Audley Care White Horse ,121958,SN8 ,Community Services,OVA East Locality,Adult Domiciliary Care - Spot,Third Party Payments,REVENUE
http://statistics.data.gov.uk/id/local-authority/00HY,Wiltshire Council,26/02/2016,5106835704,478.60,Audley Care White Horse ,121958,SN8 ,Community Services,East Locality OP,Adult Domiciliary Care - Spot,Third Party Payments,REVENUE
http://statistics.data.gov.uk/id/local-authority/00HY,Wiltshire Council,26/02/2016,5106835706,3368.20,Audley Care White Horse ,121958,SN8 ,Community Services,MH OP North Locality,Adult Domiciliary Care - Spot,Third Party Payments,REVENUE
http://statistics.data.gov.uk/id/local-authority/00HY,Wiltshire Council,26/02/2016,5106835707,585.00,Audley Care White Horse ,121958,SN8 ,Community Services,East Locality OP,Adult Domiciliary Care - Spot,Third Party Payments,REVENUE
http://statistics.data.gov.uk/id/local-authority/00HY,Wiltshire Council,26/02/2016,5106835708,1048.50,Audley Care White Horse ,121958,SN8 ,Community Services,North Locality OP,Adult Domiciliary Care - Spot,Third Party Payments,REVENUE
http://statistics.data.gov.uk/id/local-authority/00HY,Wiltshire Council,26/02/2016,5106835709,728.00,Audley Care White Horse ,121958,SN8 ,Community Services,North Locality OP,Adult Domiciliary Care - Spot,Third Party Payments,REVENUE
http://statistics.data.gov.uk/id/local-authority/00HY,Wiltshire Council,26/02/2016,5106835710,2642.00,Audley Care White Horse ,121958,SN8 ,Community Services,North Locality OP,Adult Domiciliary Care - Spot,Third Party Payments,REVENUE
http://statistics.data.gov.uk/id/local-authority/00HY,Wiltshire Council,26/02/2016,5106835711,1724.30,Audley Care White Horse ,121958,SN8 ,Community Services,East Locality OP,Adult Domiciliary Care - Spot,Third Party Payments,REVENUE
http://statistics.data.gov.uk/id/local-authority/00HY,Wiltshire Council,26/02/2016,5106835712,424.80,Audley Care White Horse ,121958,SN8 ,Community Services,North Locality OP,Adult Domiciliary Care - Spot,Third Party Payments,REVENUE
http://statistics.data.gov.uk/id/local-authority/00HY,Wiltshire Council,26/02/2016,5106835717,615.85,Audley Care White Horse ,121958,SN8 ,Community Services,North Locality OP,Adult Domiciliary Care - Spot,Third Party Payments,REVENUE
http://statistics.data.gov.uk/id/local-authority/00HY,Wiltshire Council,26/02/2016,5106835736,3997.00,Audley Care White Horse ,121958,SN8 ,Community Services,MH AOWA North Locali,Adult Domiciliary Care - Spot,Third Party Payments,REVENUE
http://statistics.data.gov.uk/id/local-authority/00HY,Wiltshire Council,26/02/2016,5106835737,1142.60,Audley Care White Horse ,121958,SN8 ,Community Services,OVA North Locality,Adult Domiciliary Care - Spot,Third Party Payments,REVENUE
http://statistics.data.gov.uk/id/local-authority/00HY,Wiltshire Council,26/02/2016,5106835739,681.65,Audley Care White Horse ,121958,SN8 ,Community Services,North Locality OP,Adult Domiciliary Care - Spot Contribution,Income,REVENUE
http://statistics.data.gov.uk/id/local-authority/00HY,Wiltshire Council,26/02/2016,5106835740,617.00,Audley Care White Horse ,121958,SN8 ,Community Services,East Locality OP,Adult Domiciliary Care - Spot,Third Party Payments,REVENUE
http://statistics.data.gov.uk/id/local-authority/00HY,Wiltshire Council,10/02/2016,5106826333,6660.00,Autism Care Wiltshire ,136507,SN25,Community Services,CTPLD Place CIC U65,Adult Residential Placements - Spot Purchase,Third Party Payments,REVENUE
http://statistics.data.gov.uk/id/local-authority/00HY,Wiltshire Council,10/02/2016,5106828067,5882.68,Autism Specialised care Homes ,110205,BS10,Community Services,CTPLD Place CIC U65,Adult Residential Placements - Spot Purchase,Third Party Payments,REVENUE
http://statistics.data.gov.uk/id/local-authority/00HY,Wiltshire Council,10/02/2016,5106826801,6086.08,Autism Wessex ,112911,BH23,Community Services,CTPLD Place CIC U65,Adult Residential Placements - Spot Purchase,Third Party Payments,REVENUE
http://statistics.data.gov.uk/id/local-authority/00HY,Wiltshire Council,10/02/2016,5106827180,7180.12,Autism West Midlands ,110206,WR9 ,Community Services,CTPLD Place CIC U65,Adult Residential Placements - Spot Purchase,Third Party Payments,REVENUE
http://statistics.data.gov.uk/id/local-authority/00HY,Wiltshire Council,05/02/2016,5106822132,300.08,Automotive Leasing Ltd ,113729,SL1 ,Neighbourhood & Planning,Fleet Operations,Commercial Leased Vehicles,Transport Related,REVENUE
http://statistics.data.gov.uk/id/local-authority/00HY,Wiltshire Council,05/02/2016,5106822133,300.08,Automotive Leasing Ltd ,113729,SL1 ,Neighbourhood & Planning,Fleet Operations,Commercial Leased Vehicles,Transport Related,REVENUE
http://statistics.data.gov.uk/id/local-authority/00HY,Wiltshire Council,05/02/2016,5106822134,321.21,Automotive Leasing Ltd ,113729,SL1 ,Neighbourhood & Planning,Fleet Operations,Commercial Leased Vehicles,Transport Related,REVENUE
http://statistics.data.gov.uk/id/local-authority/00HY,Wiltshire Council,05/02/2016,5106822135,316.75,Automotive Leasing Ltd ,113729,SL1 ,Neighbourhood & Planning,Fleet Operations,Commercial Leased Vehicles,Transport Related,REVENUE
http://statistics.data.gov.uk/id/local-authority/00HY,Wiltshire Council,05/02/2016,5106822136,307.58,Automotive Leasing Ltd ,113729,SL1 ,Neighbourhood & Planning,Fleet Operations,Commercial Leased Vehicles,Transport Related,REVENUE
http://statistics.data.gov.uk/id/local-authority/00HY,Wiltshire Council,17.02.2016,1901664113,960.00,Avenue Surgery ,110214,BA12,Neighbourhood & Planning,Smoking-Mgt & Commss,Public Health Commissioning,Supplies and Services,REVENUE
http://statistics.data.gov.uk/id/local-authority/00HY,Wiltshire Council,10/02/2016,5106825640,2360.36,Avery Healthcare Cepen Lodge ,126733,DL1 ,Community Services,North Locality OP,Adult Residential Placements - Spot Purchase,Third Party Payments,REVENUE
http://statistics.data.gov.uk/id/local-authority/00HY,Wiltshire Council,10/02/2016,5106826365,2320.00,Avery Healthcare Cepen Lodge ,126733,DL1 ,Community Services,North Locality OP,Adult Residential Placements - Spot Purchase,Third Party Payments,REVENUE
http://statistics.data.gov.uk/id/local-authority/00HY,Wiltshire Council,10/02/2016,5106826387,2089.16,Avery Healthcare Cepen Lodge ,126733,DL1 ,Community Services,West Locality OP,Adult Residential Placements - Spot Purchase,Third Party Payments,REVENUE
http://statistics.data.gov.uk/id/local-authority/00HY,Wiltshire Council,10/02/2016,5106826424,2187.08,Avery Healthcare Cepen Lodge ,126733,DL1 ,Community Services,North Locality OP,Adult Residential Placements - Spot Purchase,Third Party Payments,REVENUE
http://statistics.data.gov.uk/id/local-authority/00HY,Wiltshire Council,10/02/2016,5106826474,2187.08,Avery Healthcare Cepen Lodge ,126733,DL1 ,Community Services,North Locality OP,Adult Residential Placements - Spot Purchase,Third Party Payments,REVENUE
http://statistics.data.gov.uk/id/local-authority/00HY,Wiltshire Council,10/02/2016,5106826608,2173.48,Avery Healthcare Cepen Lodge ,126733,DL1 ,Community Services,MH OP North Locality,Adult Residential Placements - Spot Purchase,Third Party Payments,REVENUE
http://statistics.data.gov.uk/id/local-authority/00HY,Wiltshire Council,10/02/2016,5106826753,2187.08,Avery Healthcare Cepen Lodge ,126733,DL1 ,Community Services,North Locality OP,Adult Residential Placements - Spot Purchase,Third Party Payments,REVENUE
http://statistics.data.gov.uk/id/local-authority/00HY,Wiltshire Council,10/02/2016,5106826815,1928.68,Avery Healthcare Cepen Lodge ,126733,DL1 ,Community Services,North Locality OP,Adult Residential Placements - Spot Purchase,Third Party Payments,REVENUE
http://statistics.data.gov.uk/id/local-authority/00HY,Wiltshire Council,10/02/2016,5106826975,2360.36,Avery Healthcare Cepen Lodge ,126733,DL1 ,Community Services,MH AOWA North Locali,Adult Residential Placements - Spot Purchase,Third Party Payments,REVENUE
http://statistics.data.gov.uk/id/local-authority/00HY,Wiltshire Council,10/02/2016,5106827081,2360.36,Avery Healthcare Cepen Lodge ,126733,DL1 ,Community Services,North Locality OP,Adult Residential Placements - Spot Purchase,Third Party Payments,REVENUE
http://statistics.data.gov.uk/id/local-authority/00HY,Wiltshire Council,10/02/2016,5106827332,2340.00,Avery Healthcare Cepen Lodge ,126733,DL1 ,Community Services,MH OP North Locality,Adult Residential Placements - Spot Purchase,Third Party Payments,REVENUE
http://statistics.data.gov.uk/id/local-authority/00HY,Wiltshire Council,10/02/2016,5106827340,2360.36,Avery Healthcare Cepen Lodge ,126733,DL1 ,Community Services,MH OP North Locality,Adult Residential Placements - Spot Purchase,Third Party Payments,REVENUE
http://statistics.data.gov.uk/id/local-authority/00HY,Wiltshire Council,10/02/2016,5106827353,2360.36,Avery Healthcare Cepen Lodge ,126733,DL1 ,Community Services,North Locality OP,Adult Residential Placements - Spot Purchase,Third Party Payments,REVENUE
http://statistics.data.gov.uk/id/local-authority/00HY,Wiltshire Council,10/02/2016,5106827419,2360.36,Avery Healthcare Cepen Lodge ,126733,DL1 ,Community Services,Adult Care Gross Loa,Adult Care Loans,Capital charges and Expenditure,REVENUE
http://statistics.data.gov.uk/id/local-authority/00HY,Wiltshire Council,10/02/2016,5106827452,2360.36,Avery Healthcare Cepen Lodge ,126733,DL1 ,Community Services,North Locality OP,Adult Residential Placements - Spot Purchase,Third Party Payments,REVENUE
http://statistics.data.gov.uk/id/local-authority/00HY,Wiltshire Council,10/02/2016,5106827898,2360.36,Avery Healthcare Cepen Lodge ,126733,DL1 ,Community Services,North Locality OP,Adult Residential Placements - Spot Purchase,Third Party Payments,REVENUE
http://statistics.data.gov.uk/id/local-authority/00HY,Wiltshire Council,10/02/2016,5106828050,2800.00,Avery Healthcare Cepen Lodge ,126733,DL1 ,Community Services,MH OP North Locality,Adult Residential Placements - Spot Purchase,Third Party Payments,REVENUE
http://statistics.data.gov.uk/id/local-authority/00HY,Wiltshire Council,10/02/2016,5106828055,2360.36,Avery Healthcare Cepen Lodge ,126733,DL1 ,Community Services,MH OP North Locality,Adult Residential Placements - Spot Purchase,Third Party Payments,REVENUE
http://statistics.data.gov.uk/id/local-authority/00HY,Wiltshire Council,10/02/2016,5106828261,2360.36,Avery Healthcare Cepen Lodge ,126733,DL1 ,Community Services,North Locality OP,Adult Residential Placements - Spot Purchase,Third Party Payments,REVENUE
http://statistics.data.gov.uk/id/local-authority/00HY,Wiltshire Council,19/02/2016,5106832811,1980.22,Avery Healthcare Cepen Lodge ,126733,DL1 ,Community Services,North Locality OP,Adult Residential Placements - Spot Purchase,Third Party Payments,REVENUE
http://statistics.data.gov.uk/id/local-authority/00HY,Wiltshire Council,19/02/2016,5106832812,1980.34,Avery Healthcare Cepen Lodge ,126733,DL1 ,Community Services,North Locality OP,Adult Residential Placements - Spot Purchase,Third Party Payments,REVENUE
http://statistics.data.gov.uk/id/local-authority/00HY,Wiltshire Council,26/02/2016,5106835864,3099.43,Avery Healthcare Cepen Lodge ,126733,DL1 ,Community Services,West Locality OP,Adult Residential Placements - Spot Purchase,Third Party Payments,REVENUE
http://statistics.data.gov.uk/id/local-authority/00HY,Wiltshire Council,26/02/2016,5106835865,4933.57,Avery Healthcare Cepen Lodge ,126733,DL1 ,Community Services,North Locality OP,Adult Residential Placements - Spot Purchase,Third Party Payments,REVENUE
http://statistics.data.gov.uk/id/local-authority/00HY,Wiltshire Council,26/02/2016,5106835866,2135.93,Avery Healthcare Cepen Lodge ,126733,DL1 ,Community Services,MH AOWA North Locali,Adult Residential Placements - Spot Purchase,Third Party Payments,REVENUE
http://statistics.data.gov.uk/id/local-authority/00HY,Wiltshire Council,26/02/2016,5106835868,461.18,Avery Healthcare Cepen Lodge ,126733,DL1 ,Community Services,North Locality OP,Adult Residential Placements - Spot Purchase,Third Party Payments,REVENUE
http://statistics.data.gov.uk/id/local-authority/00HY,Wiltshire Council,26/02/2016,5106835870,1980.46,Avery Healthcare Cepen Lodge ,126733,DL1 ,Community Services,North Locality OP,Adult Residential Placements - Spot Purchase,Third Party Payments,REVENUE
http://statistics.data.gov.uk/id/local-authority/00HY,Wiltshire Council,10/02/2016,5106825159,2590.84,Avery Healthcare Ltd- Langford Sali ,112676,NN4 ,Community Services,South Locality OP,Adult Care Nursing Placements- Spot Purchase,Third Party Payments,REVENUE
http://statistics.data.gov.uk/id/local-authority/00HY,Wiltshire Council,10/02/2016,5106825160,448.00,Avery Healthcare Ltd- Langford Sali ,112676,NN4 ,Community Services,OP South FNC,Adult Care Funded Nursing Care - Loal Auth Clients,Third Party Payments,REVENUE
http://statistics.data.gov.uk/id/local-authority/00HY,Wiltshire Council,10/02/2016,5106825446,2315.20,Avery Healthcare Ltd- Langford Sali ,112676,NN4 ,Community Services,South Locality OP,Adult Care Nursing Placements- Spot Purchase,Third Party Payments,REVENUE
http://statistics.data.gov.uk/id/local-authority/00HY,Wiltshire Council,10/02/2016,5106825447,448.00,Avery Healthcare Ltd- Langford Sali ,112676,NN4 ,Community Services,OP South FNC,Adult Care Funded Nursing Care - Loal Auth Clients,Third Party Payments,REVENUE
http://statistics.data.gov.uk/id/local-authority/00HY,Wiltshire Council,10/02/2016,5106826418,3319.44,Avery Healthcare Ltd- Langford Sali ,112676,NN4 ,Community Services,South Locality OP,Adult Residential Placements - Spot Purchase,Third Party Payments,REVENUE
http://statistics.data.gov.uk/id/local-authority/00HY,Wiltshire Council,10/02/2016,5106826652,2621.16,Avery Healthcare Ltd- Langford Sali ,112676,NN4 ,Community Services,South Locality OP,Adult Care Nursing Placements- Spot Purchase,Third Party Payments,REVENUE
http://statistics.data.gov.uk/id/local-authority/00HY,Wiltshire Council,10/02/2016,5106826653,448.00,Avery Healthcare Ltd- Langford Sali ,112676,NN4 ,Community Services,OP South FNC,Adult Care Funded Nursing Care - Loal Auth Clients,Third Party Payments,REVENUE
http://statistics.data.gov.uk/id/local-authority/00HY,Wiltshire Council,10/02/2016,5106827128,2800.00,Avery Healthcare Ltd- Langford Sali ,112676,NN4 ,Community Services,South Locality OP,Adult Residential Placements - Spot Purchase,Third Party Payments,REVENUE
http://statistics.data.gov.uk/id/local-authority/00HY,Wiltshire Council,10/02/2016,5106827326,2503.68,Avery Healthcare Ltd- Langford Sali ,112676,NN4 ,Community Services,South Locality OP,Adult Care Nursing Placements- Spot Purchase,Third Party Payments,REVENUE
http://statistics.data.gov.uk/id/local-authority/00HY,Wiltshire Council,10/02/2016,5106827327,448.00,Avery Healthcare Ltd- Langford Sali ,112676,NN4 ,Community Services,OP South FNC,Adult Care Funded Nursing Care - Loal Auth Clients,Third Party Payments,REVENUE
http://statistics.data.gov.uk/id/local-authority/00HY,Wiltshire Council,10/02/2016,5106827425,2503.68,Avery Healthcare Ltd- Langford Sali ,112676,NN4 ,Community Services,South Locality OP,Adult Care Nursing Placements- Spot Purchase,Third Party Payments,REVENUE
http://statistics.data.gov.uk/id/local-authority/00HY,Wiltshire Council,10/02/2016,5106827426,448.00,Avery Healthcare Ltd- Langford Sali ,112676,NN4 ,Community Services,OP South FNC,Adult Care Funded Nursing Care - Loal Auth Clients,Third Party Payments,REVENUE
http://statistics.data.gov.uk/id/local-authority/00HY,Wiltshire Council,10/02/2016,5106827942,3352.00,Avery Healthcare Ltd- Langford Sali ,112676,NN4 ,Community Services,Home Loans,Adult Care Loans,Capital charges and Expenditure,REVENUE
http://statistics.data.gov.uk/id/local-authority/00HY,Wiltshire Council,25.02.2016,1901659998,30000.00,Avon & Wilts Mental Health Partnership NHS Trust,131123,SN15,Community Services,BCF - Homefirst,Public Health Commissioning,Supplies and Services,REVENUE
http://statistics.data.gov.uk/id/local-authority/00HY,Wiltshire Council,09/02/2016,5106824955,2500.00,Avon & Wilts Mental Health Partnership NHS Trust,131123,SN15,Neighbourhood & Planning,Mental Health and We,Public Health Commissioning,Supplies and Services,REVENUE
http://statistics.data.gov.uk/id/local-authority/00HY,Wiltshire Council,25/02/2016,5106831691,3282.00,Avon & Wilts Mental Health Partnership NHS Trust,131123,SN15,Neighbourhood & Planning,Maternal Health Impr,Public Health Commissioning,Supplies and Services,REVENUE
http://statistics.data.gov.uk/id/local-authority/00HY,Wiltshire Council,04.02.2016,1901659980,8251.50,Avon and W Wilts MHC NHS Trust ,110216,BA1 ,Community Services,MH Management Fee,Contribution to Approved Social Workers,Supplies and Services,REVENUE
http://statistics.data.gov.uk/id/local-authority/00HY,Wiltshire Council,17.02.2016,1901664114,14464.28,Avon Care Homes Ltd - Sutton Veny H ,112612,BA5 ,Community Services,BCF-Intermediate Cr,Adult Care Nursing Placements - Void Payments,Third Party Payments,REVENUE
http://statistics.data.gov.uk/id/local-authority/00HY,Wiltshire Council,10/02/2016,5106824556,1215.00,Avon Care Homes Ltd - Sutton Veny H ,112612,BA5 ,Community Services,Home Loans,Adult Care Loans,Capital charges and Expenditure,REVENUE
http://statistics.data.gov.uk/id/local-authority/00HY,Wiltshire Council,10/02/2016,5106825361,1624.56,Avon Care Homes Ltd - Sutton Veny H ,112612,BA5 ,Community Services,West Locality OP,Adult Care Nursing Placements- Spot Purchase,Third Party Payments,REVENUE
http://statistics.data.gov.uk/id/local-authority/00HY,Wiltshire Council,10/02/2016,5106825362,448.00,Avon Care Homes Ltd - Sutton Veny H ,112612,BA5 ,Community Services,OP West FNC,Adult Care Funded Nursing Care - Loal Auth Clients,Third Party Payments,REVENUE
http://statistics.data.gov.uk/id/local-authority/00HY,Wiltshire Council,10/02/2016,5106825916,2076.36,Avon Care Homes Ltd - Sutton Veny H ,112612,BA5 ,Community Services,West Locality OP,Adult Care Nursing Placements- Spot Purchase,Third Party Payments,REVENUE
http://statistics.data.gov.uk/id/local-authority/00HY,Wiltshire Council,10/02/2016,5106825917,448.00,Avon Care Homes Ltd - Sutton Veny H ,112612,BA5 ,Community Services,OP West FNC,Adult Care Funded Nursing Care - Loal Auth Clients,Third Party Payments,REVENUE
http://statistics.data.gov.uk/id/local-authority/00HY,Wiltshire Council,10/02/2016,5106825921,2076.36,Avon Care Homes Ltd - Sutton Veny H ,112612,BA5 ,Community Services,West Locality OP,Adult Care Nursing Placements- Spot Purchase,Third Party Payments,REVENUE
http://statistics.data.gov.uk/id/local-authority/00HY,Wiltshire Council,10/02/2016,5106825922,448.00,Avon Care Homes Ltd - Sutton Veny H ,112612,BA5 ,Community Services,OP West FNC,Adult Care Funded Nursing Care - Loal Auth Clients,Third Party Payments,REVENUE
http://statistics.data.gov.uk/id/local-authority/00HY,Wiltshire Council,10/02/2016,5106827072,2076.36,Avon Care Homes Ltd - Sutton Veny H ,112612,BA5 ,Community Services,MH OP North Locality,Adult Care Nursing Placements- Spot Purchase,Third Party Payments,REVENUE
http://statistics.data.gov.uk/id/local-authority/00HY,Wiltshire Council,10/02/2016,5106827073,448.00,Avon Care Homes Ltd - Sutton Veny H ,112612,BA5 ,Community Services,MH OA North FNC,Adult Care Funded Nursing Care - Loal Auth Clients,Third Party Payments,REVENUE
http://statistics.data.gov.uk/id/local-authority/00HY,Wiltshire Council,10/02/2016,5106827214,2076.36,Avon Care Homes Ltd - Sutton Veny H ,112612,BA5 ,Community Services,West Locality OP,Adult Care Nursing Placements- Spot Purchase,Third Party Payments,REVENUE
http://statistics.data.gov.uk/id/local-authority/00HY,Wiltshire Council,10/02/2016,5106827215,448.00,Avon Care Homes Ltd - Sutton Veny H ,112612,BA5 ,Community Services,OP West FNC,Adult Care Funded Nursing Care - Loal Auth Clients,Third Party Payments,REVENUE
http://statistics.data.gov.uk/id/local-authority/00HY,Wiltshire Council,10/02/2016,5106828158,3072.00,Avon Care Homes Ltd - Sutton Veny H ,112612,BA5 ,Community Services,Home Loans,Adult Care Loans,Capital charges and Expenditure,REVENUE
http://statistics.data.gov.uk/id/local-authority/00HY,Wiltshire Council,10/02/2016,5106828233,3392.00,Avon Care Homes Ltd - Sutton Veny H ,112612,BA5 ,Community Services,Home Loans,Adult Care Loans,Capital charges and Expenditure,REVENUE
http://statistics.data.gov.uk/id/local-authority/00HY,Wiltshire Council,26/02/2016,5106835842,393.68,Avon Care Homes Ltd - Sutton Veny H ,112612,BA5 ,Community Services,Home Loans,Adult Care Loans,Capital charges and Expenditure,REVENUE
http://statistics.data.gov.uk/id/local-authority/00HY,Wiltshire Council,01/02/2016,5106822600,7712.62,Avon Court Care Home ,110218,LS16,Community Services,West Locality OP,Adult Domiciliary Care - Spot,Third Party Payments,REVENUE
http://statistics.data.gov.uk/id/local-authority/00HY,Wiltshire Council,10/02/2016,5106825230,1421.64,Avon Court Care Home ,110218,LS16,Community Services,North Locality OP,Adult Care Nursing Placements- Spot Purchase,Third Party Payments,REVENUE
http://statistics.data.gov.uk/id/local-authority/00HY,Wiltshire Council,10/02/2016,5106825231,448.00,Avon Court Care Home ,110218,LS16,Community Services,OP North FNC,Adult Care Funded Nursing Care - Loal Auth Clients,Third Party Payments,REVENUE
http://statistics.data.gov.uk/id/local-authority/00HY,Wiltshire Council,10/02/2016,5106825516,1978.28,Avon Court Care Home ,110218,LS16,Community Services,West Locality OP,Adult Care Nursing Placements- Block Contract,Third Party Payments,REVENUE
http://statistics.data.gov.uk/id/local-authority/00HY,Wiltshire Council,10/02/2016,5106825517,448.00,Avon Court Care Home ,110218,LS16,Community Services,OP West FNC,Adult Care Funded Nursing Care - Loal Auth Clients,Third Party Payments,REVENUE
http://statistics.data.gov.uk/id/local-authority/00HY,Wiltshire Council,10/02/2016,5106825601,1978.28,Avon Court Care Home ,110218,LS16,Community Services,East Locality OP,Adult Care Nursing Placements- Block Contract,Third Party Payments,REVENUE
http://statistics.data.gov.uk/id/local-authority/00HY,Wiltshire Council,10/02/2016,5106825602,448.00,Avon Court Care Home ,110218,LS16,Community Services,OP East FNC,Adult Care Funded Nursing Care - Loal Auth Clients,Third Party Payments,REVENUE
http://statistics.data.gov.uk/id/local-authority/00HY,Wiltshire Council,10/02/2016,5106825671,1978.28,Avon Court Care Home ,110218,LS16,Community Services,West Locality OP,Adult Care Nursing Placements- Block Contract,Third Party Payments,REVENUE
http://statistics.data.gov.uk/id/local-authority/00HY,Wiltshire Council,10/02/2016,5106825672,448.00,Avon Court Care Home ,110218,LS16,Community Services,OP West FNC,Adult Care Funded Nursing Care - Loal Auth Clients,Third Party Payments,REVENUE
http://statistics.data.gov.uk/id/local-authority/00HY,Wiltshire Council,10/02/2016,5106825824,1978.28,Avon Court Care Home ,110218,LS16,Community Services,North Locality OP,Adult Care Nursing Placements- Block Contract,Third Party Payments,REVENUE
http://statistics.data.gov.uk/id/local-authority/00HY,Wiltshire Council,10/02/2016,5106825825,448.00,Avon Court Care Home ,110218,LS16,Community Services,OP North FNC,Adult Care Funded Nursing Care - Loal Auth Clients,Third Party Payments,REVENUE
http://statistics.data.gov.uk/id/local-authority/00HY,Wiltshire Council,10/02/2016,5106825827,1978.28,Avon Court Care Home ,110218,LS16,Community Services,North Locality OP,Adult Care Nursing Placements- Block Contract,Third Party Payments,REVENUE
http://statistics.data.gov.uk/id/local-authority/00HY,Wiltshire Council,10/02/2016,5106825828,448.00,Avon Court Care Home ,110218,LS16,Community Services,OP North FNC,Adult Care Funded Nursing Care - Loal Auth Clients,Third Party Payments,REVENUE
http://statistics.data.gov.uk/id/local-authority/00HY,Wiltshire Council,10/02/2016,5106825947,2856.44,Avon Court Care Home ,110218,LS16,Community Services,North Locality OP,Adult Care Nursing Placements- Spot Purchase,Third Party Payments,REVENUE
http://statistics.data.gov.uk/id/local-authority/00HY,Wiltshire Council,10/02/2016,5106825948,448.00,Avon Court Care Home ,110218,LS16,Community Services,OP North FNC,Adult Care Funded Nursing Care - Loal Auth Clients,Third Party Payments,REVENUE
http://statistics.data.gov.uk/id/local-authority/00HY,Wiltshire Council,10/02/2016,5106826100,1978.28,Avon Court Care Home ,110218,LS16,Community Services,North Locality OP,Adult Care Nursing Placements- Block Contract,Third Party Payments,REVENUE
http://statistics.data.gov.uk/id/local-authority/00HY,Wiltshire Council,10/02/2016,5106826101,448.00,Avon Court Care Home ,110218,LS16,Community Services,OP North FNC,Adult Care Funded Nursing Care - Loal Auth Clients,Third Party Payments,REVENUE
http://statistics.data.gov.uk/id/local-authority/00HY,Wiltshire Council,10/02/2016,5106826248,1978.28,Avon Court Care Home ,110218,LS16,Community Services,North Locality OP,Adult Care Nursing Placements- Block Contract,Third Party Payments,REVENUE
http://statistics.data.gov.uk/id/local-authority/00HY,Wiltshire Council,10/02/2016,5106826249,448.00,Avon Court Care Home ,110218,LS16,Community Services,OP North FNC,Adult Care Funded Nursing Care - Loal Auth Clients,Third Party Payments,REVENUE
http://statistics.data.gov.uk/id/local-authority/00HY,Wiltshire Council,10/02/2016,5106826626,2035.08,Avon Court Care Home ,110218,LS16,Community Services,North Locality OP,Adult Care Nursing Placements- Spot Purchase,Third Party Payments,REVENUE
http://statistics.data.gov.uk/id/local-authority/00HY,Wiltshire Council,10/02/2016,5106826627,448.00,Avon Court Care Home ,110218,LS16,Community Services,OP North FNC,Adult Care Funded Nursing Care - Loal Auth Clients,Third Party Payments,REVENUE
http://statistics.data.gov.uk/id/local-authority/00HY,Wiltshire Council,10/02/2016,5106826633,2035.08,Avon Court Care Home ,110218,LS16,Community Services,North Locality OP,Adult Care Nursing Placements- Spot Purchase,Third Party Payments,REVENUE
http://statistics.data.gov.uk/id/local-authority/00HY,Wiltshire Council,10/02/2016,5106826634,448.00,Avon Court Care Home ,110218,LS16,Community Services,OP North FNC,Adult Care Funded Nursing Care - Loal Auth Clients,Third Party Payments,REVENUE
http://statistics.data.gov.uk/id/local-authority/00HY,Wiltshire Council,10/02/2016,5106826706,2035.08,Avon Court Care Home ,110218,LS16,Community Services,North Locality OP,Adult Care Nursing Placements- Spot Purchase,Third Party Payments,REVENUE
http://statistics.data.gov.uk/id/local-authority/00HY,Wiltshire Council,10/02/2016,5106826707,448.00,Avon Court Care Home ,110218,LS16,Community Services,OP North FNC,Adult Care Funded Nursing Care - Loal Auth Clients,Third Party Payments,REVENUE
http://statistics.data.gov.uk/id/local-authority/00HY,Wiltshire Council,10/02/2016,5106826712,2035.08,Avon Court Care Home ,110218,LS16,Community Services,North Locality OP,Adult Care Nursing Placements- Spot Purchase,Third Party Payments,REVENUE
